Supp ID,Invoice ID,Supplier Name,Paid Date,Subjective Code,Subjective Name,Service Area,Cost Centre Name,Invoiced
6813,3040584,3M UNITED KINGDOM PLC,27/02/2014,45401,Computer Maintenance,Finance Department,Libraries Info. Systems,"17,993.00"
2312290,3025026,A & C WEBER UK LTD,13/02/2014,Z1051,Work in Progress Additions,Environmental Services,Environmental Services Balance sheet,780.00
6050,3032621,A E YATES LTD,24/02/2014,Z1051,Work in Progress Additions,Highways,Stores,"88,731.89"
239811,3041415,A1 STEAM CLEANING & RECOVERY,27/02/2014,31305,Vehicle Servicing,Environmental Services,Transport Support Service,660.00
6055,3019211,ABAFIELDS RESIDENTIAL HOME,04/02/2014,54301,Residential Provision,Adult Services,LD Purchaser Residential Care,"3,750.20"
6055,3019211,ABAFIELDS RESIDENTIAL HOME,04/02/2014,54301,Residential Provision,Adult Services,OA  External Provision Residential,"35,527.77"
2348298,3019362,ABBEY HEALTHCARE (FARNWORTH) LIMITED,04/02/2014,54301,Residential Provision,Adult Services,MH Residential External Provision,"1,986.35"
2348298,3019362,ABBEY HEALTHCARE (FARNWORTH) LIMITED,04/02/2014,54301,Residential Provision,Adult Services,OA  External Provision Residential,"57,263.63"
2348298,3019362,ABBEY HEALTHCARE (FARNWORTH) LIMITED,04/02/2014,54302,Nursing Provision,Adult Services,OA  External Provision Residential,"15,890.80"
2341303,3019359,ABBEYCLIFFE RESIDENTIAL CARE HOME,04/02/2014,54301,Residential Provision,Adult Services,OA  External Provision Residential,"5,710.05"
6894,3019271,ABBEYDALE RESIDENTIAL CARE HOME,04/02/2014,54301,Residential Provision,Adult Services,OA  External Provision Residential,"2,059.40"
6895,3019248,ABBEYWOOD TOTTINGTON LTD,04/02/2014,54301,Residential Provision,Adult Services,OA  External Provision Residential,"6,178.20"
6895,3019247,ABBEYWOOD TOTTINGTON LTD,04/02/2014,54301,Residential Provision,Adult Services,OA  External Provision Residential,"1,206.17"
760628,3040905,ABSTRACT CREATIVE SCREENPRINTING & EMBROIDERY LIMITED,27/02/2014,42001,Uniforms,Environmental Services,Neighbourhood Management Programme,540.00
156135,3026444,ACCESS TO CARE LTD,13/02/2014,52000,Vol Assoc Grants  General,Children's Services,Res Serv Agency Placements,850.00
156135,3026445,ACCESS TO CARE LTD,13/02/2014,52000,Vol Assoc Grants  General,Children's Services,Res Serv Agency Placements,850.00
156135,3026447,ACCESS TO CARE LTD,13/02/2014,52000,Vol Assoc Grants  General,Children's Services,Res Serv Agency Placements,605.00
156135,3026448,ACCESS TO CARE LTD,13/02/2014,52000,Vol Assoc Grants  General,Children's Services,Res Serv Agency Placements,850.00
156135,3026449,ACCESS TO CARE LTD,13/02/2014,52000,Vol Assoc Grants  General,Children's Services,Res Serv Agency Placements,850.00
156135,3026451,ACCESS TO CARE LTD,13/02/2014,52000,Vol Assoc Grants  General,Children's Services,Res Serv Agency Placements,850.00
156135,3026453,ACCESS TO CARE LTD,13/02/2014,52000,Vol Assoc Grants  General,Children's Services,Res Serv Agency Placements,850.00
156135,3026455,ACCESS TO CARE LTD,13/02/2014,52000,Vol Assoc Grants  General,Children's Services,Res Serv Agency Placements,850.00
156135,3026458,ACCESS TO CARE LTD,13/02/2014,52000,Vol Assoc Grants  General,Children's Services,Res Serv Agency Placements,850.00
156135,3026461,ACCESS TO CARE LTD,13/02/2014,52000,Vol Assoc Grants  General,Children's Services,Res Serv Agency Placements,850.00
156135,3026463,ACCESS TO CARE LTD,13/02/2014,52000,Vol Assoc Grants  General,Children's Services,Res Serv Agency Placements,850.00
156135,3026465,ACCESS TO CARE LTD,13/02/2014,52000,Vol Assoc Grants  General,Children's Services,Res Serv Agency Placements,850.00
156135,3032510,ACCESS TO CARE LTD,24/02/2014,52000,Vol Assoc Grants  General,Children's Services,Res Serv Agency Placements,850.00
156135,3032512,ACCESS TO CARE LTD,24/02/2014,52000,Vol Assoc Grants  General,Children's Services,Res Serv Agency Placements,850.00
156135,3032516,ACCESS TO CARE LTD,24/02/2014,52000,Vol Assoc Grants  General,Children's Services,Res Serv Agency Placements,850.00
156135,3032518,ACCESS TO CARE LTD,24/02/2014,52000,Vol Assoc Grants  General,Children's Services,Res Serv Agency Placements,850.00
156135,3032513,ACCESS TO CARE LTD,24/02/2014,52000,Vol Assoc Grants  General,Children's Services,Res Serv Agency Placements,850.00
156135,3032515,ACCESS TO CARE LTD,24/02/2014,52000,Vol Assoc Grants  General,Children's Services,Res Serv Agency Placements,850.00
156135,3032520,ACCESS TO CARE LTD,24/02/2014,52000,Vol Assoc Grants  General,Children's Services,Res Serv Agency Placements,850.00
156135,3026467,ACCESS TO CARE LTD,13/02/2014,52000,Vol Assoc Grants  General,Children's Services,Res Serv Agency Placements,850.00
156135,3026468,ACCESS TO CARE LTD,13/02/2014,52000,Vol Assoc Grants  General,Children's Services,Res Serv Agency Placements,850.00
156135,3026443,ACCESS TO CARE LTD,13/02/2014,52000,Vol Assoc Grants  General,Children's Services,Res Serv Agency Placements,850.00
1951294,3025121,ACORN HOUSE FOSTERING SERVICES,13/02/2014,52000,Vol Assoc Grants  General,Children's Services,Res Serv Agency Placements,971.28
1951294,3025113,ACORN HOUSE FOSTERING SERVICES,13/02/2014,52000,Vol Assoc Grants  General,Children's Services,Res Serv Agency Placements,"1,040.00"
1951294,3025115,ACORN HOUSE FOSTERING SERVICES,13/02/2014,52000,Vol Assoc Grants  General,Children's Services,Res Serv Agency Placements,607.05
959,3019250,ACORNS CARE CENTRE,04/02/2014,54302,Nursing Provision,Adult Services,OA  External Provision Residential,"1,867.60"
1091781,3019323,ACROSS THE BAY,04/02/2014,54301,Residential Provision,Adult Services,OA  External Provision Residential,"2,032.50"
101393,3040604,ADAMS SELFSTORE,27/02/2014,22006,Rent of Storage Facilities,Finance Department,Museum Premises,588.75
2221292,3019347,ADLINGTON MANOR,04/02/2014,54302,Nursing Provision,Adult Services,OA  External Provision Residential,"2,335.50"
245759,3032550,ADVANCED BUILDING (NW) LTD,24/02/2014,Z6008,Expense AP Accrual,Bolton MBC Balance Sheet,Bolton MBC Balance Sheet,970.00
2055299,3041429,AEBI SCHMIDT UK LTD,27/02/2014,52200,Contracted Services,Environmental Services,Transport Support Service,709.04
2055299,3020867,AEBI SCHMIDT UK LTD,06/02/2014,52200,Contracted Services,Environmental Services,Transport Support Service,"4,257.40"
871655,3032536,AGILISYS LIMITED,24/02/2014,52200,Contracted Services,Finance Department,FM Contract,"21,354.19"
871655,3027052,AGILISYS LIMITED,13/02/2014,45401,Computer Maintenance,Adult Services,ICES,536.00
871655,3027052,AGILISYS LIMITED,13/02/2014,45401,Computer Maintenance,Development & Regen,Development Management,708.00
871655,3031766,AGILISYS LIMITED,20/02/2014,45613,Agilisys  Managed Service,Finance Department,FM Contract,"257,923.09"
1772297,3042512,AGR BUILDING & FENCING CONTRACTORS LIMITED,27/02/2014,Z1051,Work in Progress Additions,Adult Services,Adult Services Balance Sheet,"3,583.00"
6063,3027059,AGR CARE SERVICES,13/02/2014,52000,Vol Assoc Grants  General,Children's Services,Res Serv Agency Placements,"3,056.00"
6063,3020966,AGR CARE SERVICES,06/02/2014,52000,Vol Assoc Grants  General,Children's Services,Res Serv Agency Placements,"11,532.00"
6063,3020967,AGR CARE SERVICES,06/02/2014,52000,Vol Assoc Grants  General,Children's Services,Res Serv Agency Placements,"11,842.00"
6960,3043038,AIDAPT BATHROOMS LTD,27/02/2014,44051,Clients Aids & Adaptations,Adult Services,ICES,893.20
6960,3037211,AIDAPT BATHROOMS LTD,24/02/2014,44051,Clients Aids & Adaptations,Adult Services,ICES,725.00
6960,3024943,AIDAPT BATHROOMS LTD,13/02/2014,44051,Clients Aids & Adaptations,Adult Services,ICES,789.00
6064,3019257,AINSWORTH NURSING HOME,04/02/2014,54301,Residential Provision,Adult Services,MH Residential External Provision,"4,014.80"
6064,3019257,AINSWORTH NURSING HOME,04/02/2014,54302,Nursing Provision,Adult Services,MH Residential External Provision,"8,029.60"
6064,3019257,AINSWORTH NURSING HOME,04/02/2014,54302,Nursing Provision,Adult Services,OA  External Provision Residential,"4,014.80"
2317297,3019353,ALEXANDER CARE HOME,04/02/2014,54301,Residential Provision,Adult Services,OA  External Provision Residential,643.30
2317297,3019354,ALEXANDER CARE HOME,04/02/2014,54301,Residential Provision,Adult Services,OA  External Provision Residential,"4,118.80"
2284331,3025582,REDACTED - PERSONAL DATA,13/02/2014,48509,Other Fees,Public Health,Get Active,"2,101.75"
146502,3030169,ALLIANCE DISPOSABLES LTD,20/02/2014,26002,Other Materials,Environmental Services,Building Cleaning,815.00
146502,3030170,ALLIANCE DISPOSABLES LTD,20/02/2014,26000,Cleaning Materials,Environmental Services,Building Cleaning,817.80
146502,3030205,ALLIANCE DISPOSABLES LTD,20/02/2014,26001,Hygiene Requisite,Property Services,Admin Buildings  General,"1,148.00"
110901,3024345,ALLPAY.NET LTD,10/02/2014,48509,Other Fees,Finance Department,CSD Cashiers,"3,327.04"
110901,3024343,ALLPAY.NET LTD,10/02/2014,48509,Other Fees,Finance Department,CSD Cashiers,"2,490.93"
1671329,3024488,ALLSTAR BUSINESS SOLUTIONS,13/02/2014,31301,Vehicle Fuel,Environmental Services,Activities and Operations,"10,657.10"
1671329,3024488,ALLSTAR BUSINESS SOLUTIONS,13/02/2014,31301,Vehicle Fuel,Environmental Services,Highway Services,"2,329.68"
1671329,3024488,ALLSTAR BUSINESS SOLUTIONS,13/02/2014,31301,Vehicle Fuel,Environmental Services,Highway Works  Unallocated Costs,"3,368.11"
1671329,3024488,ALLSTAR BUSINESS SOLUTIONS,13/02/2014,31301,Vehicle Fuel,Environmental Services,SNT Adult Servs,"3,751.39"
1671329,3024488,ALLSTAR BUSINESS SOLUTIONS,13/02/2014,31301,Vehicle Fuel,Environmental Services,SNT Childrens Servs,"3,734.96"
1671329,3024488,ALLSTAR BUSINESS SOLUTIONS,13/02/2014,31301,Vehicle Fuel,Environmental Services,Waste,"27,248.34"
25274,3042916,ALSECURE GROUP LTD,27/02/2014,44401,Other Security Expenses,Housing GRF,Benjamin Court Temporary Accommodation,839.16
25274,3040904,ALSECURE GROUP LTD,27/02/2014,44401,Other Security Expenses,Housing GRF,Benjamin Court Temporary Accommodation,839.16
25274,3026530,ALSECURE GROUP LTD,13/02/2014,44401,Other Security Expenses,Housing GRF,Benjamin Court Temporary Accommodation,839.16
25274,3026529,ALSECURE GROUP LTD,13/02/2014,44401,Other Security Expenses,Housing GRF,Benjamin Court Temporary Accommodation,839.16
6077,3040996,ANCHOR TRUST#2,27/02/2014,52200,Contracted Services,Adult Services,Supporting People  Capital Financing,"9,215.70"
6077,3041000,ANCHOR TRUST#2,27/02/2014,52200,Contracted Services,Adult Services,Supporting People  Capital Financing,"6,625.57"
245267,3020845,ANGLIA DNA SERVICES LIMITED,06/02/2014,48509,Other Fees,Children's Services,Management Team,735.00
245267,3025175,ANGLIA DNA SERVICES LIMITED,13/02/2014,48509,Other Fees,Children's Services,Management Team,665.00
6079,3026454,ANIMAL WARDENS,13/02/2014,52200,Contracted Services,Environmental Services,Activities and Operations,676.60
2246414,3019349,ANSAR PROJECTS,04/02/2014,54301,Residential Provision,Adult Services,MH Residential External Provision,"5,670.00"
2457329,3027222,ANTALIS DOCUMENT SUPPLIES,17/02/2014,43032,Office Stationery,Central Services,Text & Reprographics,"1,760.00"
2457329,3027205,ANTALIS DOCUMENT SUPPLIES,17/02/2014,43032,Office Stationery,Central Services,Text & Reprographics,880.00
6084,3032636,APCOA PARKING UK LTD#3,24/02/2014,22006,Rent of Storage Facilities,Property Services,CED Admin BuildBow St Storage,"1,417.38"
1548462,3042983,APPROVED MENTAL HEALTH PRACTITIONERS ASSOCIATION#AMHPA,27/02/2014,19100,Training Exps Tuition Fees,Adult Services,Staff Development  Adults,800.00
7138,3029977,AQUAJOY BATHLIFTS LTD,20/02/2014,44051,Clients Aids & Adaptations,Adult Services,ICES,659.00
114124,3040862,AQUA-SAVE,27/02/2014,Z6008,Expense AP Accrual,Bolton MBC Balance Sheet,Bolton MBC Balance Sheet,561.60
114124,3040859,AQUA-SAVE,27/02/2014,Z6008,Expense AP Accrual,Bolton MBC Balance Sheet,Bolton MBC Balance Sheet,655.20
259116,3029750,ARCH INITIATIVES,20/02/2014,52200,Contracted Services,Adult Services,Drugs Pooled Treatment Budget,"55,750.00"
6091,3030077,ARGOS BUSINESS SOLUTIONS,27/02/2014,53000,Private Contracted Services,Adult Services,OA  Horwich Day Care,561.61
6091,3042425,ARGOS BUSINESS SOLUTIONS,27/02/2014,40110,Op Equip Furniture Purchase,Adult Services,OA Merton  Extra Care Housing,569.53
236866,3027841,ASDA PHARMACY,17/02/2014,52200,Contracted Services,Public Health,Smoking,862.07
236866,3039717,ASDA PHARMACY,24/02/2014,52200,Contracted Services,Adult Services,Drugs Pooled Treatment Budget,"1,344.50"
162442,3040579,ASGARD SECURE STEEL STORAGE,27/02/2014,40100,Operational Equipment Purchase,Children's Services,Harwood Youth Centre,625.00
135180,3041498,ASH HIRE & SALES LTD,27/02/2014,33202,Plant Hire,Environmental Services,Depots,"1,058.00"
135180,3037318,ASH HIRE & SALES LTD,24/02/2014,20501,Engineering Work,Environmental Services,Highway Services,525.00
135180,3025331,ASH HIRE & SALES LTD,13/02/2014,20501,Engineering Work,Environmental Services,Highways Maintenance Billable Costs,929.00
135180,3041495,ASH HIRE & SALES LTD,27/02/2014,Z6008,Expense AP Accrual,Bolton MBC Balance Sheet,Bolton MBC Balance Sheet,680.00
135180,3025335,ASH HIRE & SALES LTD,13/02/2014,Z6008,Expense AP Accrual,Bolton MBC Balance Sheet,Bolton MBC Balance Sheet,647.50
2338498,3019357,ASHTREE HOUSE,04/02/2014,54301,Residential Provision,Adult Services,OA  External Provision Residential,"5,875.00"
34247,3032493,ASPULL ENGINEERING CO LIMITED,24/02/2014,Z1051,Work in Progress Additions,Environmental Services,Environmental Services Balance sheet,917.00
6100,3029738,ASSOCIATED CLEANING CONTRACTORS,27/02/2014,26100,Window Cleaning,Property Services,Annual Charge Holding Account,"1,952.00"
6100,3025391,ASSOCIATED CLEANING CONTRACTORS,13/02/2014,26000,Cleaning Materials,Housing GRF,Access and Advice Housing Options Centre,864.35
6100,3040962,ASSOCIATED CLEANING CONTRACTORS,27/02/2014,20100,Day To Day Maintenance,Children's Services,Technical Innovation Centre,"2,097.70"
6100,3020309,ASSOCIATED CLEANING CONTRACTORS,06/02/2014,Z6008,Expense AP Accrual,Bolton MBC Balance Sheet,Bolton MBC Balance Sheet,784.00
2515336,3019385,ASTLEY GRANGE HOMES LIMITED,04/02/2014,54302,Nursing Provision,Adult Services,OA  External Provision Residential,"8,328.40"
10913,3021538,ATG ACCESS LTD,10/02/2014,48509,Other Fees,Environmental Services,Highway Services,"10,327.00"
10913,3043337,ATG ACCESS LTD,27/02/2014,20501,Engineering Work,Environmental Services,Highway Services,543.54
39044,3029463,AUTISTIC SOCIETY GREATER MANCHESTER AREA,20/02/2014,52200,Contracted Services,Children's Services,Admin Commissioning,"2,625.00"
6104,3032356,AUTOMATIC ALARMS LIMITED,20/02/2014,Z6008,Expense AP Accrual,Bolton MBC Balance Sheet,Bolton MBC Balance Sheet,645.17
6104,3032411,AUTOMATIC ALARMS LIMITED,24/02/2014,Z6008,Expense AP Accrual,Bolton MBC Balance Sheet,Bolton MBC Balance Sheet,688.53
6104,3032412,AUTOMATIC ALARMS LIMITED,24/02/2014,Z6008,Expense AP Accrual,Bolton MBC Balance Sheet,Bolton MBC Balance Sheet,612.95
6104,3024677,AUTOMATIC ALARMS LIMITED,13/02/2014,Z6008,Expense AP Accrual,Bolton MBC Balance Sheet,Bolton MBC Balance Sheet,579.86
6104,3032416,AUTOMATIC ALARMS LIMITED,24/02/2014,Z6008,Expense AP Accrual,Bolton MBC Balance Sheet,Bolton MBC Balance Sheet,654.94
6104,3032429,AUTOMATIC ALARMS LIMITED,24/02/2014,Z6008,Expense AP Accrual,Bolton MBC Balance Sheet,Bolton MBC Balance Sheet,503.12
6104,3032362,AUTOMATIC ALARMS LIMITED,27/02/2014,20102,Health and Safety,Environmental Services,Depots,"1,477.25"
6104,3032407,AUTOMATIC ALARMS LIMITED,27/02/2014,20102,Health and Safety,Environmental Services,Depots,"8,567.79"
6104,3028101,AUTOMATIC ALARMS LIMITED,17/02/2014,Z6008,Expense AP Accrual,Bolton MBC Balance Sheet,Bolton MBC Balance Sheet,711.51
6104,3028103,AUTOMATIC ALARMS LIMITED,17/02/2014,Z6008,Expense AP Accrual,Bolton MBC Balance Sheet,Bolton MBC Balance Sheet,666.73
6104,3028108,AUTOMATIC ALARMS LIMITED,17/02/2014,Z6008,Expense AP Accrual,Bolton MBC Balance Sheet,Bolton MBC Balance Sheet,567.25
6104,3032437,AUTOMATIC ALARMS LIMITED,24/02/2014,Z6008,Expense AP Accrual,Bolton MBC Balance Sheet,Bolton MBC Balance Sheet,500.48
6104,3032441,AUTOMATIC ALARMS LIMITED,24/02/2014,Z6008,Expense AP Accrual,Bolton MBC Balance Sheet,Bolton MBC Balance Sheet,527.96
6104,3032422,AUTOMATIC ALARMS LIMITED,24/02/2014,Z6008,Expense AP Accrual,Bolton MBC Balance Sheet,Bolton MBC Balance Sheet,756.57
6104,3032444,AUTOMATIC ALARMS LIMITED,24/02/2014,Z6008,Expense AP Accrual,Bolton MBC Balance Sheet,Bolton MBC Balance Sheet,638.64
6104,3028273,AUTOMATIC ALARMS LIMITED,17/02/2014,Z6008,Expense AP Accrual,Bolton MBC Balance Sheet,Bolton MBC Balance Sheet,590.03
6104,3028281,AUTOMATIC ALARMS LIMITED,17/02/2014,Z6008,Expense AP Accrual,Bolton MBC Balance Sheet,Bolton MBC Balance Sheet,664.46
6107,3026450,B & M DAVIES (PLANT HIRE) LTD,13/02/2014,Z6008,Expense AP Accrual,Bolton MBC Balance Sheet,Bolton MBC Balance Sheet,"1,295.00"
6107,3032446,B & M DAVIES (PLANT HIRE) LTD,24/02/2014,33202,Plant Hire,Environmental Services,Bereavement Services,870.00
6107,3032451,B & M DAVIES (PLANT HIRE) LTD,24/02/2014,33202,Plant Hire,Environmental Services,Bereavement Services,703.00
6107,3032439,B & M DAVIES (PLANT HIRE) LTD,24/02/2014,40101,Operational Equipment Maint,Environmental Services,Bereavement Services,517.20
6107,3029434,B & M DAVIES (PLANT HIRE) LTD,20/02/2014,Z6008,Expense AP Accrual,Bolton MBC Balance Sheet,Bolton MBC Balance Sheet,662.50
6107,3024494,B & M DAVIES (PLANT HIRE) LTD,10/02/2014,Z6008,Expense AP Accrual,Bolton MBC Balance Sheet,Bolton MBC Balance Sheet,647.50
6107,3024496,B & M DAVIES (PLANT HIRE) LTD,10/02/2014,Z6008,Expense AP Accrual,Bolton MBC Balance Sheet,Bolton MBC Balance Sheet,647.50
6107,3041491,B & M DAVIES (PLANT HIRE) LTD,27/02/2014,Z6008,Expense AP Accrual,Bolton MBC Balance Sheet,Bolton MBC Balance Sheet,647.50
6107,3029432,B & M DAVIES (PLANT HIRE) LTD,20/02/2014,Z6008,Expense AP Accrual,Bolton MBC Balance Sheet,Bolton MBC Balance Sheet,778.75
2387308,3019367,BAKEWELLS CARE HOME,04/02/2014,54301,Residential Provision,Adult Services,OA  External Provision Residential,"20,125.45"
2387308,3027698,BAKEWELLS CARE HOME,17/02/2014,Z1051,Work in Progress Additions,Adult Services,Adult Services Balance Sheet,"81,650.15"
46283,3026995,BANDMATIC LIMITED,13/02/2014,20100,Day To Day Maintenance,Children's Services,Harwood Youth Centre,"1,225.00"
1651311,3019328,BANKFIELD,04/02/2014,54301,Residential Provision,Adult Services,OA  External Provision Residential,"2,019.05"
898694,3040550,BATHGATE SILICA SAND LTD,27/02/2014,40601,General Materials,Environmental Services,Activities and Operations,524.16
39733,3019295,BEDFORD RESIDENTIAL NURSING CARE HOME,04/02/2014,54302,Nursing Provision,Adult Services,OA  External Provision Residential,"2,025.00"
43069,3020270,BEECH & CO (YORKSHIRE LTD),06/02/2014,53100,Agency Staff  Fulltime,Property Services,Estates & Property Management,"1,849.60"
247279,3019311,BEECHVILLE CARE HOME,04/02/2014,54301,Residential Provision,Adult Services,OA  External Provision Residential,"8,484.30"
248275,3019312,BEECHWOOD HOUSE,04/02/2014,54301,Residential Provision,Adult Services,OA  External Provision Residential,"2,527.00"
185697,3043167,BELL GROUP UK,27/02/2014,Z6008,Expense AP Accrual,Bolton MBC Balance Sheet,Bolton MBC Balance Sheet,859.52
1552722,3019326,BELONG ATHERTON#EPH,04/02/2014,54302,Nursing Provision,Adult Services,MH Residential External Provision,"2,963.90"
1400014,3019324,BELONG WIGAN#EPH,04/02/2014,54301,Residential Provision,Adult Services,OA  External Provision Residential,"1,825.00"
2394295,3020306,BERENDSEN UK LTD#FORMERLY SUNLIGHT SERVICES GRP LTD,06/02/2014,40610,Direct Materials,Environmental Services,Depots,529.06
2387309,3019368,BERKELEY HOUSE,04/02/2014,54302,Nursing Provision,Adult Services,LD Purchaser Residential Care,"10,895.33"
66470,3031692,BERTRAM TRADING LTD#BERTRAM LIBRARY SERVICES,20/02/2014,40753,Book Fund Expenditure,Finance Department,Libraries Info. Services,"7,551.30"
66470,3031689,BERTRAM TRADING LTD#BERTRAM LIBRARY SERVICES,20/02/2014,40753,Book Fund Expenditure,Finance Department,Libraries Info. Services,"5,906.40"
6126,3040546,BETHELL CONSTRUCTION LTD,27/02/2014,Z6008,Expense AP Accrual,Bolton MBC Balance Sheet,Bolton MBC Balance Sheet,"4,097.41"
6126,3040549,BETHELL CONSTRUCTION LTD,27/02/2014,Z6008,Expense AP Accrual,Bolton MBC Balance Sheet,Bolton MBC Balance Sheet,"3,372.74"
6126,3040552,BETHELL CONSTRUCTION LTD,27/02/2014,Z6008,Expense AP Accrual,Bolton MBC Balance Sheet,Bolton MBC Balance Sheet,"3,336.43"
6126,3022845,BETHELL CONSTRUCTION LTD,10/02/2014,Z6008,Expense AP Accrual,Bolton MBC Balance Sheet,Bolton MBC Balance Sheet,"5,020.70"
6126,3027234,BETHELL CONSTRUCTION LTD,17/02/2014,Z6008,Expense AP Accrual,Bolton MBC Balance Sheet,Bolton MBC Balance Sheet,"5,020.97"
6126,3031471,BETHELL CONSTRUCTION LTD,20/02/2014,Z6008,Expense AP Accrual,Bolton MBC Balance Sheet,Bolton MBC Balance Sheet,"4,016.94"
6126,3040541,BETHELL CONSTRUCTION LTD,27/02/2014,Z6008,Expense AP Accrual,Bolton MBC Balance Sheet,Bolton MBC Balance Sheet,"5,373.69"
6126,3040537,BETHELL CONSTRUCTION LTD,27/02/2014,Z6008,Expense AP Accrual,Bolton MBC Balance Sheet,Bolton MBC Balance Sheet,"7,589.07"
6126,3040538,BETHELL CONSTRUCTION LTD,27/02/2014,Z6008,Expense AP Accrual,Bolton MBC Balance Sheet,Bolton MBC Balance Sheet,"4,202.27"
6126,3040539,BETHELL CONSTRUCTION LTD,27/02/2014,Z6008,Expense AP Accrual,Bolton MBC Balance Sheet,Bolton MBC Balance Sheet,"3,582.22"
6126,3040543,BETHELL CONSTRUCTION LTD,27/02/2014,Z6008,Expense AP Accrual,Bolton MBC Balance Sheet,Bolton MBC Balance Sheet,"9,022.35"
6126,3040600,BETHELL CONSTRUCTION LTD,27/02/2014,Z1051,Work in Progress Additions,Highways,Stores,"52,753.24"
6126,3027120,BETHELL CONSTRUCTION LTD,17/02/2014,20501,Engineering Work,Environmental Services,Highways Maintenance Billable Costs,"3,499.20"
6126,3026395,BETHELL CONSTRUCTION LTD,13/02/2014,20501,Engineering Work,Environmental Services,Highways Maintenance Billable Costs,"3,499.20"
6126,3041287,BETHELL CONSTRUCTION LTD,27/02/2014,20501,Engineering Work,Environmental Services,Highways Maintenance Billable Costs,"3,499.20"
6126,3020338,BETHELL CONSTRUCTION LTD,06/02/2014,Z6008,Expense AP Accrual,Bolton MBC Balance Sheet,Bolton MBC Balance Sheet,"1,430.62"
6126,3020340,BETHELL CONSTRUCTION LTD,06/02/2014,Z6008,Expense AP Accrual,Bolton MBC Balance Sheet,Bolton MBC Balance Sheet,"1,821.97"
6126,3020342,BETHELL CONSTRUCTION LTD,06/02/2014,Z6008,Expense AP Accrual,Bolton MBC Balance Sheet,Bolton MBC Balance Sheet,853.33
6126,3020344,BETHELL CONSTRUCTION LTD,06/02/2014,Z6008,Expense AP Accrual,Bolton MBC Balance Sheet,Bolton MBC Balance Sheet,"3,134.68"
6126,3042976,BETHELL CONSTRUCTION LTD,27/02/2014,Z6008,Expense AP Accrual,Bolton MBC Balance Sheet,Bolton MBC Balance Sheet,"8,711.72"
6126,3043565,BETHELL CONSTRUCTION LTD,27/02/2014,Z6008,Expense AP Accrual,Bolton MBC Balance Sheet,Bolton MBC Balance Sheet,"47,545.37"
6126,3043569,BETHELL CONSTRUCTION LTD,27/02/2014,Z6008,Expense AP Accrual,Bolton MBC Balance Sheet,Bolton MBC Balance Sheet,"49,505.80"
6126,3043570,BETHELL CONSTRUCTION LTD,27/02/2014,Z6008,Expense AP Accrual,Bolton MBC Balance Sheet,Bolton MBC Balance Sheet,"28,483.12"
6126,3043572,BETHELL CONSTRUCTION LTD,27/02/2014,Z6008,Expense AP Accrual,Bolton MBC Balance Sheet,Bolton MBC Balance Sheet,"24,524.95"
2523290,3025390,BI-LINE LTD,13/02/2014,31305,Vehicle Servicing,Environmental Services,Transport Support Service,"1,767.50"
2523290,3041239,BI-LINE LTD,27/02/2014,31305,Vehicle Servicing,Environmental Services,Transport Support Service,"2,477.50"
2523290,3025372,BI-LINE LTD,13/02/2014,31305,Vehicle Servicing,Environmental Services,Transport Support Service,"1,868.00"
2523290,3025385,BI-LINE LTD,13/02/2014,31305,Vehicle Servicing,Environmental Services,Transport Support Service,"1,417.50"
814638,3040923,BIRKDALE DESIGN LTD,27/02/2014,40150,Office Furniture Purchase,Housing GRF,Furnished Tenancies,774.80
814638,3030132,BIRKDALE DESIGN LTD,20/02/2014,40150,Office Furniture Purchase,Housing GRF,Furnished Tenancies,774.80
814638,3030145,BIRKDALE DESIGN LTD,20/02/2014,40150,Office Furniture Purchase,Housing GRF,Furnished Tenancies,774.80
814638,3030147,BIRKDALE DESIGN LTD,20/02/2014,40150,Office Furniture Purchase,Housing GRF,Furnished Tenancies,573.03
814638,3030140,BIRKDALE DESIGN LTD,20/02/2014,40150,Office Furniture Purchase,Housing GRF,Furnished Tenancies,774.80
814638,3030142,BIRKDALE DESIGN LTD,20/02/2014,40150,Office Furniture Purchase,Housing GRF,Furnished Tenancies,774.80
814638,3030154,BIRKDALE DESIGN LTD,20/02/2014,40150,Office Furniture Purchase,Housing GRF,Furnished Tenancies,859.04
814638,3043524,BIRKDALE DESIGN LTD,27/02/2014,40150,Office Furniture Purchase,Housing GRF,Local Welfare Provision Pilot,573.04
814638,3043540,BIRKDALE DESIGN LTD,27/02/2014,40150,Office Furniture Purchase,Housing GRF,Local Welfare Provision Pilot,541.84
814638,3030136,BIRKDALE DESIGN LTD,20/02/2014,40150,Office Furniture Purchase,Housing GRF,Local Welfare Provision Pilot,"1,034.80"
814638,3020978,BIRKDALE DESIGN LTD,27/02/2014,40150,Office Furniture Purchase,Housing GRF,Local Welfare Provision Pilot,970.32
814638,3040914,BIRKDALE DESIGN LTD,27/02/2014,40150,Office Furniture Purchase,Housing GRF,Local Welfare Provision Pilot,516.88
814638,3040919,BIRKDALE DESIGN LTD,27/02/2014,40150,Office Furniture Purchase,Housing GRF,Local Welfare Provision Pilot,573.04
814638,3040427,BIRKDALE DESIGN LTD,24/02/2014,40150,Office Furniture Purchase,Housing GRF,Local Welfare Provision Pilot,970.32
814638,3040428,BIRKDALE DESIGN LTD,27/02/2014,40150,Office Furniture Purchase,Housing GRF,Local Welfare Provision Pilot,541.84
814638,3040433,BIRKDALE DESIGN LTD,27/02/2014,40150,Office Furniture Purchase,Housing GRF,Local Welfare Provision Pilot,601.12
814638,3040460,BIRKDALE DESIGN LTD,27/02/2014,40150,Office Furniture Purchase,Housing GRF,Local Welfare Provision Pilot,854.88
814638,3040462,BIRKDALE DESIGN LTD,27/02/2014,40150,Office Furniture Purchase,Housing GRF,Local Welfare Provision Pilot,546.00
814638,3042899,BIRKDALE DESIGN LTD,27/02/2014,40150,Office Furniture Purchase,Housing GRF,Furnished Tenancies,774.80
814638,3042901,BIRKDALE DESIGN LTD,27/02/2014,40150,Office Furniture Purchase,Housing GRF,Furnished Tenancies,774.80
7948,3019259,BLACKROD HOUSE,04/02/2014,54301,Residential Provision,Adult Services,MH Residential External Provision,"1,959.95"
7948,3019259,BLACKROD HOUSE,04/02/2014,54301,Residential Provision,Adult Services,OA  External Provision Residential,"21,695.80"
2405395,3029927,BNP PARIBAS LEASING SOLUTIONS#2,20/02/2014,41101,Catering ProvisionsFood,Children's Services,Admin IT (Schools),621.00
43938,3029858,BOLTON AT HOME#137,20/02/2014,52200,Contracted Services,Environmental Services,Activities and Operations,"6,720.00"
43938,3029863,BOLTON AT HOME#137,20/02/2014,52200,Contracted Services,Environmental Services,Activities and Operations,"1,505.00"
43938,3032647,BOLTON AT HOME#137,24/02/2014,20100,Day To Day Maintenance,Children's Services,Admin Asset Management,990.00
43938,3031911,BOLTON AT HOME#137,20/02/2014,Z1051,Work in Progress Additions,Housing GRF,Capital  General Fund,"182,363.14"
7431,3040372,BOLTON BLINDS T/A BLINDTEX,27/02/2014,40150,Office Furniture Purchase,Property Services,Accomm Rationalisation Strategy,"12,262.50"
247297,3020686,BOLTON BULLETS,06/02/2014,52200,Contracted Services,Children's Services,Admin Commissioning,"1,250.00"
8990,3026355,BOLTON CARPET WAREHOUSE,13/02/2014,40150,Office Furniture Purchase,Housing GRF,Local Welfare Provision Pilot,622.21
8990,3026358,BOLTON CARPET WAREHOUSE,13/02/2014,40150,Office Furniture Purchase,Housing GRF,Local Welfare Provision Pilot,622.21
8990,3026359,BOLTON CARPET WAREHOUSE,13/02/2014,40150,Office Furniture Purchase,Housing GRF,Local Welfare Provision Pilot,622.21
8990,3026362,BOLTON CARPET WAREHOUSE,13/02/2014,40150,Office Furniture Purchase,Housing GRF,Local Welfare Provision Pilot,622.21
8990,3026365,BOLTON CARPET WAREHOUSE,13/02/2014,40150,Office Furniture Purchase,Housing GRF,Local Welfare Provision Pilot,622.21
8990,3026367,BOLTON CARPET WAREHOUSE,13/02/2014,40150,Office Furniture Purchase,Housing GRF,Local Welfare Provision Pilot,700.74
8990,3026372,BOLTON CARPET WAREHOUSE,27/02/2014,40150,Office Furniture Purchase,Housing GRF,Local Welfare Provision Pilot,700.74
8990,3026375,BOLTON CARPET WAREHOUSE,13/02/2014,40150,Office Furniture Purchase,Housing GRF,Local Welfare Provision Pilot,700.74
8990,3026379,BOLTON CARPET WAREHOUSE,13/02/2014,40150,Office Furniture Purchase,Housing GRF,Local Welfare Provision Pilot,700.74
8990,3027432,BOLTON CARPET WAREHOUSE,17/02/2014,40150,Office Furniture Purchase,Housing GRF,Local Welfare Provision Pilot,502.80
8990,3026399,BOLTON CARPET WAREHOUSE,13/02/2014,40150,Office Furniture Purchase,Housing GRF,Local Welfare Provision Pilot,622.21
8990,3026401,BOLTON CARPET WAREHOUSE,13/02/2014,40150,Office Furniture Purchase,Housing GRF,Local Welfare Provision Pilot,622.21
8990,3026402,BOLTON CARPET WAREHOUSE,13/02/2014,40150,Office Furniture Purchase,Housing GRF,Local Welfare Provision Pilot,622.21
8990,3026405,BOLTON CARPET WAREHOUSE,13/02/2014,40150,Office Furniture Purchase,Housing GRF,Local Welfare Provision Pilot,622.21
8990,3026407,BOLTON CARPET WAREHOUSE,13/02/2014,40150,Office Furniture Purchase,Housing GRF,Local Welfare Provision Pilot,700.74
8990,3026411,BOLTON CARPET WAREHOUSE,13/02/2014,40150,Office Furniture Purchase,Housing GRF,Local Welfare Provision Pilot,622.21
8990,3026425,BOLTON CARPET WAREHOUSE,13/02/2014,40150,Office Furniture Purchase,Housing GRF,Furnished Tenancies,622.21
8990,3026433,BOLTON CARPET WAREHOUSE,13/02/2014,40150,Office Furniture Purchase,Housing GRF,Furnished Tenancies,622.21
8990,3026996,BOLTON CARPET WAREHOUSE,13/02/2014,40150,Office Furniture Purchase,Housing GRF,Furnished Tenancies,700.74
8990,3027435,BOLTON CARPET WAREHOUSE,17/02/2014,40150,Office Furniture Purchase,Housing GRF,Local Welfare Provision Pilot,541.91
53579,3042878,BOLTON CHILDRENS OPPORTUNITY GROUP#COG,27/02/2014,20100,Day To Day Maintenance,Children's Services,Prim NonDeleg SEN Parent Partnrshp,640.00
7437,3042785,BOLTON COMMUNITY HOMES,27/02/2014,52200,Contracted Services,Finance Department,Local Support Scheme,"1,430.63"
43551,3044561,BOLTON COMMUNITY LEISURE LTD,28/02/2014,52200,Contracted Services,Development & Regen,The Leisure Trust,"206,823.33"
8439,3020997,BOLTON CVS#BOLTON COMMUNITY & VOLUNTARY SERVICES,06/02/2014,48202,General Publicity,Public Health,Alcohol Health Improvement,970.00
8709,3026361,BOLTON MUSIC SERVICE#BOLTON COUNCIL,13/02/2014,48509,Other Fees,Children's Services,Music Serv  Events and External Funding,"6,283.08"
6149,3029523,BOLTON STONE RESTORATION LTD,20/02/2014,20100,Day To Day Maintenance,Property Services,Corporate Property Revenue Project Transfers to Other Projects,"7,162.50"
7463,3043313,BOLTON TREE & LANDSCAPE SERVICES LTD,27/02/2014,52200,Contracted Services,Environmental Services,Activities and Operations,720.00
6152,3032535,BOLTON WALL & FLOORING LTD,24/02/2014,20100,Day To Day Maintenance,Property Services,Accomm Rationalisation Strategy,"9,887.00"
2428292,3024427,BOLTON WHITES HOTEL LTD,10/02/2014,48203,Marketing,Central Services,Marketing  General,515.83
8706,3030071,BOLTON WISE LTD#EATWISE#WISEWORKS#WISETRAINING (14-19)#STYLE WISE#MOJO TRUST,24/02/2014,52200,Contracted Services,Environmental Services,Assets,"2,127.95"
8706,3030073,BOLTON WISE LTD#EATWISE#WISEWORKS#WISETRAINING (14-19)#STYLE WISE#MOJO TRUST,24/02/2014,52200,Contracted Services,Environmental Services,Assets,538.32
8706,3020688,BOLTON WISE LTD#EATWISE#WISEWORKS#WISETRAINING (14-19)#STYLE WISE#MOJO TRUST,06/02/2014,52200,Contracted Services,Children's Services,Admin Commissioning,"2,205.00"
7465,3032548,BOLTON YOUNG PERSONS HOUSING SCHEME#BYPHS,24/02/2014,52000,Vol Assoc Grants  General,Children's Services,Res Serv Agency Placements,"1,560.00"
7465,3032551,BOLTON YOUNG PERSONS HOUSING SCHEME#BYPHS,24/02/2014,52000,Vol Assoc Grants  General,Children's Services,Res Serv Agency Placements,882.64
7465,3032552,BOLTON YOUNG PERSONS HOUSING SCHEME#BYPHS,24/02/2014,52000,Vol Assoc Grants  General,Children's Services,Res Serv Agency Placements,917.96
7465,3025124,BOLTON YOUNG PERSONS HOUSING SCHEME#BYPHS,13/02/2014,52000,Vol Assoc Grants  General,Children's Services,Res Serv Agency Placements,"2,876.90"
2053,3027869,BOOTS THE CHEMIST,17/02/2014,52200,Contracted Services,Public Health,Sexual Health Improvement,536.06
2053,3040533,BOOTS THE CHEMIST,27/02/2014,52200,Contracted Services,Adult Services,Drugs Pooled Treatment Budget,551.50
2053,3040548,BOOTS THE CHEMIST,27/02/2014,52200,Contracted Services,Adult Services,Drugs Pooled Treatment Budget,901.70
1548543,3019325,BRIDEOAKE CARE HOME,04/02/2014,54301,Residential Provision,Adult Services,OA  External Provision Residential,"2,025.00"
1475113,3019771,BRIGHT DIRECTION TRAINING LIMITED,06/02/2014,44056,Clients Training Courses,Development & Regen,Adult Education,800.00
1475113,3032011,BRIGHT DIRECTION TRAINING LIMITED,20/02/2014,44056,Clients Training Courses,Development & Regen,Adult Education,800.00
1475113,3032009,BRIGHT DIRECTION TRAINING LIMITED,20/02/2014,44056,Clients Training Courses,Development & Regen,Adult Education,800.00
1475113,3019769,BRIGHT DIRECTION TRAINING LIMITED,06/02/2014,44056,Clients Training Courses,Development & Regen,Adult Education,800.00
1475113,3019765,BRIGHT DIRECTION TRAINING LIMITED,06/02/2014,44056,Clients Training Courses,Development & Regen,Adult Education,600.00
243438,3040975,BRIGHT INTERACTIVE LTD,27/02/2014,45431,Computer Software Licences,Central Services,Communication & Marketing Agency,990.00
20980,3022455,BRITISH GAS BUSINESS,10/02/2014,21200,Gas  General,Chief Executives Department,Policy Performance & Communications Mngmnt,837.12
20980,3022455,BRITISH GAS BUSINESS,10/02/2014,21200,Gas  General,Environmental Services,Assets,"1,463.80"
20980,3022455,BRITISH GAS BUSINESS,10/02/2014,21200,Gas  General,Environmental Services,Bereavement Services,"6,942.08"
20980,3022455,BRITISH GAS BUSINESS,10/02/2014,21200,Gas  General,Environmental Services,Community Centres  Sunnyside,566.88
20980,3022455,BRITISH GAS BUSINESS,10/02/2014,21200,Gas  General,Environmental Services,Depots,"6,290.17"
20980,3022455,BRITISH GAS BUSINESS,10/02/2014,21200,Gas  General,Environmental Services,Mngmnt & Admin Overhead,603.41
20980,3022455,BRITISH GAS BUSINESS,10/02/2014,21200,Gas  General,Development & Regen,The Leverhulme Centre,573.93
20980,3022455,BRITISH GAS BUSINESS,10/02/2014,21200,Gas  General,Children's Services,Gt Lever CC,"1,111.91"
20980,3022455,BRITISH GAS BUSINESS,10/02/2014,21200,Gas  General,Children's Services,Harvey CC,"1,022.28"
20980,3022455,BRITISH GAS BUSINESS,10/02/2014,21200,Gas  General,Children's Services,Heaton & Lostock CC,763.75
20980,3022455,BRITISH GAS BUSINESS,10/02/2014,21200,Gas  General,Children's Services,Lord Street and Grosvenor CC,656.45
20980,3022455,BRITISH GAS BUSINESS,10/02/2014,21200,Gas  General,Children's Services,Oxford Grove CC,715.01
20980,3022455,BRITISH GAS BUSINESS,10/02/2014,21200,Gas  General,Children's Services,Res Serv Mayor Street,"2,094.51"
20980,3022455,BRITISH GAS BUSINESS,10/02/2014,21200,Gas  General,Children's Services,Technical Innovation Centre,673.51
20980,3022455,BRITISH GAS BUSINESS,10/02/2014,21200,Gas  General,Children's Services,Tonge CC,871.47
20980,3022455,BRITISH GAS BUSINESS,10/02/2014,21200,Gas  General,Finance Department,Libraries  Farnworth,593.82
20980,3022455,BRITISH GAS BUSINESS,10/02/2014,21200,Gas  General,Finance Department,Smithills Hall Museum,748.51
20980,3022455,BRITISH GAS BUSINESS,10/02/2014,21200,Gas  General,Housing GRF,Access and Advice Housing Options Centre,665.03
20980,3022455,BRITISH GAS BUSINESS,10/02/2014,21200,Gas  General,Property Services,Alderbank EPH,"2,127.24"
20980,3022455,BRITISH GAS BUSINESS,10/02/2014,21200,Gas  General,Property Services,Brazley Centre,623.85
20980,3022455,BRITISH GAS BUSINESS,10/02/2014,21200,Gas  General,Property Services,Castle Hill,"4,760.90"
20980,3022455,BRITISH GAS BUSINESS,10/02/2014,21200,Gas  General,Property Services,Darley Court EPH,"2,913.72"
20980,3022455,BRITISH GAS BUSINESS,10/02/2014,21200,Gas  General,Property Services,Farnworth Area Office,854.04
20980,3022455,BRITISH GAS BUSINESS,10/02/2014,21200,Gas  General,Property Services,Firwood EPH,"2,251.20"
20980,3022455,BRITISH GAS BUSINESS,10/02/2014,21200,Gas  General,Property Services,Horwich Area Office,921.32
20980,3022455,BRITISH GAS BUSINESS,10/02/2014,21200,Gas  General,Property Services,Laburnum Lodge EPH,"3,213.96"
20980,3022455,BRITISH GAS BUSINESS,10/02/2014,21200,Gas  General,Property Services,Merehall,841.45
20980,3022455,BRITISH GAS BUSINESS,10/02/2014,21200,Gas  General,Property Services,Paderborn House,"4,111.58"
20980,3022455,BRITISH GAS BUSINESS,10/02/2014,21200,Gas  General,Property Services,The Harrowbys SEC,644.06
20980,3022455,BRITISH GAS BUSINESS,10/02/2014,21200,Gas  General,Property Services,Thicketford Centre,"1,722.32"
20980,3022455,BRITISH GAS BUSINESS,10/02/2014,21200,Gas  General,Property Services,Town Hall,"22,290.85"
20980,3022455,BRITISH GAS BUSINESS,10/02/2014,21200,Gas  General,Property Services,Wellsprings  BMBC,"4,701.05"
20980,3022455,BRITISH GAS BUSINESS,10/02/2014,21200,Gas  General,Property Services,Westhoughton Area Office,"2,059.81"
20980,3022455,BRITISH GAS BUSINESS,10/02/2014,21200,Gas  General,Property Services,Wilfred Gere EPH,"1,542.59"
20980,3022455,BRITISH GAS BUSINESS,10/02/2014,21200,Gas  General,Property Services,Winifred Kettle,"1,817.26"
20980,3022455,BRITISH GAS BUSINESS,10/02/2014,21200,Gas  General,Central Corporate,Land & Property Portfolios,"8,048.79"
20980,3040832,BRITISH GAS BUSINESS,27/02/2014,21200,Gas  General,Chief Executives Department,Policy Performance & Communications Mngmnt,757.23
20980,3040832,BRITISH GAS BUSINESS,27/02/2014,21200,Gas  General,Environmental Services,Assets,"2,970.62"
20980,3040832,BRITISH GAS BUSINESS,27/02/2014,21200,Gas  General,Environmental Services,Bereavement Services,"8,120.73"
20980,3040832,BRITISH GAS BUSINESS,27/02/2014,21200,Gas  General,Environmental Services,Depots,"5,504.88"
20980,3040832,BRITISH GAS BUSINESS,27/02/2014,21200,Gas  General,Environmental Services,Mngmnt & Admin Overhead,635.99
20980,3040832,BRITISH GAS BUSINESS,27/02/2014,21200,Gas  General,Development & Regen,The Leverhulme Centre,"1,344.17"
20980,3040832,BRITISH GAS BUSINESS,27/02/2014,21200,Gas  General,Children's Services,Farnworth Youth Centre,"1,151.49"
20980,3040832,BRITISH GAS BUSINESS,27/02/2014,21200,Gas  General,Children's Services,Gt Lever CC,"1,526.74"
20980,3040832,BRITISH GAS BUSINESS,27/02/2014,21200,Gas  General,Children's Services,Harvey CC,771.39
20980,3040832,BRITISH GAS BUSINESS,27/02/2014,21200,Gas  General,Children's Services,Heaton & Lostock CC,790.45
20980,3040832,BRITISH GAS BUSINESS,27/02/2014,21200,Gas  General,Children's Services,Lord Street and Grosvenor CC,721.01
20980,3040832,BRITISH GAS BUSINESS,27/02/2014,21200,Gas  General,Children's Services,Oxford Grove CC,751.88
20980,3040832,BRITISH GAS BUSINESS,27/02/2014,21200,Gas  General,Children's Services,Res Serv Mayor Street,"2,585.68"
20980,3040832,BRITISH GAS BUSINESS,27/02/2014,21200,Gas  General,Children's Services,Technical Innovation Centre,835.55
20980,3040832,BRITISH GAS BUSINESS,27/02/2014,21200,Gas  General,Children's Services,Tonge CC,934.03
20980,3040832,BRITISH GAS BUSINESS,27/02/2014,21200,Gas  General,Children's Services,Waggon Road YP Centre,636.67
20980,3040832,BRITISH GAS BUSINESS,27/02/2014,21200,Gas  General,Children's Services,Washacre Childrens & Family Support Centre,577.30
20980,3040832,BRITISH GAS BUSINESS,27/02/2014,21200,Gas  General,Finance Department,Libraries  Farnworth,684.54
20980,3040832,BRITISH GAS BUSINESS,27/02/2014,21200,Gas  General,Finance Department,Libraries  Horwich,"5,895.15"
20980,3040832,BRITISH GAS BUSINESS,27/02/2014,21200,Gas  General,Finance Department,Smithills Hall Museum,833.57
20980,3040832,BRITISH GAS BUSINESS,27/02/2014,21200,Gas  General,Housing GRF,Access and Advice Housing Options Centre,"1,249.48"
20980,3040832,BRITISH GAS BUSINESS,27/02/2014,21200,Gas  General,Property Services,Alderbank EPH,"2,235.06"
20980,3040832,BRITISH GAS BUSINESS,27/02/2014,21200,Gas  General,Property Services,Castle Hill,"5,113.71"
20980,3040832,BRITISH GAS BUSINESS,27/02/2014,21200,Gas  General,Property Services,Darley Court EPH,"2,666.28"
20980,3040832,BRITISH GAS BUSINESS,27/02/2014,21200,Gas  General,Property Services,Farnworth Area Office,986.22
20980,3040832,BRITISH GAS BUSINESS,27/02/2014,21200,Gas  General,Property Services,Horwich Area Office,939.99
20980,3040832,BRITISH GAS BUSINESS,27/02/2014,21200,Gas  General,Property Services,Horwich Day Centre,638.79
20980,3040832,BRITISH GAS BUSINESS,27/02/2014,21200,Gas  General,Property Services,Jubilee Centre,"10,551.80"
20980,3040832,BRITISH GAS BUSINESS,27/02/2014,21200,Gas  General,Property Services,Laburnum Lodge EPH,"3,268.36"
20980,3040832,BRITISH GAS BUSINESS,27/02/2014,21200,Gas  General,Property Services,Merehall,940.49
20980,3040832,BRITISH GAS BUSINESS,27/02/2014,21200,Gas  General,Property Services,New Lane 24,622.76
20980,3040832,BRITISH GAS BUSINESS,27/02/2014,21200,Gas  General,Property Services,Paderborn House,"4,452.86"
20980,3040832,BRITISH GAS BUSINESS,27/02/2014,21200,Gas  General,Property Services,The Harrowbys SEC,713.47
20980,3040832,BRITISH GAS BUSINESS,27/02/2014,21200,Gas  General,Property Services,Thicketford Centre,"1,812.20"
20980,3040832,BRITISH GAS BUSINESS,27/02/2014,21200,Gas  General,Property Services,Town Hall,"22,458.36"
20980,3040832,BRITISH GAS BUSINESS,27/02/2014,21200,Gas  General,Property Services,Wellsprings  BMBC,"2,302.41"
20980,3040832,BRITISH GAS BUSINESS,27/02/2014,21200,Gas  General,Property Services,Westhoughton Area Office,"2,127.13"
20980,3040832,BRITISH GAS BUSINESS,27/02/2014,21200,Gas  General,Property Services,Wilfred Gere EPH,"1,791.66"
20980,3040832,BRITISH GAS BUSINESS,27/02/2014,21200,Gas  General,Property Services,Winifred Kettle,"1,909.78"
20980,3040832,BRITISH GAS BUSINESS,27/02/2014,21200,Gas  General,Central Corporate,Land & Property Portfolios,"8,233.02"
20980,3022461,BRITISH GAS BUSINESS,10/02/2014,21100,Electricity  General,Housing GRF,Dispersed Properties,940.52
20980,3022461,BRITISH GAS BUSINESS,10/02/2014,21100,Electricity  General,Property Services,22 Queen Street,618.03
20980,3022461,BRITISH GAS BUSINESS,10/02/2014,21100,Electricity  General,Property Services,Market Street Westhoughton,834.41
20980,3019405,BRITISH GAS BUSINESS,06/02/2014,21200,Gas  General,Property Services,Marsden Road(BASE),"6,244.34"
20980,3028342,BRITISH GAS BUSINESS,17/02/2014,21200,Gas  General,Housing GRF,Benjamin Court Temporary Accommodation,"1,694.90"
20980,3028342,BRITISH GAS BUSINESS,17/02/2014,21200,Gas  General,Property Services,Marsden Road(BASE),"1,943.98"
125827,3036368,BRITISH GAS BUSINESS,26/02/2014,48509,Other Fees,Property Services,Energy Payments Account,654.37
115823,3029489,BRONTE NATURAL SPRING WATER LTD#BRONTE WATER COOLERS LIMITED,20/02/2014,40613,Goods for Resale,Environmental Services,Civic Catering  General,513.10
2411303,3019731,BROOK PENNINE,06/02/2014,48501,Artistes Fees,Public Health,HIV,"10,000.00"
264233,3019316,BROOKFIELD RESIDENTIAL CARE HOME LTD,04/02/2014,54301,Residential Provision,Adult Services,MH Residential External Provision,"2,750.00"
7524,3019278,BROOKVALE,04/02/2014,54301,Residential Provision,Adult Services,LD Purchaser Residential Care,"8,923.30"
6169,3027121,BROTHERS OF CHARITY SERVICES,17/02/2014,52200,Contracted Services,Adult Services,LD Purchaser Day Services,801.16
6169,3027121,BROTHERS OF CHARITY SERVICES,17/02/2014,52200,Contracted Services,Adult Services,LD Purchaser Domiciliary Care,937.44
6169,3027119,BROTHERS OF CHARITY SERVICES,17/02/2014,52200,Contracted Services,Adult Services,LD Purchaser Domiciliary Care,"2,124.40"
6169,3040424,BROTHERS OF CHARITY SERVICES,24/02/2014,52200,Contracted Services,Adult Services,LD Purchaser Domiciliary Care,"2,124.40"
6169,3019275,BROTHERS OF CHARITY SERVICES,04/02/2014,54302,Nursing Provision,Adult Services,LD Purchaser Residential Care,"4,521.50"
7528,3019242,BROUGHTON HOUSE#EPH,04/02/2014,54301,Residential Provision,Adult Services,OA  External Provision Residential,"3,817.40"
7528,3019242,BROUGHTON HOUSE#EPH,04/02/2014,54302,Nursing Provision,Adult Services,OA  External Provision Residential,"1,908.70"
7529,3019243,BROWFIELD RESIDENTIAL CARE HOME,04/02/2014,54301,Residential Provision,Adult Services,MH Residential External Provision,"6,150.90"
2118292,3037795,BS SUPPORT SERVICES LIMITED,24/02/2014,19103,Training Exp  In House,Children's Services,Youth Offending Team,"2,060.45"
14681,3027115,BT GLOBAL SERVICES,17/02/2014,45100,Telephones Direct Rental,Adult Services,Independent,810.49
55912,3024654,BUILDING DESIGN PARTNERSHIP LTD,13/02/2014,Z1051,Work in Progress Additions,Property Services,Property Services Balance Sheet,"16,335.60"
155782,3040909,BUILDING RESEARCH ESTABLISHMENT LTD T/A BRE,27/02/2014,52200,Contracted Services,Property Services,Corporate Asset Planning,588.87
6179,3040953,BURNT TREE GROUP,27/02/2014,33201,Transport Hire,Environmental Services,Transport Support Service,715.00
6179,3040959,BURNT TREE GROUP,27/02/2014,33201,Transport Hire,Environmental Services,Transport Support Service,880.00
6179,3040961,BURNT TREE GROUP,27/02/2014,33201,Transport Hire,Environmental Services,Transport Support Service,793.00
6179,3020932,BURNT TREE GROUP,06/02/2014,33201,Transport Hire,Environmental Services,Transport Support Service,"1,708.00"
6179,3027705,BURNT TREE GROUP,17/02/2014,33201,Transport Hire,Environmental Services,Transport Support Service,910.00
6179,3040963,BURNT TREE GROUP,27/02/2014,33201,Transport Hire,Environmental Services,Transport Support Service,732.00
6179,3040965,BURNT TREE GROUP,27/02/2014,33201,Transport Hire,Environmental Services,Transport Support Service,650.00
1551594,3032529,BY THE BRIDGE NORTH WEST,24/02/2014,52000,Vol Assoc Grants  General,Children's Services,Res Serv Agency Placements,"3,456.00"
1551594,3032533,BY THE BRIDGE NORTH WEST,24/02/2014,52000,Vol Assoc Grants  General,Children's Services,Res Serv Agency Placements,"3,780.00"
1551594,3032532,BY THE BRIDGE NORTH WEST,24/02/2014,52000,Vol Assoc Grants  General,Children's Services,Res Serv Agency Placements,"3,426.88"
163197,3025197,BYROM CLARK ROBERTS LIMITED,13/02/2014,48509,Other Fees,Environmental Services,Bereavement Services,"2,407.50"
6182,3030319,C HORROCKS & SONS LTD,24/02/2014,53100,Agency Staff  Fulltime,Property Services,Operational Facilities Management,"1,474.20"
6182,3030353,C HORROCKS & SONS LTD,24/02/2014,53100,Agency Staff  Fulltime,Property Services,Operational Facilities Management,"1,680.00"
6187,3026631,CABLE SERVICES (LIVERPOOL) LTD,13/02/2014,40610,Direct Materials,Environmental Services,Lighting / Stores Works Budget,"2,406.00"
2521346,3020962,CAIN ORMONDROYD,06/02/2014,48502,Legal Fees,Finance Department,Council Tax,800.00
2267458,3037033,CAIS LTD,24/02/2014,54301,Residential Provision,Adult Services,Drugs Pooled Treatment Budget,"18,820.00"
6191,3043309,CAPITA BUSINESS SERVICES LTD,27/02/2014,45431,Computer Software Licences,Finance Department,T&B Systems Project Team,"14,500.00"
6191,3040587,CAPITA BUSINESS SERVICES LTD,27/02/2014,45400,Computer Purchase,Finance Department,Libraries Info. Systems,"1,565.00"
6191,3028614,CAPITA BUSINESS SERVICES LTD,17/02/2014,19104,Training Exp  Ext Seminars,Finance Department,T&B Systems Project Team,650.00
6191,3040991,CAPITA BUSINESS SERVICES LTD,27/02/2014,45431,Computer Software Licences,Finance Department,T&B Systems Project Team,"4,164.44"
6196,3020965,CARE TODAY CHILDRENS SERVICE,06/02/2014,52000,Vol Assoc Grants  General,Children's Services,Res Serv Agency Placements,"11,137.99"
63390,3027482,CARE UK HOMECARE#CARE UK (BOLTON),17/02/2014,52200,Contracted Services,Adult Services,OA  Home Care Services external provision,"53,569.35"
63390,3027478,CARE UK HOMECARE#CARE UK (BOLTON),17/02/2014,52200,Contracted Services,Adult Services,OA  Home Care Services external provision,508.37
63390,3027476,CARE UK HOMECARE#CARE UK (BOLTON),17/02/2014,52200,Contracted Services,Adult Services,OA  Home Care Services external provision,659.14
229284,3020987,CAREERVISION LIMITED,10/02/2014,45431,Computer Software Licences,Children's Services,Admin Info Mgemnt Unit,"1,050.00"
78906,3026479,CAREWATCH (BOLTON),13/02/2014,52200,Contracted Services,Adult Services,OA  Home Care Services external provision,"41,293.16"
78906,3026400,CAREWATCH (BOLTON),13/02/2014,52200,Contracted Services,Adult Services,OA  Home Care Services external provision,655.59
566695,3019873,CARING ALTERNATIVES LIMITED,06/02/2014,52200,Contracted Services,Adult Services,MH Residential External Provision,"2,396.40"
566695,3020000,CARING ALTERNATIVES LIMITED,13/02/2014,52200,Contracted Services,Adult Services,MH Residential External Provision,"2,428.60"
566695,3019998,CARING ALTERNATIVES LIMITED,06/02/2014,52200,Contracted Services,Adult Services,MH Residential External Provision,"2,428.60"
566695,3024545,CARING ALTERNATIVES LIMITED,13/02/2014,52200,Contracted Services,Adult Services,MH Residential External Provision,"2,428.60"
566695,3024544,CARING ALTERNATIVES LIMITED,13/02/2014,52200,Contracted Services,Adult Services,MH Residential External Provision,"2,396.40"
566695,3032545,CARING ALTERNATIVES LIMITED,24/02/2014,52000,Vol Assoc Grants  General,Children's Services,Res Serv Agency Placements,"1,218.14"
566695,3019903,CARING ALTERNATIVES LIMITED,06/02/2014,52200,Contracted Services,Adult Services,MH Residential External Provision,"2,396.40"
566695,3019907,CARING ALTERNATIVES LIMITED,06/02/2014,52200,Contracted Services,Adult Services,MH Residential External Provision,"1,672.00"
566695,3019909,CARING ALTERNATIVES LIMITED,06/02/2014,52200,Contracted Services,Adult Services,MH Residential External Provision,"1,672.00"
566695,3024548,CARING ALTERNATIVES LIMITED,13/02/2014,52200,Contracted Services,Adult Services,MH Residential External Provision,"1,672.00"
566695,3019407,CARING ALTERNATIVES LIMITED,06/02/2014,52200,Contracted Services,Adult Services,MH Residential External Provision,"2,073.00"
2441321,3027114,REDACTED - PERSONAL DATA,17/02/2014,48509,Other Fees,Children's Services,Special Commissioning,990.00
252578,3019313,CARR BANK HOUSE#PAULINE JONES,04/02/2014,54301,Residential Provision,Adult Services,MH Residential External Provision,"1,960.85"
1596291,3031937,CASTLE HILL POLICE AMATEUR BOXING CLUB#ABA,20/02/2014,48509,Other Fees,Finance Department,FM Contract,"2,500.00"
482511,3030081,CATEREPAIR LTD,20/02/2014,Z6008,Expense AP Accrual,Bolton MBC Balance Sheet,Bolton MBC Balance Sheet,617.19
482511,3043342,CATEREPAIR LTD,27/02/2014,20100,Day To Day Maintenance,Property Services,Accomm Rationalisation Strategy,"1,488.05"
482511,3030010,CATEREPAIR LTD,20/02/2014,Z6008,Expense AP Accrual,Bolton MBC Balance Sheet,Bolton MBC Balance Sheet,513.83
2526503,3029401,CAUSE4 LTD,20/02/2014,19104,Training Exp  Ext Seminars,Children's Services,Gtr Manchester Music Education Hub,"1,578.00"
2526503,3031988,CAUSE4 LTD,20/02/2014,48509,Other Fees,Finance Department,LMA External Funded Projects,507.50
47524,3026776,CEFNDY HEALTHCARE#CEFNDY ENTERPRISES,13/02/2014,44051,Clients Aids & Adaptations,Adult Services,ICES,729.64
13368,3019746,CENTURION HYDRAULICS LTD,06/02/2014,31305,Vehicle Servicing,Environmental Services,Transport Support Service,541.50
2552,3043577,CHARLTONS SWEEPER HIRE LTD,27/02/2014,Z6008,Expense AP Accrual,Bolton MBC Balance Sheet,Bolton MBC Balance Sheet,"1,250.00"
2552,3031941,CHARLTONS SWEEPER HIRE LTD,20/02/2014,Z6008,Expense AP Accrual,Bolton MBC Balance Sheet,Bolton MBC Balance Sheet,750.00
2552,3021552,CHARLTONS SWEEPER HIRE LTD,10/02/2014,Z6008,Expense AP Accrual,Bolton MBC Balance Sheet,Bolton MBC Balance Sheet,"1,000.00"
2552,3025379,CHARLTONS SWEEPER HIRE LTD,13/02/2014,Z6008,Expense AP Accrual,Bolton MBC Balance Sheet,Bolton MBC Balance Sheet,"1,250.00"
6205,3041446,CHASSIS & CAB SPECIALISTS,27/02/2014,52200,Contracted Services,Environmental Services,Transport Support Service,"1,120.00"
6205,3025186,CHASSIS & CAB SPECIALISTS,13/02/2014,52200,Contracted Services,Environmental Services,Transport Support Service,"1,120.00"
2554,3019244,CHATAWAY NURSING HOME,04/02/2014,54302,Nursing Provision,Adult Services,MH Residential External Provision,"2,543.80"
1671328,3019329,CHESTER HOUSE CARE HOME,04/02/2014,54301,Residential Provision,Adult Services,LD Purchaser Residential Care,"2,160.00"
6131,3026389,CHILD ACTION NORTHWEST,13/02/2014,52000,Vol Assoc Grants  General,Children's Services,Res Serv Agency Placements,"4,448.19"
6131,3026388,CHILD ACTION NORTHWEST,13/02/2014,52000,Vol Assoc Grants  General,Children's Services,Res Serv Agency Placements,"3,542.99"
6131,3037808,CHILD ACTION NORTHWEST,24/02/2014,52200,Contracted Services,Children's Services,Youth Offending Team,"1,017.50"
6131,3026384,CHILD ACTION NORTHWEST,13/02/2014,52000,Vol Assoc Grants  General,Children's Services,Res Serv Agency Placements,"3,100.00"
191679,3019306,CHORLEY LODGE#ORCHARD CARE HOMES.COM LIMITED,04/02/2014,54301,Residential Provision,Adult Services,OA  External Provision Residential,"2,240.00"
2596,3037397,CHRISTIAN EDUCATION,24/02/2014,48509,Other Fees,Children's Services,Secondary NonDelegated SACRE,"5,105.80"
1646290,3026779,CHUBB FIRE & SECURITY LTD,13/02/2014,25100,Security Systems  Purchases,Children's Services,Yth Srv Johnsn Fold All Wthr,616.49
2357329,3032543,CHW LODGINGS LTD,24/02/2014,52000,Vol Assoc Grants  General,Children's Services,Res Serv Agency Placements,"3,600.00"
2357329,3032540,CHW LODGINGS LTD,24/02/2014,52000,Vol Assoc Grants  General,Children's Services,Res Serv Agency Placements,"3,600.00"
2357329,3032538,CHW LODGINGS LTD,24/02/2014,52000,Vol Assoc Grants  General,Children's Services,Res Serv Agency Placements,"3,600.00"
125827,3032794,CICELEY COMMERCIAL BLACKBURN,26/02/2014,31305,Vehicle Servicing,Environmental Services,Transport Support Service,"2,486.72"
125827,3032796,CICELEY COMMERCIAL BLACKBURN,26/02/2014,31305,Vehicle Servicing,Environmental Services,Transport Support Service,"2,247.35"
125827,3032825,CICELEY COMMERCIAL BLACKBURN,26/02/2014,31305,Vehicle Servicing,Environmental Services,Transport Support Service,501.33
125827,3032827,CICELEY COMMERCIAL BLACKBURN,26/02/2014,31305,Vehicle Servicing,Environmental Services,Transport Support Service,"1,688.43"
125827,3032755,CICELEY COMMERCIAL BLACKBURN,26/02/2014,31305,Vehicle Servicing,Environmental Services,Transport Support Service,552.49
125827,3032757,CICELEY COMMERCIAL BLACKBURN,26/02/2014,31305,Vehicle Servicing,Environmental Services,Transport Support Service,877.00
337129,3040764,CIPFA BUSINESS LTD,27/02/2014,19406,Professional Fees,Property Services,Corporate Asset Planning,620.00
92558,3042424,CITY BUILD MANCHESTER LTD,27/02/2014,20100,Day To Day Maintenance,Property Services,Accomm Rationalisation Strategy,"2,586.66"
92558,3030089,CITY BUILD MANCHESTER LTD,20/02/2014,Z1051,Work in Progress Additions,Property Services,Corporate Property Capital Project Transfers to Other Projects,620.29
2030290,3024481,CIVILS & LINTELS#COOPER CLARKE#HENDRICKS LOVELL,10/02/2014,20501,Engineering Work,Environmental Services,Highways Maintenance Billable Costs,767.28
2030290,3024485,CIVILS & LINTELS#COOPER CLARKE#HENDRICKS LOVELL,10/02/2014,20501,Engineering Work,Environmental Services,Highways Maintenance Billable Costs,599.45
130480,3040513,COHENS CHEMIST#GORGEMEAD LTD,27/02/2014,52200,Contracted Services,Adult Services,Drugs Pooled Treatment Budget,"1,004.90"
130480,3039672,COHENS CHEMIST#GORGEMEAD LTD,24/02/2014,52200,Contracted Services,Adult Services,Drugs Pooled Treatment Budget,776.40
123269,3019655,COLE SECURITY SERVICES LTD#FACTOR BIBBY,06/02/2014,44401,Other Security Expenses,Finance Department,C.R.M. Operations,905.00
123269,3040406,COLE SECURITY SERVICES LTD#FACTOR BIBBY,24/02/2014,44401,Other Security Expenses,Finance Department,C.R.M. Operations,905.00
123269,3040488,COLE SECURITY SERVICES LTD#FACTOR BIBBY,27/02/2014,44401,Other Security Expenses,Finance Department,C.R.M. Operations,905.00
123269,3041325,COLE SECURITY SERVICES LTD#FACTOR BIBBY,27/02/2014,44401,Other Security Expenses,Finance Department,C.R.M. Operations,905.00
1796290,3040417,COLLETT TRANSPORT SERVICES LTD#SPECIALIST FLEET SERVICES,24/02/2014,33201,Transport Hire,Environmental Services,Transport Support Service,"2,160.00"
2675,3029540,COLOURS WHOLESALE FLOWERS,20/02/2014,40609,Horticultural Materials,Environmental Services,Heaton Fold,759.65
2521300,3025188,COMPLETE DEMOLITION LTD,13/02/2014,Z1051,Work in Progress Additions,Property Services,Corporate Property Capital Project Transfers to Other Projects,"34,120.93"
2521300,3030122,COMPLETE DEMOLITION LTD,20/02/2014,Z1051,Work in Progress Additions,Property Services,Corporate Property Capital Project Transfers to Other Projects,"28,415.43"
1862301,3019331,CONISTON HOUSE CARE HOME,04/02/2014,54301,Residential Provision,Adult Services,OA  External Provision Residential,"6,210.00"
21285,3037507,CONSERVATION CONTRACTS NORTH WEST LTD,24/02/2014,20501,Engineering Work,Environmental Services,Engineering Drainage,"3,774.65"
21285,3022477,CONSERVATION CONTRACTS NORTH WEST LTD,10/02/2014,52200,Contracted Services,Environmental Services,Assets,"1,921.40"
21285,3022475,CONSERVATION CONTRACTS NORTH WEST LTD,13/02/2014,52200,Contracted Services,Environmental Services,Assets,"1,412.45"
264215,3027838,CO-OP PHARMACY,17/02/2014,52200,Contracted Services,Public Health,Smoking,"1,089.06"
6227,3019276,CORNERSTONE TRUST,04/02/2014,54301,Residential Provision,Adult Services,LD Purchaser Residential Care,"23,623.00"
125827,3035782,COUNTY COURT MANCHESTER,26/02/2014,48509,Other Fees,Children's Services,Management Team,"7,040.00"
125827,3035783,COUNTY COURT MANCHESTER,26/02/2014,48509,Other Fees,Children's Services,Management Team,"10,140.00"
125827,3035784,COUNTY COURT MANCHESTER,26/02/2014,48509,Other Fees,Children's Services,Management Team,"4,025.00"
125827,3035785,COUNTY COURT MANCHESTER,26/02/2014,48509,Other Fees,Children's Services,Management Team,"6,640.00"
125827,3035786,COUNTY COURT MANCHESTER,26/02/2014,48509,Other Fees,Children's Services,Management Team,"11,860.00"
125827,3035787,COUNTY COURT MANCHESTER,26/02/2014,48509,Other Fees,Children's Services,Management Team,"10,160.00"
6233,3028375,CREATIVE SUPPORT LTD#3,17/02/2014,52200,Contracted Services,Adult Services,LD Purchaser Supported Housing,"26,839.68"
6233,3028374,CREATIVE SUPPORT LTD#3,17/02/2014,52200,Contracted Services,Adult Services,LD Purchaser Supported Housing,"40,014.44"
6233,3028373,CREATIVE SUPPORT LTD#3,17/02/2014,52200,Contracted Services,Adult Services,LD Purchaser Supported Housing,"32,540.03"
6233,3020391,CREATIVE SUPPORT LTD#3,06/02/2014,52200,Contracted Services,Adult Services,LD Purchaser Supported Housing,"26,839.68"
6233,3020390,CREATIVE SUPPORT LTD#3,06/02/2014,52200,Contracted Services,Adult Services,LD Purchaser Supported Housing,"39,830.44"
6233,3020389,CREATIVE SUPPORT LTD#3,06/02/2014,52200,Contracted Services,Adult Services,LD Purchaser Supported Housing,"32,260.85"
6233,3028395,CREATIVE SUPPORT LTD#3,17/02/2014,52200,Contracted Services,Adult Services,OA Extra Care Housing External Provision,"10,001.93"
6233,3028398,CREATIVE SUPPORT LTD#3,17/02/2014,52200,Contracted Services,Adult Services,OA Extra Care Housing External Provision,"10,720.13"
6233,3028397,CREATIVE SUPPORT LTD#3,17/02/2014,52200,Contracted Services,Adult Services,OA Extra Care Housing External Provision,"10,022.88"
6233,3028396,CREATIVE SUPPORT LTD#3,17/02/2014,52200,Contracted Services,Adult Services,OA Extra Care Housing External Provision,"9,349.57"
6233,3028394,CREATIVE SUPPORT LTD#3,17/02/2014,52200,Contracted Services,Adult Services,OA Extra Care Housing External Provision,"5,440.37"
2517296,3043280,CRINGLEBAR LTD,27/02/2014,Z6008,Expense AP Accrual,Bolton MBC Balance Sheet,Bolton MBC Balance Sheet,950.00
2788,3032527,CROMWELL POLYTHENE LTD,24/02/2014,40100,Operational Equipment Purchase,Environmental Services,Waste,"13,662.48"
242608,3039626,CYCLESCHEME.CO.UK,24/02/2014,31150,Cycle Purchase,Chief Executives Department,Cycle to Work Scheme,"8,661.45"
302830,3032386,DATASPACE,20/02/2014,48506,Records Storage,Legal Trading,Legal Services Trading Account,795.40
302830,3027766,DATASPACE,17/02/2014,48506,Records Storage,Children's Services,Business Support – North District,935.01
2934,3020695,DAYTRIPPERS,06/02/2014,52200,Contracted Services,Children's Services,Admin Commissioning,"2,500.00"
225897,3031855,DEANE CLINIC HEALTHCARE LIMITED#P82660,20/02/2014,52200,Contracted Services,Public Health,Sexual Health Improvement,507.00
139082,3040553,DEANE PHARMACY#WILKINSON PHARMACY LTD,27/02/2014,52200,Contracted Services,Adult Services,Drugs Pooled Treatment Budget,519.80
6259,3029931,DELL CORPORATION LTD,20/02/2014,45400,Computer Purchase,Children's Services,Admin IT (Schools),"23,950.00"
6259,3023253,DELL CORPORATION LTD,13/02/2014,45400,Computer Purchase,Children's Services,Admin IT (Schools),"23,950.00"
6259,3040655,DELL CORPORATION LTD,27/02/2014,45400,Computer Purchase,Children's Services,Admin IT (Schools),"23,950.00"
6259,3029930,DELL CORPORATION LTD,20/02/2014,45400,Computer Purchase,Children's Services,Admin IT (Schools),"7,489.60"
2245290,3019348,DERBYSHIRE HAVEN CARE HOME,04/02/2014,54301,Residential Provision,Adult Services,OA  External Provision Residential,"2,075.45"
1545471,3021545,DETICA LTD,10/02/2014,45401,Computer Maintenance,Children's Services,ICS Revenue,"32,764.13"
192525,3042832,DIAMOND HEALTHCARE (NW) LTD#DERBY STREET PHARMACY,27/02/2014,52200,Contracted Services,Adult Services,Drugs Pooled Treatment Budget,"1,238.50"
1569182,3030019,DISABLED LIVING (TRAINING EXHIBITIONS) LTD,20/02/2014,44051,Clients Aids & Adaptations,Adult Services,ICES,650.00
2218304,3029721,DISCLOSURE AND BARRING SERVICE,20/02/2014,48528,CRB Checks  External,Environmental Services,Regulatory Services Licensing,"2,068.00"
2218304,3027732,DISCLOSURE AND BARRING SERVICE,17/02/2014,19400,Disclosure Monitoring,Chief Executives Department,HR  Corporate,"6,248.00"
241487,3019310,DOUGLAS BANK NURSING HOME#TUDOR BANK LTD,04/02/2014,54302,Nursing Provision,Adult Services,OA  External Provision Residential,"2,383.25"
72100,3019297,DOVE COURT RESIDENTIAL & NURSING HOME,04/02/2014,54301,Residential Provision,Adult Services,OA  External Provision Residential,"1,827.50"
3059,3029709,DOVE MARKETING,20/02/2014,44051,Clients Aids & Adaptations,Adult Services,ICES,507.57
231808,3019308,DOWNSHAW LODGE,04/02/2014,54302,Nursing Provision,Adult Services,OA  External Provision Residential,"6,222.58"
2524313,3025194,DR LISA RIPPON,13/02/2014,48509,Other Fees,Adult Services,ACM  Management,"1,605.00"
24798,3040542,DRAIN DOCTOR PLUMBING DRAINAGE INVESTIGATIONS & SOLUTIONS NW LTD,27/02/2014,Z6008,Expense AP Accrual,Bolton MBC Balance Sheet,Bolton MBC Balance Sheet,"7,595.00"
24798,3029505,DRAIN DOCTOR PLUMBING DRAINAGE INVESTIGATIONS & SOLUTIONS NW LTD,20/02/2014,Z6008,Expense AP Accrual,Bolton MBC Balance Sheet,Bolton MBC Balance Sheet,849.75
24798,3025537,DRAIN DOCTOR PLUMBING DRAINAGE INVESTIGATIONS & SOLUTIONS NW LTD,13/02/2014,Z6008,Expense AP Accrual,Bolton MBC Balance Sheet,Bolton MBC Balance Sheet,872.50
24798,3043318,DRAIN DOCTOR PLUMBING DRAINAGE INVESTIGATIONS & SOLUTIONS NW LTD,27/02/2014,Z6008,Expense AP Accrual,Bolton MBC Balance Sheet,Bolton MBC Balance Sheet,585.00
24798,3040532,DRAIN DOCTOR PLUMBING DRAINAGE INVESTIGATIONS & SOLUTIONS NW LTD,27/02/2014,Z6008,Expense AP Accrual,Bolton MBC Balance Sheet,Bolton MBC Balance Sheet,"7,575.00"
2318330,3019744,DRS ARIF CHOWDHURY PATEL#P82018,06/02/2014,52200,Contracted Services,Public Health,Sexual Health Improvement,"2,920.00"
216676,3031981,DRS DIRECT LTD#BIBBY FACTORS LEICESTER LIMITED,20/02/2014,55711,Medical Referees Fees,Chief Executives Department,Occ Health Holding Code,900.00
216676,3031985,DRS DIRECT LTD#BIBBY FACTORS LEICESTER LIMITED,20/02/2014,55711,Medical Referees Fees,Chief Executives Department,Occ Health Holding Code,900.00
216676,3024453,DRS DIRECT LTD#BIBBY FACTORS LEICESTER LIMITED,10/02/2014,55711,Medical Referees Fees,Chief Executives Department,Occ Health Holding Code,"2,205.00"
216676,3031993,DRS DIRECT LTD#BIBBY FACTORS LEICESTER LIMITED,20/02/2014,55711,Medical Referees Fees,Chief Executives Department,Occ Health Holding Code,900.00
2246473,3040522,DTW ADVERTISING AND MARKETING LTD,27/02/2014,48203,Marketing,Central Services,Marketing  General,"2,500.00"
2373294,3020111,DURBIN PLC,06/02/2014,48202,General Publicity,Public Health,Sexual Health Improvement,"1,646.00"
2373294,3020116,DURBIN PLC,06/02/2014,48202,General Publicity,Public Health,Sexual Health Improvement,"2,666.00"
1164807,3027098,DUTTON TECH CONSULTING#REDACTED - PERSONAL DATA,13/02/2014,48509,Other Fees,Children's Services,Technical Innovation Centre,"1,200.00"
1164807,3027101,DUTTON TECH CONSULTING#REDACTED - PERSONAL DATA,13/02/2014,48509,Other Fees,Children's Services,Technical Innovation Centre,"1,600.00"
6270,3032648,DUVAL SECURITY,24/02/2014,44401,Other Security Expenses,Environmental Services,Markets  Rent Account,"2,285.94"
21961,3019404,E.ON ENERGY#2,06/02/2014,21200,Gas  General,Housing GRF,Dispersed Properties,"1,129.83"
183862,3029991,EASYLINK UK,27/02/2014,44051,Clients Aids & Adaptations,Adult Services,ASC External Funded Schemes,"2,309.72"
6277,3019424,ECCLES CONSTRUCTION,06/02/2014,Z1051,Work in Progress Additions,Environmental Services,Environmental Services Balance sheet,"6,980.00"
9564,3019283,ECCLESHOLME,04/02/2014,54301,Residential Provision,Adult Services,OA  External Provision Residential,"1,882.55"
1147813,3041012,ECM EDUCATION CONSULTANTS LTD,27/02/2014,48509,Other Fees,Children's Services,Primary Commissioning,"1,980.00"
798634,3026763,EDUCATION SUPPORT PROFESSIONALS,13/02/2014,53000,Private Contracted Services,Children's Services,Admin IT (Schools),924.00
6286,3043358,EGBERT H TAYLOR & CO LTD,27/02/2014,40100,Operational Equipment Purchase,Environmental Services,Waste,"9,572.00"
2417,3043009,ELECTRICITY NORTH WEST LIMITED#UNITED UTILITIES ELECTRICITY SERVICES LTD,27/02/2014,Z1051,Work in Progress Additions,Environmental Services,Environmental Services Balance sheet,"8,348.22"
17616,3041352,ELKLAN#ELKLAN TRAINING LIMITED,27/02/2014,19100,Training Exps Tuition Fees,Children's Services,CWPD SEN,572.00
6635,3019265,ELLERSHAW HOUSE LTD,04/02/2014,54301,Residential Provision,Adult Services,LD Purchaser Residential Care,"11,372.95"
186816,3019305,ELLERSLIE COURT#VITALISE,04/02/2014,54301,Residential Provision,Adult Services,PD Purchaser Residential Care,"3,402.90"
125928,3020656,EMINOX LTD,06/02/2014,31305,Vehicle Servicing,Environmental Services,Transport Support Service,"1,278.80"
8412,3029542,EMO OIL LTD#WAS SHELL OIL,20/02/2014,21203,Fuel Oil  General,Environmental Services,Heaton Fold,"1,377.64"
390857,3020779,ENTERTAINMENT TRADE MGT AGENCIES LTD,06/02/2014,48501,Artistes Fees,Environmental Services,Albert Halls Entertainment,600.00
249833,3040943,REDACTED - PERSONAL DATA,27/02/2014,48509,Other Fees,Children's Services,Sec Sch Imp  Intensive Supp/Intervention,600.00
362467,3040889,ERIC WRIGHT FM LTD,27/02/2014,22001,Buildings Service Charge,Development & Regen,BoltonOne Leisure,"9,421.82"
362467,3040889,ERIC WRIGHT FM LTD,27/02/2014,40613,Goods for Resale,Development & Regen,BoltonOne Leisure,"5,400.04"
362467,3040888,ERIC WRIGHT FM LTD,27/02/2014,22001,Buildings Service Charge,Development & Regen,BoltonOne Leisure,"9,421.82"
362467,3040888,ERIC WRIGHT FM LTD,27/02/2014,40613,Goods for Resale,Development & Regen,BoltonOne Leisure,"5,400.04"
362467,3040890,ERIC WRIGHT FM LTD,27/02/2014,22001,Buildings Service Charge,Development & Regen,BoltonOne Leisure,"9,421.82"
362467,3040890,ERIC WRIGHT FM LTD,27/02/2014,40613,Goods for Resale,Development & Regen,BoltonOne Leisure,"5,400.04"
2515338,3018412,ESCAPE MOBILITY COMPANY,03/02/2014,20101,Programmed Maint. Work,Property Services,Town Hall,740.00
434409,3040980,EURO LABEL PRINTERS,27/02/2014,48203,Marketing,Central Services,Marketing  General,"2,397.00"
3350,3019820,EUXTON PARK CARE HOME,17/02/2014,54301,Residential Provision,Adult Services,OA  External Provision Residential,"2,102.50"
3356,3040767,EVENT TECHNICAL SUPPORT,27/02/2014,40102,Operational Equipment Rental,Environmental Services,Activities and Operations,570.00
14818,3040576,EXPERIAN LIMITED#T/A FOOTFALL LTD,27/02/2014,48631,Office Expenses  General,Finance Department,Council Tax,"4,400.00"
356286,3019419,EXPRESS ELEVATORS LTD,06/02/2014,Z6008,Expense AP Accrual,Bolton MBC Balance Sheet,Bolton MBC Balance Sheet,940.25
356286,3019420,EXPRESS ELEVATORS LTD,06/02/2014,Z6008,Expense AP Accrual,Bolton MBC Balance Sheet,Bolton MBC Balance Sheet,698.15
356286,3019422,EXPRESS ELEVATORS LTD,06/02/2014,Z6008,Expense AP Accrual,Bolton MBC Balance Sheet,Bolton MBC Balance Sheet,948.00
356286,3040582,EXPRESS ELEVATORS LTD,27/02/2014,Z6008,Expense AP Accrual,Bolton MBC Balance Sheet,Bolton MBC Balance Sheet,"1,248.00"
356286,3019393,EXPRESS ELEVATORS LTD,06/02/2014,Z6008,Expense AP Accrual,Bolton MBC Balance Sheet,Bolton MBC Balance Sheet,600.00
356286,3019395,EXPRESS ELEVATORS LTD,06/02/2014,Z6008,Expense AP Accrual,Bolton MBC Balance Sheet,Bolton MBC Balance Sheet,"1,052.00"
3376,3040568,F R SHARROCK LTD#SHARROCKS,27/02/2014,40102,Operational Equipment Rental,Environmental Services,Activities and Operations,"16,800.44"
3376,3040568,F R SHARROCK LTD#SHARROCKS,27/02/2014,40102,Operational Equipment Rental,Environmental Services,Bereavement Services,829.17
2320291,3031999,FFT EDUCATION LTD,20/02/2014,48509,Other Fees,Children's Services,Income – Teaching & Learning CPD,"1,500.00"
6307,3029811,FIBRELITE (NORTH WEST) LTD,20/02/2014,25106,C.C.T.V.,Environmental Services,Security Services,990.00
6307,3029795,FIBRELITE (NORTH WEST) LTD,20/02/2014,25106,C.C.T.V.,Environmental Services,Security Services,"4,880.00"
6307,3032367,FIBRELITE (NORTH WEST) LTD,20/02/2014,25106,C.C.T.V.,Environmental Services,Security Services,"1,755.00"
6307,3032374,FIBRELITE (NORTH WEST) LTD,20/02/2014,25106,C.C.T.V.,Environmental Services,Security Services,"1,600.00"
6307,3032377,FIBRELITE (NORTH WEST) LTD,20/02/2014,25106,C.C.T.V.,Environmental Services,Security Services,"1,550.00"
6307,3030039,FIBRELITE (NORTH WEST) LTD,20/02/2014,40101,Operational Equipment Maint,Children's Services,Admin IT (Schools),"7,070.00"
75884,3027591,FIRST CALL COMMUNITY SYSTEMS LTD T/A SURECARE,17/02/2014,52200,Contracted Services,Adult Services,OA  Home Care Services external provision,"17,932.37"
75884,3027592,FIRST CALL COMMUNITY SYSTEMS LTD T/A SURECARE,17/02/2014,52200,Contracted Services,Adult Services,OA  Home Care Services external provision,"17,955.95"
3430,3043190,FIRST MANCHESTER LTD & FIRST TRANSFORMING TRAVEL,27/02/2014,34401,Clients  Bus Fares,Development & Regen,The Work Programme,570.00
3430,3043176,FIRST MANCHESTER LTD & FIRST TRANSFORMING TRAVEL,27/02/2014,34401,Clients  Bus Fares,Children's Services,Youth Offending Team,617.50
2501303,3026774,FIVE AREAS,13/02/2014,40601,General Materials,Public Health,Mental Health Promotion,"1,346.40"
261782,3030270,FORTALICE LTD,20/02/2014,52200,Contracted Services,Adult Services,Supporting People  Capital Financing,"17,870.28"
2278295,3019350,FOSSE BANK HOUSE,04/02/2014,54301,Residential Provision,Adult Services,MH Residential External Provision,"5,682.35"
176578,3023252,FOUNDATIONS,10/02/2014,45401,Computer Maintenance,Development & Regen,Home Solutions,750.00
6320,3019213,FOUR SEASONS NURSING HOME,04/02/2014,54302,Nursing Provision,Adult Services,LD Purchaser Residential Care,"1,986.35"
6320,3019213,FOUR SEASONS NURSING HOME,04/02/2014,54301,Residential Provision,Adult Services,OA  External Provision Residential,"49,658.75"
6320,3019213,FOUR SEASONS NURSING HOME,04/02/2014,54302,Nursing Provision,Adult Services,OA  External Provision Residential,"41,444.95"
6320,3019213,FOUR SEASONS NURSING HOME,04/02/2014,54301,Residential Provision,Adult Services,PD Purchaser Residential Care,"5,959.05"
2515326,3040574,FRONTIER THERAPEUTICS,27/02/2014,44051,Clients Aids & Adaptations,Adult Services,ICES,850.00
3510,3029526,G & S SMIRTHWAITE LTD,20/02/2014,44051,Clients Aids & Adaptations,Adult Services,ICES,938.00
2213290,3030118,GB BUILDING SOLUTIONS,20/02/2014,Z1051,Work in Progress Additions,Central Corporate,Corporate Property Balance Sheet,"205,000.00"
3561,3024557,GEORGE HOUSE TRUST,27/02/2014,44054,Other Clients Services,Public Health,HIV,"1,084.75"
1666291,3042975,GERRARD SEEL LTD,27/02/2014,41106,Bar Stock,Environmental Services,Civic Catering  Town Hall Bar,578.25
1779291,3019330,GHS BROOKDALE,04/02/2014,54301,Residential Provision,Adult Services,OA  External Provision Residential,"6,060.52"
6336,3040750,GLASDON UK LTD,27/02/2014,40601,General Materials,Environmental Services,Activities and Operations,"4,248.30"
1937290,3019332,GLEN ROSA & KITWOOD HOUSE,04/02/2014,54301,Residential Provision,Adult Services,OA  External Provision Residential,"2,138.15"
6338,3019214,GLENBANK CARE HOME LTD,04/02/2014,54301,Residential Provision,Adult Services,OA  External Provision Residential,"20,211.35"
6242,3019261,GLENHOMES REST HOME,04/02/2014,54301,Residential Provision,Adult Services,OA  External Provision Residential,"24,862.62"
2212300,3019346,GLENROYD CARE HOME,04/02/2014,54302,Nursing Provision,Adult Services,OA  External Provision Residential,"1,957.20"
3603,3041388,G-MAP SERVICES LTD,27/02/2014,52000,Vol Assoc Grants  General,Children's Services,Res Serv Agency Placements,"3,025.00"
170064,3025088,REDACTED - PERSONAL DATA#ALSTON ASSOCIATES,13/02/2014,48509,Other Fees,Children's Services,Additional Funding – Savings,"1,240.00"
6342,3019215,GORSEY CLOUGH NURSING HOME LTD,04/02/2014,54302,Nursing Provision,Adult Services,OA  External Provision Residential,"8,237.60"
2287325,3019977,GRAHAM ASSET MANAGEMENT LTD,06/02/2014,Z6008,Expense AP Accrual,Bolton MBC Balance Sheet,Bolton MBC Balance Sheet,748.00
2287325,3020033,GRAHAM ASSET MANAGEMENT LTD,06/02/2014,Z6008,Expense AP Accrual,Bolton MBC Balance Sheet,Bolton MBC Balance Sheet,"4,620.00"
2287325,3020036,GRAHAM ASSET MANAGEMENT LTD,06/02/2014,Z6008,Expense AP Accrual,Bolton MBC Balance Sheet,Bolton MBC Balance Sheet,"1,598.54"
6344,3019216,GRANGE LEA RESIDENTIAL CARE HOME LTD,04/02/2014,54301,Residential Provision,Adult Services,OA  External Provision Residential,"35,215.00"
178961,3037714,GREAT PLACES HOUSING ASSOCIATION,24/02/2014,52210,Contracted Services  Rental Voids,Adult Services,LD Purchaser Supported Housing,509.80
178961,3026435,GREAT PLACES HOUSING ASSOCIATION,13/02/2014,52210,Contracted Services  Rental Voids,Adult Services,LD Provider  Supported Housing,520.48
178961,3030281,GREAT PLACES HOUSING ASSOCIATION,20/02/2014,52200,Contracted Services,Adult Services,Supporting People  Capital Financing,"15,307.42"
178961,3037712,GREAT PLACES HOUSING ASSOCIATION,24/02/2014,52210,Contracted Services  Rental Voids,Adult Services,LD Purchaser Supported Housing,523.52
2515304,3019383,GREATWOOD HOUSE,04/02/2014,54301,Residential Provision,Adult Services,OA  External Provision Residential,"8,184.00"
2194290,3019344,GREENLANDS RESIDENTIAL HOME LTD,04/02/2014,54301,Residential Provision,Adult Services,PD Purchaser Residential Care,"1,629.09"
2194290,3019345,GREENLANDS RESIDENTIAL HOME LTD,04/02/2014,54301,Residential Provision,Adult Services,OA  External Provision Residential,"22,105.80"
125827,3035997,GROSVENOR FABRICATIONS,26/02/2014,40110,Op Equip Furniture Purchase,Environmental Services,Albert Halls  Operations,"2,955.96"
1604342,3040958,GROUNDWORKS & LEISURE SERVICES LTD,27/02/2014,20100,Day To Day Maintenance,Children's Services,Yth Srv Johnsn Fold All Wthr,935.00
2345384,3019360,GROVE HOUSE,04/02/2014,54301,Residential Provision,Adult Services,OA  External Provision Residential,"2,558.50"
1839290,3032547,GT CLEANING MACHINES LTD,24/02/2014,26001,Hygiene Requisite,Environmental Services,Markets  Rent Account,"1,030.00"
2299326,3024703,HAGS-SMP LTD,13/02/2014,40601,General Materials,Environmental Services,Activities and Operations,"1,626.90"
2299326,3041301,HAGS-SMP LTD,27/02/2014,40601,General Materials,Environmental Services,Activities and Operations,840.32
3806,3019245,HAIGHFIELD NURSING HOME,04/02/2014,54302,Nursing Provision,Adult Services,OA  External Provision Residential,"1,867.60"
38584,3019292,HALF ACRE CARE HOME,04/02/2014,54301,Residential Provision,Adult Services,OA  External Provision Residential,"6,344.60"
760627,3040525,HALLIWELL LATE NIGHT PHARMACY,27/02/2014,52200,Contracted Services,Adult Services,Drugs Pooled Treatment Budget,569.90
10419,3029729,HALTON CONTAINER SERVICES LTD,20/02/2014,40100,Operational Equipment Purchase,Environmental Services,Waste,"2,700.00"
2524310,3026339,HAMLINS LLP,13/02/2014,Z1051,Work in Progress Additions,Environmental Services,Environmental Services Balance sheet,"1,900.00"
72283,3032345,HANDSHAKE LTD,20/02/2014,48501,Artistes Fees,Environmental Services,Albert Halls Entertainment,"7,462.86"
6358,3026982,HANSON AGGREGATES,13/02/2014,Z6008,Expense AP Accrual,Bolton MBC Balance Sheet,Bolton MBC Balance Sheet,656.20
148023,3019302,HARBOUR CLOSE,04/02/2014,54301,Residential Provision,Adult Services,PD Purchaser Residential Care,"4,847.35"
2156,3023268,HARMONY YOUTH PROJECT,10/02/2014,52200,Contracted Services,Children's Services,Admin Commissioning,"4,500.00"
6360,3024412,REDACTED - PERSONAL DATA,10/02/2014,20100,Day To Day Maintenance,Environmental Services,Depots,540.40
6360,3043232,REDACTED - PERSONAL DATA,27/02/2014,20100,Day To Day Maintenance,Environmental Services,Depots,882.52
6360,3043203,REDACTED - PERSONAL DATA,27/02/2014,20100,Day To Day Maintenance,Environmental Services,Depots,"1,416.90"
6360,3043205,REDACTED - PERSONAL DATA,27/02/2014,20100,Day To Day Maintenance,Environmental Services,Depots,"1,709.52"
6360,3043209,REDACTED - PERSONAL DATA,27/02/2014,20100,Day To Day Maintenance,Environmental Services,Depots,"1,390.00"
6360,3026356,REDACTED - PERSONAL DATA,13/02/2014,20100,Day To Day Maintenance,Environmental Services,Assets,"1,038.73"
6360,3019650,REDACTED - PERSONAL DATA,06/02/2014,20405,NonScheduled Work,Environmental Services,Activities and Operations,"2,028.75"
2363294,3019363,HARTWELL CARE HOME,04/02/2014,54301,Residential Provision,Adult Services,OA  External Provision Residential,"1,765.00"
867656,3030427,HAYS SPECIALIST RECRUITMENT,20/02/2014,53102,Agency Staff  Other,Adult Services,ACM  Management,985.30
867656,3030427,HAYS SPECIALIST RECRUITMENT,20/02/2014,53102,Agency Staff  Other,Adult Services,Home Support Reablement,743.08
867656,3030427,HAYS SPECIALIST RECRUITMENT,20/02/2014,53102,Agency Staff  Other,Adult Services,Independent,797.02
867656,3030427,HAYS SPECIALIST RECRUITMENT,20/02/2014,53102,Agency Staff  Other,Adult Services,LD Provider  Supported Housing,"1,065.83"
867656,3030427,HAYS SPECIALIST RECRUITMENT,20/02/2014,53102,Agency Staff  Other,Adult Services,MH North Fieldwork Team,"2,266.22"
867656,3030427,HAYS SPECIALIST RECRUITMENT,20/02/2014,53102,Agency Staff  Other,Adult Services,OA  Alderbank  Residential,"6,292.38"
867656,3030427,HAYS SPECIALIST RECRUITMENT,20/02/2014,53102,Agency Staff  Other,Adult Services,OA  Darley Court Intermediate Care,"14,901.55"
867656,3030427,HAYS SPECIALIST RECRUITMENT,20/02/2014,53102,Agency Staff  Other,Adult Services,OA  Firwood  Residential,696.80
867656,3030427,HAYS SPECIALIST RECRUITMENT,20/02/2014,53102,Agency Staff  Other,Adult Services,OA  Laburnum Lodge  Residential,"4,336.29"
867656,3030427,HAYS SPECIALIST RECRUITMENT,20/02/2014,53102,Agency Staff  Other,Adult Services,OA  Residential Services Miscellaneous,774.97
867656,3030427,HAYS SPECIALIST RECRUITMENT,20/02/2014,53102,Agency Staff  Other,Adult Services,OA  Winifred Kettle  Residential,"9,594.33"
867656,3030427,HAYS SPECIALIST RECRUITMENT,20/02/2014,53102,Agency Staff  Other,Adult Services,STARS & ILS  Management,819.53
867656,3030427,HAYS SPECIALIST RECRUITMENT,20/02/2014,53102,Agency Staff  Other,Adult Services,STARS & ILS  North,"1,170.00"
867656,3030427,HAYS SPECIALIST RECRUITMENT,20/02/2014,53102,Agency Staff  Other,Adult Services,Urgent Care,"1,655.53"
867656,3030427,HAYS SPECIALIST RECRUITMENT,20/02/2014,53102,Agency Staff  Other,Environmental Services,Activities and Operations,547.60
867656,3030427,HAYS SPECIALIST RECRUITMENT,20/02/2014,53102,Agency Staff  Other,Environmental Services,Management & Overheads,802.16
867656,3030427,HAYS SPECIALIST RECRUITMENT,20/02/2014,53102,Agency Staff  Other,Environmental Services,Neighbourhood Management Support,563.68
867656,3030427,HAYS SPECIALIST RECRUITMENT,20/02/2014,53102,Agency Staff  Other,Environmental Services,Performance and Improvement,858.80
867656,3030427,HAYS SPECIALIST RECRUITMENT,20/02/2014,53102,Agency Staff  Other,Environmental Services,Regulatory Services,"1,260.00"
867656,3030427,HAYS SPECIALIST RECRUITMENT,20/02/2014,53102,Agency Staff  Other,Environmental Services,Regulatory Services Licensing,"4,190.52"
867656,3030427,HAYS SPECIALIST RECRUITMENT,20/02/2014,53102,Agency Staff  Other,Environmental Services,Waste,"7,385.25"
867656,3030427,HAYS SPECIALIST RECRUITMENT,20/02/2014,53102,Agency Staff  Other,Development & Regen,Divisional Development,"1,041.92"
867656,3030427,HAYS SPECIALIST RECRUITMENT,20/02/2014,53102,Agency Staff  Other,Development & Regen,Economic Strategy,"1,129.41"
867656,3030427,HAYS SPECIALIST RECRUITMENT,20/02/2014,53102,Agency Staff  Other,Development & Regen,Planning Strategy,561.59
867656,3030427,HAYS SPECIALIST RECRUITMENT,20/02/2014,53102,Agency Staff  Other,Development & Regen,The Work Programme,565.45
867656,3030427,HAYS SPECIALIST RECRUITMENT,20/02/2014,53102,Agency Staff  Other,Children's Services,Admin Strategy&Performance,564.97
867656,3030427,HAYS SPECIALIST RECRUITMENT,20/02/2014,53102,Agency Staff  Other,Children's Services,Business Support    South District,"2,691.05"
867656,3030427,HAYS SPECIALIST RECRUITMENT,20/02/2014,53102,Agency Staff  Other,Children's Services,Business Support – Central Team,874.13
867656,3030427,HAYS SPECIALIST RECRUITMENT,20/02/2014,53102,Agency Staff  Other,Children's Services,Business Support – North District,"2,628.33"
867656,3030427,HAYS SPECIALIST RECRUITMENT,20/02/2014,53102,Agency Staff  Other,Children's Services,Children and Family Supp Svs North,"1,094.82"
867656,3030427,HAYS SPECIALIST RECRUITMENT,20/02/2014,53102,Agency Staff  Other,Children's Services,Children and Family Supp Svs South,"3,392.19"
867656,3030427,HAYS SPECIALIST RECRUITMENT,20/02/2014,53102,Agency Staff  Other,Children's Services,Children and Family Supp Svs West,"2,434.85"
867656,3030427,HAYS SPECIALIST RECRUITMENT,20/02/2014,53102,Agency Staff  Other,Children's Services,Disability Serv Family Support Team,"1,119.95"
867656,3030427,HAYS SPECIALIST RECRUITMENT,20/02/2014,53102,Agency Staff  Other,Children's Services,Safeguarding Team South,513.00
867656,3030427,HAYS SPECIALIST RECRUITMENT,20/02/2014,53102,Agency Staff  Other,Finance Department,C.R.M. Operations,"9,274.45"
867656,3030427,HAYS SPECIALIST RECRUITMENT,20/02/2014,53102,Agency Staff  Other,Finance Department,Council Tax,650.62
867656,3030427,HAYS SPECIALIST RECRUITMENT,20/02/2014,53102,Agency Staff  Other,Finance Department,Customer Services,582.36
867656,3030427,HAYS SPECIALIST RECRUITMENT,20/02/2014,53102,Agency Staff  Other,Finance Department,Finance Ap Centre of Excellence,"1,131.90"
867656,3030427,HAYS SPECIALIST RECRUITMENT,20/02/2014,53102,Agency Staff  Other,Finance Department,Finance Dept Procurement Team,"1,021.51"
867656,3030427,HAYS SPECIALIST RECRUITMENT,20/02/2014,53102,Agency Staff  Other,Finance Department,Financial Management,671.55
867656,3030427,HAYS SPECIALIST RECRUITMENT,20/02/2014,53102,Agency Staff  Other,Housing GRF,Homes for Bolton CBL,871.33
867656,3030427,HAYS SPECIALIST RECRUITMENT,20/02/2014,53102,Agency Staff  Other,Housing GRF,Housing Standards,530.58
867656,3030427,HAYS SPECIALIST RECRUITMENT,20/02/2014,53102,Agency Staff  Other,Property Services,Accomm Rationalisation Strategy,"1,060.41"
867656,3030427,HAYS SPECIALIST RECRUITMENT,20/02/2014,53102,Agency Staff  Other,Property Services,Operational Facilities Management,668.57
867656,3030427,HAYS SPECIALIST RECRUITMENT,20/02/2014,53102,Agency Staff  Other,Property Services,Projects,"1,078.00"
867656,3030427,HAYS SPECIALIST RECRUITMENT,20/02/2014,53102,Agency Staff  Other,Legal Trading,Legal Services Trading Account,"7,580.72"
867656,3030426,HAYS SPECIALIST RECRUITMENT,20/02/2014,53102,Agency Staff  Other,Adult Services,ACM  Management,"1,042.78"
867656,3030426,HAYS SPECIALIST RECRUITMENT,20/02/2014,53102,Agency Staff  Other,Adult Services,Home Support Reablement,804.86
867656,3030426,HAYS SPECIALIST RECRUITMENT,20/02/2014,53102,Agency Staff  Other,Adult Services,Independent,797.02
867656,3030426,HAYS SPECIALIST RECRUITMENT,20/02/2014,53102,Agency Staff  Other,Adult Services,LD Provider  Supported Housing,770.00
867656,3030426,HAYS SPECIALIST RECRUITMENT,20/02/2014,53102,Agency Staff  Other,Adult Services,MH North Fieldwork Team,912.46
867656,3030426,HAYS SPECIALIST RECRUITMENT,20/02/2014,53102,Agency Staff  Other,Adult Services,OA  Alderbank  Residential,"3,291.85"
867656,3030426,HAYS SPECIALIST RECRUITMENT,20/02/2014,53102,Agency Staff  Other,Adult Services,OA  Darley Court Intermediate Care,"5,539.19"
867656,3030426,HAYS SPECIALIST RECRUITMENT,20/02/2014,53102,Agency Staff  Other,Adult Services,OA  Firwood  Residential,"1,321.46"
867656,3030426,HAYS SPECIALIST RECRUITMENT,20/02/2014,53102,Agency Staff  Other,Adult Services,OA  Laburnum Lodge  Residential,"2,447.59"
867656,3030426,HAYS SPECIALIST RECRUITMENT,20/02/2014,53102,Agency Staff  Other,Adult Services,OA  Residential Services Miscellaneous,"1,500.64"
867656,3030426,HAYS SPECIALIST RECRUITMENT,20/02/2014,53102,Agency Staff  Other,Adult Services,OA  Winifred Kettle  Residential,"3,557.32"
867656,3030426,HAYS SPECIALIST RECRUITMENT,20/02/2014,53102,Agency Staff  Other,Adult Services,STARS & ILS  Management,"1,278.80"
867656,3030426,HAYS SPECIALIST RECRUITMENT,20/02/2014,53102,Agency Staff  Other,Adult Services,STARS & ILS  North,"1,213.30"
867656,3030426,HAYS SPECIALIST RECRUITMENT,20/02/2014,53102,Agency Staff  Other,Environmental Services,Activities and Operations,547.60
867656,3030426,HAYS SPECIALIST RECRUITMENT,20/02/2014,53102,Agency Staff  Other,Environmental Services,Bereavement Services,"9,096.05"
867656,3030426,HAYS SPECIALIST RECRUITMENT,20/02/2014,53102,Agency Staff  Other,Environmental Services,Civic Cleaning,"1,664.99"
867656,3030426,HAYS SPECIALIST RECRUITMENT,20/02/2014,53102,Agency Staff  Other,Environmental Services,Depots,"1,055.97"
867656,3030426,HAYS SPECIALIST RECRUITMENT,20/02/2014,53102,Agency Staff  Other,Environmental Services,Management & Overheads,673.06
867656,3030426,HAYS SPECIALIST RECRUITMENT,20/02/2014,53102,Agency Staff  Other,Environmental Services,Neighbourhood Management Support,563.68
867656,3030426,HAYS SPECIALIST RECRUITMENT,20/02/2014,53102,Agency Staff  Other,Environmental Services,Performance and Improvement,858.80
867656,3030426,HAYS SPECIALIST RECRUITMENT,20/02/2014,53102,Agency Staff  Other,Environmental Services,Transport Support Service,"2,542.85"
867656,3030426,HAYS SPECIALIST RECRUITMENT,20/02/2014,53102,Agency Staff  Other,Environmental Services,Waste,"23,405.75"
867656,3030426,HAYS SPECIALIST RECRUITMENT,20/02/2014,53102,Agency Staff  Other,Development & Regen,Divisional Development,520.96
867656,3030426,HAYS SPECIALIST RECRUITMENT,20/02/2014,53102,Agency Staff  Other,Development & Regen,Economic Strategy,"1,319.86"
867656,3030426,HAYS SPECIALIST RECRUITMENT,20/02/2014,53102,Agency Staff  Other,Children's Services,Admin Strategy&Performance,"1,129.94"
867656,3030426,HAYS SPECIALIST RECRUITMENT,20/02/2014,53102,Agency Staff  Other,Children's Services,Business Support    South District,"2,755.24"
867656,3030426,HAYS SPECIALIST RECRUITMENT,20/02/2014,53102,Agency Staff  Other,Children's Services,Business Support – Central Team,"1,035.38"
867656,3030426,HAYS SPECIALIST RECRUITMENT,20/02/2014,53102,Agency Staff  Other,Children's Services,Business Support – North District,"3,386.58"
867656,3030426,HAYS SPECIALIST RECRUITMENT,20/02/2014,53102,Agency Staff  Other,Children's Services,Children and Family Supp Svs North,"1,183.40"
867656,3030426,HAYS SPECIALIST RECRUITMENT,20/02/2014,53102,Agency Staff  Other,Children's Services,Children and Family Supp Svs South,"5,211.64"
867656,3030426,HAYS SPECIALIST RECRUITMENT,20/02/2014,53102,Agency Staff  Other,Children's Services,Children and Family Supp Svs West,"1,910.90"
867656,3030426,HAYS SPECIALIST RECRUITMENT,20/02/2014,53102,Agency Staff  Other,Children's Services,Disability Serv Family Support Team,"1,115.62"
867656,3030426,HAYS SPECIALIST RECRUITMENT,20/02/2014,53102,Agency Staff  Other,Children's Services,Disability Serv Fieldwork Team,696.69
867656,3030426,HAYS SPECIALIST RECRUITMENT,20/02/2014,53102,Agency Staff  Other,Children's Services,Safeguarding Team South,513.00
867656,3030426,HAYS SPECIALIST RECRUITMENT,20/02/2014,53102,Agency Staff  Other,Children's Services,Targeted Youth Support,579.34
867656,3030426,HAYS SPECIALIST RECRUITMENT,20/02/2014,53102,Agency Staff  Other,Finance Department,C.R.M. Operations,"10,245.85"
867656,3030426,HAYS SPECIALIST RECRUITMENT,20/02/2014,53102,Agency Staff  Other,Finance Department,Customer Services,959.69
867656,3030426,HAYS SPECIALIST RECRUITMENT,20/02/2014,53102,Agency Staff  Other,Finance Department,Finance Ap Centre of Excellence,"1,056.44"
867656,3030426,HAYS SPECIALIST RECRUITMENT,20/02/2014,53102,Agency Staff  Other,Finance Department,Finance Dept Procurement Team,"1,087.62"
867656,3030426,HAYS SPECIALIST RECRUITMENT,20/02/2014,53102,Agency Staff  Other,Finance Department,Financial Management,671.55
867656,3030426,HAYS SPECIALIST RECRUITMENT,20/02/2014,53102,Agency Staff  Other,Housing GRF,Homes for Bolton CBL,913.04
867656,3030426,HAYS SPECIALIST RECRUITMENT,20/02/2014,53102,Agency Staff  Other,Property Services,Accomm Rationalisation Strategy,"1,642.27"
867656,3030426,HAYS SPECIALIST RECRUITMENT,20/02/2014,53102,Agency Staff  Other,Property Services,Operational Facilities Management,668.59
867656,3030426,HAYS SPECIALIST RECRUITMENT,20/02/2014,53102,Agency Staff  Other,Property Services,Projects,"1,897.95"
867656,3030426,HAYS SPECIALIST RECRUITMENT,20/02/2014,53102,Agency Staff  Other,Legal Trading,Legal Services Trading Account,"6,610.92"
867656,3030190,HAYS SPECIALIST RECRUITMENT,20/02/2014,53102,Agency Staff  Other,Adult Services,ACM  Management,949.89
867656,3030190,HAYS SPECIALIST RECRUITMENT,20/02/2014,53102,Agency Staff  Other,Adult Services,ACM  South,556.57
867656,3030190,HAYS SPECIALIST RECRUITMENT,20/02/2014,53102,Agency Staff  Other,Adult Services,Home Support Reablement,812.52
867656,3030190,HAYS SPECIALIST RECRUITMENT,20/02/2014,53102,Agency Staff  Other,Adult Services,Independent,793.46
867656,3030190,HAYS SPECIALIST RECRUITMENT,20/02/2014,53102,Agency Staff  Other,Adult Services,MH North Fieldwork Team,"1,667.27"
867656,3030190,HAYS SPECIALIST RECRUITMENT,20/02/2014,53102,Agency Staff  Other,Adult Services,OA  Alderbank  Residential,"4,823.42"
867656,3030190,HAYS SPECIALIST RECRUITMENT,20/02/2014,53102,Agency Staff  Other,Adult Services,OA  Darley Court Intermediate Care,"1,536.82"
867656,3030190,HAYS SPECIALIST RECRUITMENT,20/02/2014,53102,Agency Staff  Other,Adult Services,OA  Laburnum Lodge  Residential,"1,121.87"
867656,3030190,HAYS SPECIALIST RECRUITMENT,20/02/2014,53102,Agency Staff  Other,Adult Services,OA  Winifred Kettle  Residential,"1,267.48"
867656,3030190,HAYS SPECIALIST RECRUITMENT,20/02/2014,53102,Agency Staff  Other,Adult Services,STARS & ILS  Management,"1,552.40"
867656,3030190,HAYS SPECIALIST RECRUITMENT,20/02/2014,53102,Agency Staff  Other,Adult Services,Urgent Care,914.25
867656,3030190,HAYS SPECIALIST RECRUITMENT,20/02/2014,53102,Agency Staff  Other,Environmental Services,Activities and Operations,547.60
867656,3030190,HAYS SPECIALIST RECRUITMENT,20/02/2014,53102,Agency Staff  Other,Environmental Services,Civic Cleaning,"1,139.15"
867656,3030190,HAYS SPECIALIST RECRUITMENT,20/02/2014,53102,Agency Staff  Other,Environmental Services,Management & Overheads,767.80
867656,3030190,HAYS SPECIALIST RECRUITMENT,20/02/2014,53102,Agency Staff  Other,Environmental Services,Markets  Rent Account,"1,321.27"
867656,3030190,HAYS SPECIALIST RECRUITMENT,20/02/2014,53102,Agency Staff  Other,Environmental Services,Neighbourhood Management Support,710.02
867656,3030190,HAYS SPECIALIST RECRUITMENT,20/02/2014,53102,Agency Staff  Other,Environmental Services,Performance and Improvement,858.80
867656,3030190,HAYS SPECIALIST RECRUITMENT,20/02/2014,53102,Agency Staff  Other,Environmental Services,Regulatory Services,"1,260.00"
867656,3030190,HAYS SPECIALIST RECRUITMENT,20/02/2014,53102,Agency Staff  Other,Environmental Services,Regulatory Services Licensing,716.71
867656,3030190,HAYS SPECIALIST RECRUITMENT,20/02/2014,53102,Agency Staff  Other,Environmental Services,Transport Support Service,728.16
867656,3030190,HAYS SPECIALIST RECRUITMENT,20/02/2014,53102,Agency Staff  Other,Environmental Services,Waste,"11,441.35"
867656,3030190,HAYS SPECIALIST RECRUITMENT,20/02/2014,53102,Agency Staff  Other,Development & Regen,Economic Strategy,"1,319.85"
867656,3030190,HAYS SPECIALIST RECRUITMENT,20/02/2014,53102,Agency Staff  Other,Development & Regen,Planning Strategy,554.47
867656,3030190,HAYS SPECIALIST RECRUITMENT,20/02/2014,53102,Agency Staff  Other,Development & Regen,The Work Programme,550.17
867656,3030190,HAYS SPECIALIST RECRUITMENT,20/02/2014,53102,Agency Staff  Other,Children's Services,Admin Strategy&Performance,564.97
867656,3030190,HAYS SPECIALIST RECRUITMENT,20/02/2014,53102,Agency Staff  Other,Children's Services,Business Support    South District,"3,160.55"
867656,3030190,HAYS SPECIALIST RECRUITMENT,20/02/2014,53102,Agency Staff  Other,Children's Services,Business Support – Central Team,"1,035.38"
867656,3030190,HAYS SPECIALIST RECRUITMENT,20/02/2014,53102,Agency Staff  Other,Children's Services,Business Support – North District,"4,193.56"
867656,3030190,HAYS SPECIALIST RECRUITMENT,20/02/2014,53102,Agency Staff  Other,Children's Services,Children and Family Supp Svs North,"1,229.40"
867656,3030190,HAYS SPECIALIST RECRUITMENT,20/02/2014,53102,Agency Staff  Other,Children's Services,Children and Family Supp Svs South,"3,434.55"
867656,3030190,HAYS SPECIALIST RECRUITMENT,20/02/2014,53102,Agency Staff  Other,Children's Services,Children and Family Supp Svs West,"1,251.44"
867656,3030190,HAYS SPECIALIST RECRUITMENT,20/02/2014,53102,Agency Staff  Other,Children's Services,Disability Serv Family Support Team,955.73
867656,3030190,HAYS SPECIALIST RECRUITMENT,20/02/2014,53102,Agency Staff  Other,Finance Department,C.R.M. Operations,"7,103.51"
867656,3030190,HAYS SPECIALIST RECRUITMENT,20/02/2014,53102,Agency Staff  Other,Finance Department,Council Tax,610.29
867656,3030190,HAYS SPECIALIST RECRUITMENT,20/02/2014,53102,Agency Staff  Other,Finance Department,Customer Services,"1,128.00"
867656,3030190,HAYS SPECIALIST RECRUITMENT,20/02/2014,53102,Agency Staff  Other,Finance Department,Finance Ap Centre of Excellence,"1,056.44"
867656,3030190,HAYS SPECIALIST RECRUITMENT,20/02/2014,53102,Agency Staff  Other,Finance Department,Finance Dept Procurement Team,962.89
867656,3030190,HAYS SPECIALIST RECRUITMENT,20/02/2014,53102,Agency Staff  Other,Finance Department,Financial Management,671.55
867656,3030190,HAYS SPECIALIST RECRUITMENT,20/02/2014,53102,Agency Staff  Other,Housing GRF,Homes for Bolton CBL,811.33
867656,3030190,HAYS SPECIALIST RECRUITMENT,20/02/2014,53102,Agency Staff  Other,Property Services,Operational Facilities Management,668.57
867656,3030190,HAYS SPECIALIST RECRUITMENT,20/02/2014,53102,Agency Staff  Other,Property Services,Projects,"1,834.83"
867656,3030190,HAYS SPECIALIST RECRUITMENT,20/02/2014,53102,Agency Staff  Other,Legal Trading,Legal Services Trading Account,"9,313.76"
867656,3032468,HAYS SPECIALIST RECRUITMENT,24/02/2014,53102,Agency Staff  Other,Adult Services,ACM  Management,982.91
867656,3032468,HAYS SPECIALIST RECRUITMENT,24/02/2014,53102,Agency Staff  Other,Adult Services,"AD Finance, Income & Assess. Team",596.63
867656,3032468,HAYS SPECIALIST RECRUITMENT,24/02/2014,53102,Agency Staff  Other,Adult Services,Home Support Reablement,"1,219.59"
867656,3032468,HAYS SPECIALIST RECRUITMENT,24/02/2014,53102,Agency Staff  Other,Adult Services,Independent,797.02
867656,3032468,HAYS SPECIALIST RECRUITMENT,24/02/2014,53102,Agency Staff  Other,Adult Services,LD Provider  Supported Housing,"1,053.66"
867656,3032468,HAYS SPECIALIST RECRUITMENT,24/02/2014,53102,Agency Staff  Other,Adult Services,MH North Fieldwork Team,896.06
867656,3032468,HAYS SPECIALIST RECRUITMENT,24/02/2014,53102,Agency Staff  Other,Adult Services,OA  Alderbank  Residential,"3,919.18"
867656,3032468,HAYS SPECIALIST RECRUITMENT,24/02/2014,53102,Agency Staff  Other,Adult Services,OA  Darley Court Intermediate Care,"3,083.29"
867656,3032468,HAYS SPECIALIST RECRUITMENT,24/02/2014,53102,Agency Staff  Other,Adult Services,OA  Firwood  Residential,"1,023.16"
867656,3032468,HAYS SPECIALIST RECRUITMENT,24/02/2014,53102,Agency Staff  Other,Adult Services,OA  Laburnum Lodge  Residential,"1,863.11"
867656,3032468,HAYS SPECIALIST RECRUITMENT,24/02/2014,53102,Agency Staff  Other,Adult Services,OA  Residential Services Miscellaneous,574.47
867656,3032468,HAYS SPECIALIST RECRUITMENT,24/02/2014,53102,Agency Staff  Other,Adult Services,STARS & ILS  Management,"1,695.13"
867656,3032468,HAYS SPECIALIST RECRUITMENT,24/02/2014,53102,Agency Staff  Other,Adult Services,STARS & ILS  North,"2,404.99"
867656,3032468,HAYS SPECIALIST RECRUITMENT,24/02/2014,53102,Agency Staff  Other,Adult Services,Urgent Care,914.25
867656,3032468,HAYS SPECIALIST RECRUITMENT,24/02/2014,53102,Agency Staff  Other,Environmental Services,Activities and Operations,547.60
867656,3032468,HAYS SPECIALIST RECRUITMENT,24/02/2014,53102,Agency Staff  Other,Environmental Services,Civic Cleaning,716.35
867656,3032468,HAYS SPECIALIST RECRUITMENT,24/02/2014,53102,Agency Staff  Other,Environmental Services,Management & Overheads,726.28
867656,3032468,HAYS SPECIALIST RECRUITMENT,24/02/2014,53102,Agency Staff  Other,Environmental Services,Markets  Rent Account,"6,493.09"
867656,3032468,HAYS SPECIALIST RECRUITMENT,24/02/2014,53102,Agency Staff  Other,Environmental Services,Neighbourhood Management Support,563.68
867656,3032468,HAYS SPECIALIST RECRUITMENT,24/02/2014,53102,Agency Staff  Other,Environmental Services,Regulatory Services,630.00
867656,3032468,HAYS SPECIALIST RECRUITMENT,24/02/2014,53102,Agency Staff  Other,Environmental Services,Transport Support Service,"1,067.66"
867656,3032468,HAYS SPECIALIST RECRUITMENT,24/02/2014,53102,Agency Staff  Other,Environmental Services,Waste,"12,304.08"
867656,3032468,HAYS SPECIALIST RECRUITMENT,24/02/2014,53102,Agency Staff  Other,Development & Regen,Divisional Development,520.96
867656,3032468,HAYS SPECIALIST RECRUITMENT,24/02/2014,53102,Agency Staff  Other,Development & Regen,Economic Strategy,725.78
867656,3032468,HAYS SPECIALIST RECRUITMENT,24/02/2014,53102,Agency Staff  Other,Development & Regen,Planning Strategy,568.72
867656,3032468,HAYS SPECIALIST RECRUITMENT,24/02/2014,53102,Agency Staff  Other,Development & Regen,The Work Programme,550.17
867656,3032468,HAYS SPECIALIST RECRUITMENT,24/02/2014,53102,Agency Staff  Other,Children's Services,Business Support    South District,"2,124.93"
867656,3032468,HAYS SPECIALIST RECRUITMENT,24/02/2014,53102,Agency Staff  Other,Children's Services,Business Support – Central Team,"1,035.38"
867656,3032468,HAYS SPECIALIST RECRUITMENT,24/02/2014,53102,Agency Staff  Other,Children's Services,Business Support – North District,"2,810.57"
867656,3032468,HAYS SPECIALIST RECRUITMENT,24/02/2014,53102,Agency Staff  Other,Children's Services,Children and Family Supp Svs North,"1,117.62"
867656,3032468,HAYS SPECIALIST RECRUITMENT,24/02/2014,53102,Agency Staff  Other,Children's Services,Children and Family Supp Svs South,"4,144.15"
867656,3032468,HAYS SPECIALIST RECRUITMENT,24/02/2014,53102,Agency Staff  Other,Children's Services,Children and Family Supp Svs West,"1,329.35"
867656,3032468,HAYS SPECIALIST RECRUITMENT,24/02/2014,53102,Agency Staff  Other,Children's Services,Disability Serv Family Support Team,961.16
867656,3032468,HAYS SPECIALIST RECRUITMENT,24/02/2014,53102,Agency Staff  Other,Children's Services,Disability Serv Fieldwork Team,"1,393.38"
867656,3032468,HAYS SPECIALIST RECRUITMENT,24/02/2014,53102,Agency Staff  Other,Children's Services,Targeted Youth Support,590.14
867656,3032468,HAYS SPECIALIST RECRUITMENT,24/02/2014,53102,Agency Staff  Other,Finance Department,C.R.M. Operations,"8,782.59"
867656,3032468,HAYS SPECIALIST RECRUITMENT,24/02/2014,53102,Agency Staff  Other,Finance Department,Council Tax,794.03
867656,3032468,HAYS SPECIALIST RECRUITMENT,24/02/2014,53102,Agency Staff  Other,Finance Department,Customer Services,"1,126.28"
867656,3032468,HAYS SPECIALIST RECRUITMENT,24/02/2014,53102,Agency Staff  Other,Finance Department,Finance Ap Centre of Excellence,"1,056.44"
867656,3032468,HAYS SPECIALIST RECRUITMENT,24/02/2014,53102,Agency Staff  Other,Finance Department,Finance Dept Procurement Team,"1,096.06"
867656,3032468,HAYS SPECIALIST RECRUITMENT,24/02/2014,53102,Agency Staff  Other,Finance Department,Financial Management,671.55
867656,3032468,HAYS SPECIALIST RECRUITMENT,24/02/2014,53102,Agency Staff  Other,Housing GRF,Homes for Bolton CBL,889.24
867656,3032468,HAYS SPECIALIST RECRUITMENT,24/02/2014,53102,Agency Staff  Other,Housing GRF,Housing Standards,530.58
867656,3032468,HAYS SPECIALIST RECRUITMENT,24/02/2014,53102,Agency Staff  Other,Property Services,Accomm Rationalisation Strategy,"1,054.28"
867656,3032468,HAYS SPECIALIST RECRUITMENT,24/02/2014,53102,Agency Staff  Other,Property Services,Operational Facilities Management,632.43
867656,3032468,HAYS SPECIALIST RECRUITMENT,24/02/2014,53102,Agency Staff  Other,Property Services,Projects,"1,888.75"
867656,3032468,HAYS SPECIALIST RECRUITMENT,24/02/2014,53102,Agency Staff  Other,Legal Trading,Legal Services Trading Account,"3,924.92"
6367,3019262,HAZELBROOK CHRISTIAN NURSING HOME,04/02/2014,54301,Residential Provision,Adult Services,OA  External Provision Residential,"1,931.25"
6367,3019262,HAZELBROOK CHRISTIAN NURSING HOME,04/02/2014,54302,Nursing Provision,Adult Services,OA  External Provision Residential,"3,862.50"
73073,3030318,HEARING PRODUCTS INTERNATIONAL LIMITED,20/02/2014,44051,Clients Aids & Adaptations,Adult Services,ICES,"1,724.00"
13239,3024583,HEIGHTVALE LTD#ONE CALL#BOLTON CARPETS & UPHOLSTERY SVCS LTD,13/02/2014,20100,Day To Day Maintenance,Children's Services,Music ServMusic Service general,616.00
3786,3041496,HELPING HAND CO (LEDBURY) LTD,27/02/2014,44051,Clients Aids & Adaptations,Adult Services,ICES,"3,893.00"
3789,3024450,HENRY ALTY LIMITED,20/02/2014,40609,Horticultural Materials,Environmental Services,Heaton Fold,"2,626.64"
6369,3019217,HENSHAWS SOCIETY FOR THE BLIND,04/02/2014,54301,Residential Provision,Adult Services,PD Purchaser Residential Care,"3,683.40"
2278335,3021002,HIBU (UK) LIMITED,06/02/2014,40100,Operational Equipment Purchase,Environmental Services,Security Services,705.40
258947,3019314,HIGHCLIFFE RESIDENTIAL HOME#TEAMCARE LTD,04/02/2014,54301,Residential Provision,Adult Services,OA  External Provision Residential,"2,102.50"
2486310,3026681,HIGHWIRE LTD,13/02/2014,20100,Day To Day Maintenance,Environmental Services,Assets,735.00
236248,3019309,HILLCREST VERNON,04/02/2014,54301,Residential Provision,Adult Services,LD Purchaser Residential Care,"6,088.40"
2013321,3019335,HILLVIEW CARE HOME,04/02/2014,54301,Residential Provision,Adult Services,OA  External Provision Residential,"2,102.50"
13294,3032556,HOLGATE HOUSE LIMITED,24/02/2014,54301,Residential Provision,Adult Services,Drugs Pooled Treatment Budget,"1,842.28"
8840,3032490,HOLIDAY INN UK,24/02/2014,19104,Training Exp  Ext Seminars,Environmental Services,Community Safety,733.33
6454,3019224,HOLLANDS NURSING HOME,04/02/2014,54301,Residential Provision,Adult Services,LD Purchaser Residential Care,"7,093.57"
6454,3019224,HOLLANDS NURSING HOME,04/02/2014,54301,Residential Provision,Adult Services,MH Residential External Provision,"8,690.65"
6454,3019224,HOLLANDS NURSING HOME,04/02/2014,54302,Nursing Provision,Adult Services,MH Residential External Provision,"11,022.15"
6454,3019224,HOLLANDS NURSING HOME,04/02/2014,54301,Residential Provision,Adult Services,OA  External Provision Residential,"2,407.94"
6454,3019224,HOLLANDS NURSING HOME,04/02/2014,54302,Nursing Provision,Adult Services,OA  External Provision Residential,"1,511.96"
6454,3019224,HOLLANDS NURSING HOME,04/02/2014,54301,Residential Provision,Adult Services,PD Purchaser Residential Care,"6,751.22"
6454,3019224,HOLLANDS NURSING HOME,04/02/2014,54302,Nursing Provision,Adult Services,PD Purchaser Residential Care,"11,770.70"
6454,3019223,HOLLANDS NURSING HOME,04/02/2014,54302,Nursing Provision,Adult Services,PD Purchaser Residential Care,"7,529.14"
128732,3041334,HOMECARE FOR YOU LTD#BLACKBURN,27/02/2014,52200,Contracted Services,Adult Services,OA  Home Care Services external provision,"26,172.15"
1617292,3035123,HOMECARE SUPPORT,24/02/2014,52200,Contracted Services,Adult Services,OA  Home Care Services external provision,"46,544.40"
369698,3019318,HOMELEA RESIDENTIAL CARE HOME,04/02/2014,54301,Residential Provision,Adult Services,OA  External Provision Residential,"2,304.40"
1548504,3043575,HORWICH FESTIVAL OF RACING,27/02/2014,48205,Promoting Bolton,Development & Regen,Project Revenue Account,"2,000.00"
217235,3019307,HOURIGAN HOUSE#BOROUGH CARE SERVICES,04/02/2014,54301,Residential Provision,Adult Services,OA  External Provision Residential,"1,825.00"
217550,3040989,HOUSING SYSTEMS LTD,27/02/2014,19104,Training Exp  Ext Seminars,Finance Department,Take up & Visiting Team,725.00
2506298,3020959,HOWARTH SECURITY INSTALLATIONS#HSI,06/02/2014,48509,Other Fees,Children's Services,Management Team,"2,700.00"
51831,3039634,HSK SOLICITORS,24/02/2014,Z1051,Work in Progress Additions,Development & Regen,Development & Regeneration Capital,"123,950.00"
6138,3019212,HYDE  LEA,04/02/2014,54301,Residential Provision,Adult Services,OA  External Provision Residential,"23,839.46"
302829,3043552,IDOX SOFTWARE LTD,27/02/2014,45431,Computer Software Licences,Development & Regen,Spatial Data  from GIS,"17,454.55"
302829,3024562,IDOX SOFTWARE LTD,13/02/2014,45431,Computer Software Licences,Development & Regen,Spatial Data  from GIS,"17,454.55"
233337,3024901,IMAG LIMITED,13/02/2014,40601,General Materials,Environmental Services,Activities and Operations,672.00
59967,3020880,IMPACT MARKETING & PUBLICITY LTD,06/02/2014,48203,Marketing,Central Services,Marketing  General,750.00
1194842,3043237,IMPRESSION (BOLTON) LIMITED#1,27/02/2014,48509,Other Fees,Finance Department,LMA External Funded Projects,"1,200.00"
1194842,3029743,IMPRESSION (BOLTON) LIMITED#1,20/02/2014,48203,Marketing,Central Services,Marketing  General,605.00
1194842,3020177,IMPRESSION (BOLTON) LIMITED#1,06/02/2014,48203,Marketing,Central Services,Marketing  General,"3,150.00"
1194842,3020179,IMPRESSION (BOLTON) LIMITED#1,06/02/2014,48203,Marketing,Central Services,Marketing  General,548.00
1194842,3043243,IMPRESSION (BOLTON) LIMITED#1,27/02/2014,48203,Marketing,Central Services,Marketing  General,815.00
1853301,3027044,IMPROVING SCHOOLS EFFECTIVENESS,13/02/2014,19103,Training Exp  In House,Children's Services,Additional Funding – Savings,500.00
1851291,3029480,INCUBE LTD,20/02/2014,48509,Other Fees,Children's Services,Blackrod Youth Centre,"9,150.00"
3909,3031842,INFORMATION & DATA NETWORK SUPPLIES LTD#IDN,27/02/2014,45400,Computer Purchase,Children's Services,Admin IT (Schools),"9,229.54"
3909,3023254,INFORMATION & DATA NETWORK SUPPLIES LTD#IDN,13/02/2014,45400,Computer Purchase,Children's Services,Admin IT (Schools),"3,549.24"
3909,3040658,INFORMATION & DATA NETWORK SUPPLIES LTD#IDN,27/02/2014,45400,Computer Purchase,Children's Services,Admin IT (Schools),"3,655.74"
3909,3029932,INFORMATION & DATA NETWORK SUPPLIES LTD#IDN,20/02/2014,40101,Operational Equipment Maint,Children's Services,Admin IT (Schools),"5,449.25"
3909,3029933,INFORMATION & DATA NETWORK SUPPLIES LTD#IDN,20/02/2014,40601,General Materials,Children's Services,Admin IT (Schools),"2,412.52"
3909,3040656,INFORMATION & DATA NETWORK SUPPLIES LTD#IDN,27/02/2014,40140,Office Equipment Purchase,Children's Services,Admin IT (Schools),"10,599.80"
3909,3031841,INFORMATION & DATA NETWORK SUPPLIES LTD#IDN,27/02/2014,45400,Computer Purchase,Children's Services,Admin IT (Schools),"1,979.30"
3969,3040459,IRWELL VALLEY HOUSING ASSOCIATION,27/02/2014,52200,Contracted Services,Adult Services,Supporting People  Capital Financing,"2,896.65"
3969,3030298,IRWELL VALLEY HOUSING ASSOCIATION,20/02/2014,52200,Contracted Services,Adult Services,Supporting People  Capital Financing,"16,952.97"
2178306,3025200,ISG CONSTRUCTION LTD,13/02/2014,Z1051,Work in Progress Additions,Property Services,Property Services Balance Sheet,"209,491.00"
267154,3019654,J A TYRE SERVICE LTD,06/02/2014,31303,Tyres,Environmental Services,Transport Support Service,586.00
267154,3041204,J A TYRE SERVICE LTD,27/02/2014,31303,Tyres,Environmental Services,Transport Support Service,501.50
267154,3041207,J A TYRE SERVICE LTD,27/02/2014,31303,Tyres,Environmental Services,Transport Support Service,504.60
267154,3041223,J A TYRE SERVICE LTD,27/02/2014,31303,Tyres,Environmental Services,Transport Support Service,525.40
267154,3019652,J A TYRE SERVICE LTD,06/02/2014,31303,Tyres,Environmental Services,Transport Support Service,763.45
6399,3042997,J DICKINSON & SONS (HORWICH) LTD#2,27/02/2014,40610,Direct Materials,Environmental Services,Highway Services,"1,172.63"
6399,3042997,J DICKINSON & SONS (HORWICH) LTD#2,27/02/2014,40610,Direct Materials,Environmental Services,Highways Maintenance Billable Costs,794.32
6399,3031452,J DICKINSON & SONS (HORWICH) LTD#2,20/02/2014,40610,Direct Materials,Environmental Services,Highway Services,610.05
6399,3031452,J DICKINSON & SONS (HORWICH) LTD#2,20/02/2014,40610,Direct Materials,Environmental Services,Highways Maintenance Billable Costs,517.92
6399,3031907,J DICKINSON & SONS (HORWICH) LTD#2,20/02/2014,20101,Programmed Maint. Work,Environmental Services,Highways Managers,"1,252.00"
6399,3027201,J DICKINSON & SONS (HORWICH) LTD#2,17/02/2014,20101,Programmed Maint. Work,Environmental Services,Highways Managers,652.79
6399,3042990,J DICKINSON & SONS (HORWICH) LTD#2,27/02/2014,20101,Programmed Maint. Work,Environmental Services,Highways Managers,758.15
6399,3025366,J DICKINSON & SONS (HORWICH) LTD#2,13/02/2014,Z6008,Expense AP Accrual,Bolton MBC Balance Sheet,Bolton MBC Balance Sheet,"4,554.08"
6399,3027158,J DICKINSON & SONS (HORWICH) LTD#2,17/02/2014,Z6008,Expense AP Accrual,Bolton MBC Balance Sheet,Bolton MBC Balance Sheet,587.10
6399,3027173,J DICKINSON & SONS (HORWICH) LTD#2,17/02/2014,Z6008,Expense AP Accrual,Bolton MBC Balance Sheet,Bolton MBC Balance Sheet,519.75
6399,3027197,J DICKINSON & SONS (HORWICH) LTD#2,17/02/2014,Z6008,Expense AP Accrual,Bolton MBC Balance Sheet,Bolton MBC Balance Sheet,609.75
6399,3031453,J DICKINSON & SONS (HORWICH) LTD#2,20/02/2014,Z6008,Expense AP Accrual,Bolton MBC Balance Sheet,Bolton MBC Balance Sheet,863.19
6399,3031455,J DICKINSON & SONS (HORWICH) LTD#2,20/02/2014,Z6008,Expense AP Accrual,Bolton MBC Balance Sheet,Bolton MBC Balance Sheet,583.64
6399,3038837,J DICKINSON & SONS (HORWICH) LTD#2,24/02/2014,26106,Refuse Collection,Environmental Services,Markets  Rent Account,"2,334.46"
6399,3039613,J DICKINSON & SONS (HORWICH) LTD#2,24/02/2014,26106,Refuse Collection,Environmental Services,Markets  Rent Account,511.05
6399,3037319,J DICKINSON & SONS (HORWICH) LTD#2,24/02/2014,26106,Refuse Collection,Environmental Services,Markets  Rent Account,"1,295.67"
6399,3032658,J DICKINSON & SONS (HORWICH) LTD#2,24/02/2014,26106,Refuse Collection,Environmental Services,Markets  Rent Account,667.27
6399,3034068,J DICKINSON & SONS (HORWICH) LTD#2,24/02/2014,26106,Refuse Collection,Environmental Services,Markets  Rent Account,657.13
6399,3025558,J DICKINSON & SONS (HORWICH) LTD#2,13/02/2014,26106,Refuse Collection,Environmental Services,Activities and Operations,"1,273.36"
6399,3025584,J DICKINSON & SONS (HORWICH) LTD#2,13/02/2014,26106,Refuse Collection,Environmental Services,Activities and Operations,767.95
6399,3041379,J DICKINSON & SONS (HORWICH) LTD#2,27/02/2014,26106,Refuse Collection,Environmental Services,Activities and Operations,"1,074.87"
6399,3019431,J DICKINSON & SONS (HORWICH) LTD#2,06/02/2014,26106,Refuse Collection,Environmental Services,Bereavement Services,613.20
6399,3031446,J DICKINSON & SONS (HORWICH) LTD#2,20/02/2014,40610,Direct Materials,Environmental Services,Highway Services,"1,489.52"
6401,3029488,J HOPKINS (CONTRACTORS) LTD,20/02/2014,Z6008,Expense AP Accrual,Bolton MBC Balance Sheet,Bolton MBC Balance Sheet,"10,080.00"
6401,3041282,J HOPKINS (CONTRACTORS) LTD,27/02/2014,Z6008,Expense AP Accrual,Bolton MBC Balance Sheet,Bolton MBC Balance Sheet,"36,952.15"
6401,3025339,J HOPKINS (CONTRACTORS) LTD,13/02/2014,Z6008,Expense AP Accrual,Bolton MBC Balance Sheet,Bolton MBC Balance Sheet,"24,746.52"
6401,3021548,J HOPKINS (CONTRACTORS) LTD,10/02/2014,Z6008,Expense AP Accrual,Bolton MBC Balance Sheet,Bolton MBC Balance Sheet,"10,080.00"
6401,3029435,J HOPKINS (CONTRACTORS) LTD,20/02/2014,Z6008,Expense AP Accrual,Bolton MBC Balance Sheet,Bolton MBC Balance Sheet,"23,665.85"
10548,3043326,J P LENNARD LTD,27/02/2014,48629,Miscellaneous Expenses,Adult Services,Adult Disabilities Day Services  Staff & Admin Costs,648.00
6403,3030135,J PHILLIPS & SONS LTD#1,20/02/2014,Z1051,Work in Progress Additions,Property Services,Corporate Property Capital Project Transfers to Other Projects,"1,895.00"
6403,3042407,J PHILLIPS & SONS LTD#1,27/02/2014,20100,Day To Day Maintenance,Children's Services,Outdoor Education,"1,923.62"
2112387,3024457,J W YOUNG (BUTCHERS) LIMITED,10/02/2014,41101,Catering ProvisionsFood,Environmental Services,Catering,"1,602.27"
2112387,3020350,J W YOUNG (BUTCHERS) LIMITED,06/02/2014,41101,Catering ProvisionsFood,Environmental Services,Catering,"2,341.05"
2112387,3030120,J W YOUNG (BUTCHERS) LIMITED,20/02/2014,41101,Catering ProvisionsFood,Environmental Services,Catering,"2,476.09"
2112387,3041114,J W YOUNG (BUTCHERS) LIMITED,27/02/2014,41101,Catering ProvisionsFood,Environmental Services,Catering,"2,076.88"
2284291,3043573,JACKSON JACKSON & SONS LTD,27/02/2014,Z6008,Expense AP Accrual,Bolton MBC Balance Sheet,Bolton MBC Balance Sheet,500.00
2284291,3043574,JACKSON JACKSON & SONS LTD,27/02/2014,Z6008,Expense AP Accrual,Bolton MBC Balance Sheet,Bolton MBC Balance Sheet,"1,624.42"
2284291,3043576,JACKSON JACKSON & SONS LTD,27/02/2014,Z6008,Expense AP Accrual,Bolton MBC Balance Sheet,Bolton MBC Balance Sheet,"1,450.00"
2284291,3030125,JACKSON JACKSON & SONS LTD,20/02/2014,48509,Other Fees,Property Services,Corporate Property Revenue Project Transfers to Other Projects,"15,675.00"
2284291,3031495,JACKSON JACKSON & SONS LTD,20/02/2014,Z6008,Expense AP Accrual,Bolton MBC Balance Sheet,Bolton MBC Balance Sheet,500.00
2397316,3032668,JACQUELINE DEANS,25/02/2014,48502,Legal Fees,Children's Services,Management Team,"1,800.00"
4060,3019273,JAH-JIREH,04/02/2014,54301,Residential Provision,Adult Services,OA  External Provision Residential,"1,992.70"
4070,3029746,JAMES LECKEY DESIGN LTD,20/02/2014,44051,Clients Aids & Adaptations,Adult Services,ICES,964.00
1603373,3019756,REDACTED - PERSONAL DATA,06/02/2014,48509,Other Fees,Finance Department,LMA External Funded Projects,"1,375.00"
1714312,3029934,JANET(UK),20/02/2014,40100,Operational Equipment Purchase,Children's Services,Admin IT (Schools),"10,640.00"
58799,3032524,JAY FOSTERING LIMITED,24/02/2014,52000,Vol Assoc Grants  General,Children's Services,Res Serv Agency Placements,"3,235.96"
58799,3032525,JAY FOSTERING LIMITED,24/02/2014,52000,Vol Assoc Grants  General,Children's Services,Res Serv Agency Placements,"3,162.04"
68463,3032005,JC APPLICATIONS DEVELOPMENT,20/02/2014,45431,Computer Software Licences,Finance Department,Financial Management,"6,344.00"
166850,3024731,JCM SEATING SOLUTIONS,13/02/2014,44051,Clients Aids & Adaptations,Adult Services,ICES,"2,896.57"
230653,3026757,REDACTED - PERSONAL DATA T/A ARMADILLO IMPORTS,13/02/2014,40613,Goods for Resale,Finance Department,LMA Retail,513.12
2921,3025408,JOHN DAVIDSON (PIPES) LTD#1,20/02/2014,Z1051,Work in Progress Additions,Highways,Stores,574.00
4187,3025363,JOHN WILEY & SONS LTD,13/02/2014,47200,General Subscriptions,Public Health,Knowledge & Resources,725.00
1122809,3029358,JONES LIGHTING LTD,17/02/2014,20501,Engineering Work,Environmental Services,Highway Services,539.09
4211,3041183,JP COMMERCIAL KITCHENS,27/02/2014,40100,Operational Equipment Purchase,Adult Services,OA  Community Meals,"1,347.50"
2394300,3023019,REDACTED - PERSONAL DATA,10/02/2014,48509,Other Fees,Finance Department,LMA External Funded Projects,500.00
115484,3029982,KAYS TRAFFIC MANAGEMENT SYSTEMS LTD,20/02/2014,Z6008,Expense AP Accrual,Bolton MBC Balance Sheet,Bolton MBC Balance Sheet,800.00
7747,3019255,KENYON LODGE,04/02/2014,54301,Residential Provision,Adult Services,OA  External Provision Residential,"1,882.55"
101173,3026477,KEYMEN ASSOCIATES LTD#MAYDAY,13/02/2014,52200,Contracted Services,Adult Services,OA  Home Care Services external provision,"24,641.90"
1989355,3019334,KINGARTH,04/02/2014,54301,Residential Provision,Adult Services,LD Purchaser Residential Care,"13,953.00"
6434,3019263,KNIGHTSWOOD RESIDENTIAL HOME,04/02/2014,54301,Residential Provision,Adult Services,OA  External Provision Residential,"17,872.85"
6436,3043331,KOMPAN LTD,27/02/2014,20502,Maint Of Playgrounds,Environmental Services,Assets,"2,109.78"
2198,3040489,KPMG LLP,27/02/2014,48509,Other Fees,Financial Services,Miscellaneous Transactions,"4,830.00"
1937291,3019333,LABURNUM HOUSE LTD#REDACTED - PERSONAL DATA,04/02/2014,54301,Residential Provision,Adult Services,MH Residential External Provision,"1,960.85"
6440,3019220,LADYMEAD NURSING HOME#FACTOR ICON HEALTHCARE (UK) LIMITED,04/02/2014,54301,Residential Provision,Adult Services,OA  External Provision Residential,"16,295.58"
6440,3019220,LADYMEAD NURSING HOME#FACTOR ICON HEALTHCARE (UK) LIMITED,04/02/2014,54302,Nursing Provision,Adult Services,OA  External Provision Residential,"3,919.90"
6440,3019219,LADYMEAD NURSING HOME#FACTOR ICON HEALTHCARE (UK) LIMITED,04/02/2014,54301,Residential Provision,Adult Services,OA  External Provision Residential,"1,063.98"
2433402,3025353,LAFARGE TARMAC TRADING LIMITED,13/02/2014,Z6008,Expense AP Accrual,Bolton MBC Balance Sheet,Bolton MBC Balance Sheet,621.18
2433402,3025359,LAFARGE TARMAC TRADING LIMITED,13/02/2014,Z6008,Expense AP Accrual,Bolton MBC Balance Sheet,Bolton MBC Balance Sheet,797.71
2433402,3026970,LAFARGE TARMAC TRADING LIMITED,13/02/2014,Z6008,Expense AP Accrual,Bolton MBC Balance Sheet,Bolton MBC Balance Sheet,606.95
2433402,3026977,LAFARGE TARMAC TRADING LIMITED,13/02/2014,Z6008,Expense AP Accrual,Bolton MBC Balance Sheet,Bolton MBC Balance Sheet,638.56
2433402,3041493,LAFARGE TARMAC TRADING LIMITED,27/02/2014,Z6008,Expense AP Accrual,Bolton MBC Balance Sheet,Bolton MBC Balance Sheet,"1,480.60"
2433402,3040843,LAFARGE TARMAC TRADING LIMITED,27/02/2014,Z6008,Expense AP Accrual,Bolton MBC Balance Sheet,Bolton MBC Balance Sheet,632.24
2433402,3029374,LAFARGE TARMAC TRADING LIMITED,17/02/2014,Z6008,Expense AP Accrual,Bolton MBC Balance Sheet,Bolton MBC Balance Sheet,"1,007.84"
2433402,3029377,LAFARGE TARMAC TRADING LIMITED,17/02/2014,Z6008,Expense AP Accrual,Bolton MBC Balance Sheet,Bolton MBC Balance Sheet,632.24
2433402,3029380,LAFARGE TARMAC TRADING LIMITED,17/02/2014,Z6008,Expense AP Accrual,Bolton MBC Balance Sheet,Bolton MBC Balance Sheet,"1,409.58"
2433402,3029381,LAFARGE TARMAC TRADING LIMITED,17/02/2014,Z6008,Expense AP Accrual,Bolton MBC Balance Sheet,Bolton MBC Balance Sheet,619.60
2433402,3029383,LAFARGE TARMAC TRADING LIMITED,17/02/2014,Z6008,Expense AP Accrual,Bolton MBC Balance Sheet,Bolton MBC Balance Sheet,"1,033.19"
2433402,3029385,LAFARGE TARMAC TRADING LIMITED,17/02/2014,Z6008,Expense AP Accrual,Bolton MBC Balance Sheet,Bolton MBC Balance Sheet,"1,109.93"
2433402,3029387,LAFARGE TARMAC TRADING LIMITED,17/02/2014,Z6008,Expense AP Accrual,Bolton MBC Balance Sheet,Bolton MBC Balance Sheet,"1,153.13"
2433402,3029389,LAFARGE TARMAC TRADING LIMITED,17/02/2014,Z6008,Expense AP Accrual,Bolton MBC Balance Sheet,Bolton MBC Balance Sheet,"1,006.47"
2433402,3024421,LAFARGE TARMAC TRADING LIMITED,10/02/2014,Z6008,Expense AP Accrual,Bolton MBC Balance Sheet,Bolton MBC Balance Sheet,"1,550.60"
2433402,3024423,LAFARGE TARMAC TRADING LIMITED,10/02/2014,Z6008,Expense AP Accrual,Bolton MBC Balance Sheet,Bolton MBC Balance Sheet,"1,486.52"
2433402,3024425,LAFARGE TARMAC TRADING LIMITED,10/02/2014,Z6008,Expense AP Accrual,Bolton MBC Balance Sheet,Bolton MBC Balance Sheet,"1,323.23"
2433402,3024428,LAFARGE TARMAC TRADING LIMITED,10/02/2014,Z6008,Expense AP Accrual,Bolton MBC Balance Sheet,Bolton MBC Balance Sheet,"1,223.08"
2433402,3024429,LAFARGE TARMAC TRADING LIMITED,10/02/2014,Z6008,Expense AP Accrual,Bolton MBC Balance Sheet,Bolton MBC Balance Sheet,"1,074.81"
2433402,3024431,LAFARGE TARMAC TRADING LIMITED,10/02/2014,Z6008,Expense AP Accrual,Bolton MBC Balance Sheet,Bolton MBC Balance Sheet,"1,010.82"
2433402,3024434,LAFARGE TARMAC TRADING LIMITED,10/02/2014,Z6008,Expense AP Accrual,Bolton MBC Balance Sheet,Bolton MBC Balance Sheet,693.56
2433402,3024473,LAFARGE TARMAC TRADING LIMITED,10/02/2014,Z6008,Expense AP Accrual,Bolton MBC Balance Sheet,Bolton MBC Balance Sheet,"1,009.21"
2433402,3024476,LAFARGE TARMAC TRADING LIMITED,10/02/2014,Z6008,Expense AP Accrual,Bolton MBC Balance Sheet,Bolton MBC Balance Sheet,606.95
2433402,3024413,LAFARGE TARMAC TRADING LIMITED,10/02/2014,Z6008,Expense AP Accrual,Bolton MBC Balance Sheet,Bolton MBC Balance Sheet,"1,350.54"
2433402,3024415,LAFARGE TARMAC TRADING LIMITED,10/02/2014,Z6008,Expense AP Accrual,Bolton MBC Balance Sheet,Bolton MBC Balance Sheet,885.51
2433402,3024416,LAFARGE TARMAC TRADING LIMITED,10/02/2014,Z6008,Expense AP Accrual,Bolton MBC Balance Sheet,Bolton MBC Balance Sheet,"1,485.04"
2433402,3024419,LAFARGE TARMAC TRADING LIMITED,10/02/2014,Z6008,Expense AP Accrual,Bolton MBC Balance Sheet,Bolton MBC Balance Sheet,"1,226.98"
4457,3019279,LAKESIDE CARE HOME,04/02/2014,54301,Residential Provision,Adult Services,OA  External Provision Residential,"1,825.00"
2404295,3019373,LAKESIDE RESIDENTIAL CARE HOME,04/02/2014,54301,Residential Provision,Adult Services,OA  External Provision Residential,"1,930.00"
2146291,3029716,LAMBERT WALKER CONSERVATION AND RESTORATION LTD,20/02/2014,Z1051,Work in Progress Additions,Environmental Services,Environmental Services Balance sheet,"52,743.42"
2146291,3029722,LAMBERT WALKER CONSERVATION AND RESTORATION LTD,20/02/2014,Z1051,Work in Progress Additions,Environmental Services,Environmental Services Balance sheet,"32,048.54"
36518,3024719,LANGHAM,13/02/2014,44051,Clients Aids & Adaptations,Adult Services,ICES,617.80
2456300,3037214,LETS GO GLOBAL ARTS & MEDIA CIC,24/02/2014,48509,Other Fees,Finance Department,LMA External Funded Projects,"3,000.00"
1015735,3019321,LEVER EDGE CARE HOME,04/02/2014,54301,Residential Provision,Adult Services,OA  External Provision Residential,"10,240.41"
1015735,3019322,LEVER EDGE CARE HOME,04/02/2014,54301,Residential Provision,Adult Services,MH Residential External Provision,"1,986.35"
1015735,3019322,LEVER EDGE CARE HOME,04/02/2014,54301,Residential Provision,Adult Services,OA  External Provision Residential,"121,392.95"
1015735,3019322,LEVER EDGE CARE HOME,04/02/2014,54301,Residential Provision,Adult Services,PD Purchaser Residential Care,"1,986.35"
1104799,3027699,LIAM TRIPPIER SCHOOL IMPROVEMENT LTD,17/02/2014,48509,Other Fees,Children's Services,Additional Funding – Savings,982.95
514522,3030074,LIFELINE PROJECT LTD,20/02/2014,52200,Contracted Services,Adult Services,Drugs Pooled Treatment Budget,"70,631.75"
514522,3030075,LIFELINE PROJECT LTD,20/02/2014,52200,Contracted Services,Adult Services,Drugs Pooled Treatment Budget,"20,833.17"
514522,3030072,LIFELINE PROJECT LTD,20/02/2014,52200,Contracted Services,Adult Services,Drugs Pooled Treatment Budget,"28,956.75"
514522,3030070,LIFELINE PROJECT LTD,20/02/2014,52200,Contracted Services,Adult Services,Drugs Pooled Treatment Budget,"66,460.42"
363536,3019317,LITTLE SISTERS OF THE POOR,04/02/2014,54301,Residential Provision,Adult Services,OA  External Provision Residential,"4,154.20"
130483,3040497,LLOYDS PHARMACY,27/02/2014,52200,Contracted Services,Adult Services,Drugs Pooled Treatment Budget,539.40
7977,3040929,LOCAL GOVERNMENT ASSOCIATION,27/02/2014,48509,Other Fees,Finance Department,Financial Management,"1,329.05"
116345,3024490,LOOP PUBLISHING LTD,13/02/2014,48200,Advertising General,Environmental Services,Markets  Rent Account,500.00
524532,3025161,LPW (EUROPE) LTD,13/02/2014,31305,Vehicle Servicing,Environmental Services,Transport Support Service,"1,008.00"
1817290,3041229,LUCION ENVIRONMENTAL LTD,27/02/2014,20102,Health and Safety,Central Corporate,Land & Property Portfolios,995.00
36816,3040994,LUCY WILSON-BARNES,27/02/2014,28100,Other Prem Insurance Direct,Central Corporate,Land & Property Portfolios,"1,400.00"
36816,3041003,LUCY WILSON-BARNES,27/02/2014,48502,Legal Fees,Central Services,Legal Services Client,600.00
6188,3027437,LUCY ZODION LIMITED,17/02/2014,Z1051,Work in Progress Additions,Highways,Stores,"4,851.08"
6188,3041184,LUCY ZODION LIMITED,27/02/2014,40610,Direct Materials,Environmental Services,Lighting / Stores Billable Costs,946.40
6188,3040650,LUCY ZODION LIMITED,27/02/2014,40610,Direct Materials,Environmental Services,Lighting / Stores Billable Costs,"1,965.60"
6449,3019221,LYNGATE RESIDENTIAL HOME,04/02/2014,54301,Residential Provision,Adult Services,OA  External Provision Residential,559.33
6449,3019222,LYNGATE RESIDENTIAL HOME,04/02/2014,54301,Residential Provision,Adult Services,OA  External Provision Residential,"42,241.84"
6450,3028405,LYONS ELECTRICAL LTD,17/02/2014,20300,Heating & Electrical Work,Environmental Services,Activities and Operations,600.00
6450,3028403,LYONS ELECTRICAL LTD,17/02/2014,20300,Heating & Electrical Work,Environmental Services,Activities and Operations,525.00
6464,3040369,MAKING SPACE#4,24/02/2014,52200,Contracted Services,Adult Services,Supporting People  Capital Financing,"5,321.48"
7903,3025196,MALCOLM NICHOLSON & SON,13/02/2014,36200,Uninsured Losses  Vehicles,Environmental Services,Transport Support Service,"1,435.02"
7903,3019747,MALCOLM NICHOLSON & SON,06/02/2014,36200,Uninsured Losses  Vehicles,Environmental Services,Transport Support Service,832.65
2421293,3024315,MALROD ENVIRONMENTAL LIMITED,10/02/2014,Z6008,Expense AP Accrual,Bolton MBC Balance Sheet,Bolton MBC Balance Sheet,"1,890.00"
130485,3040528,MANOR PHARMACY#VARIOUS CHEMISTS,27/02/2014,52200,Contracted Services,Adult Services,Drugs Pooled Treatment Budget,607.70
17742,3027031,REDACTED - PERSONAL DATA,13/02/2014,19100,Training Exps Tuition Fees,Adult Services,Staff Development  Adults,735.00
6458,3040392,MARK MANGNALL & SON,24/02/2014,Z6008,Expense AP Accrual,Bolton MBC Balance Sheet,Bolton MBC Balance Sheet,"2,833.00"
6458,3024405,MARK MANGNALL & SON,10/02/2014,20100,Day To Day Maintenance,Property Services,Accomm Rationalisation Strategy,544.37
6458,3043441,MARK MANGNALL & SON,27/02/2014,Z6008,Expense AP Accrual,Bolton MBC Balance Sheet,Bolton MBC Balance Sheet,"1,450.00"
130486,3040494,MARKET PHARMACY#CLAMARY LTD,27/02/2014,52200,Contracted Services,Adult Services,Drugs Pooled Treatment Budget,725.30
6470,3019264,MARLEY COURT  NURSING & RESIDENTAIL HOME,04/02/2014,54301,Residential Provision,Adult Services,OA  External Provision Residential,"4,047.50"
874657,3040515,MARSH (BOLTON) LTD T/A COHENS CHEMIST,27/02/2014,52200,Contracted Services,Adult Services,Drugs Pooled Treatment Budget,804.20
874657,3040540,MARSH (BOLTON) LTD T/A COHENS CHEMIST,27/02/2014,52200,Contracted Services,Adult Services,Drugs Pooled Treatment Budget,746.90
874657,3027817,MARSH (BOLTON) LTD T/A COHENS CHEMIST,17/02/2014,52200,Contracted Services,Public Health,Smoking,548.37
4792,3041288,MARTHALL TREE PRODUCTS LTD,27/02/2014,40601,General Materials,Environmental Services,Activities and Operations,699.35
6472,3040868,MARWOOD ELECTRICAL COMPANY LTD,27/02/2014,Z1051,Work in Progress Additions,Highways,Stores,"1,471.68"
6472,3040878,MARWOOD ELECTRICAL COMPANY LTD,27/02/2014,Z1051,Work in Progress Additions,Highways,Stores,"2,943.36"
6472,3040881,MARWOOD ELECTRICAL COMPANY LTD,27/02/2014,Z1051,Work in Progress Additions,Highways,Stores,981.12
6472,3040716,MARWOOD ELECTRICAL COMPANY LTD,27/02/2014,Z1051,Work in Progress Additions,Highways,Stores,981.12
6472,3040718,MARWOOD ELECTRICAL COMPANY LTD,27/02/2014,Z1051,Work in Progress Additions,Highways,Stores,"1,716.96"
6472,3040884,MARWOOD ELECTRICAL COMPANY LTD,27/02/2014,Z1051,Work in Progress Additions,Highways,Stores,"1,962.24"
6472,3040721,MARWOOD ELECTRICAL COMPANY LTD,27/02/2014,Z1051,Work in Progress Additions,Highways,Stores,981.12
6472,3040896,MARWOOD ELECTRICAL COMPANY LTD,27/02/2014,Z1051,Work in Progress Additions,Highways,Stores,"1,471.68"
6472,3040897,MARWOOD ELECTRICAL COMPANY LTD,27/02/2014,Z1051,Work in Progress Additions,Highways,Stores,"12,264.00"
6472,3040898,MARWOOD ELECTRICAL COMPANY LTD,27/02/2014,Z1051,Work in Progress Additions,Highways,Stores,"12,264.00"
6472,3040899,MARWOOD ELECTRICAL COMPANY LTD,27/02/2014,Z1051,Work in Progress Additions,Highways,Stores,"12,264.00"
6472,3040900,MARWOOD ELECTRICAL COMPANY LTD,27/02/2014,Z1051,Work in Progress Additions,Highways,Stores,"4,169.76"
6472,3040901,MARWOOD ELECTRICAL COMPANY LTD,27/02/2014,Z1051,Work in Progress Additions,Highways,Stores,"1,716.96"
6472,3040902,MARWOOD ELECTRICAL COMPANY LTD,27/02/2014,Z1051,Work in Progress Additions,Highways,Stores,"1,716.96"
6472,3040864,MARWOOD ELECTRICAL COMPANY LTD,27/02/2014,Z1051,Work in Progress Additions,Highways,Stores,"1,962.24"
6472,3021017,MARWOOD ELECTRICAL COMPANY LTD,10/02/2014,Z1051,Work in Progress Additions,Highways,Stores,"2,880.18"
6472,3021023,MARWOOD ELECTRICAL COMPANY LTD,10/02/2014,Z1051,Work in Progress Additions,Highways,Stores,"12,480.78"
6472,3021024,MARWOOD ELECTRICAL COMPANY LTD,10/02/2014,Z1051,Work in Progress Additions,Highways,Stores,"2,880.18"
6472,3021025,MARWOOD ELECTRICAL COMPANY LTD,10/02/2014,Z1051,Work in Progress Additions,Highways,Stores,"1,440.09"
6472,3021026,MARWOOD ELECTRICAL COMPANY LTD,10/02/2014,Z1051,Work in Progress Additions,Highways,Stores,"1,920.12"
6472,3021027,MARWOOD ELECTRICAL COMPANY LTD,10/02/2014,Z1051,Work in Progress Additions,Highways,Stores,"7,200.45"
6472,3021010,MARWOOD ELECTRICAL COMPANY LTD,06/02/2014,Z1051,Work in Progress Additions,Highways,Stores,"2,400.15"
6472,3021012,MARWOOD ELECTRICAL COMPANY LTD,06/02/2014,Z1051,Work in Progress Additions,Highways,Stores,"2,880.18"
6472,3021013,MARWOOD ELECTRICAL COMPANY LTD,06/02/2014,Z1051,Work in Progress Additions,Highways,Stores,"2,400.15"
6472,3021014,MARWOOD ELECTRICAL COMPANY LTD,06/02/2014,Z1051,Work in Progress Additions,Highways,Stores,"12,480.78"
6472,3040876,MARWOOD ELECTRICAL COMPANY LTD,27/02/2014,Z1051,Work in Progress Additions,Highways,Stores,981.12
349230,3024479,MARWOOD GROUP LIMITED,10/02/2014,33202,Plant Hire,Environmental Services,Highways Maintenance Billable Costs,"1,750.00"
4808,3019246,MARY & JOSEPH HOUSE,04/02/2014,54301,Residential Provision,Adult Services,MH Residential External Provision,"4,872.50"
2527356,3039620,REDACTED - PERSONAL DATA,24/02/2014,48509,Other Fees,Children's Services,Sec Sch Imp  Intensive Supp/Intervention,"1,069.30"
75513,3025324,MATCHTECH GROUP PLC,13/02/2014,53102,Agency Staff  Other,Development & Regen,Divisional Development,613.46
2212360,3029535,REDACTED - PERSONAL DATA,20/02/2014,48509,Other Fees,Environmental Services,Community Safety,"3,150.00"
2497291,3019381,MAX POTENTIAL UK LTD,04/02/2014,54301,Residential Provision,Adult Services,MH Residential External Provision,"1,714.29"
2434291,3019374,MAYBANK HOUSE,04/02/2014,54301,Residential Provision,Adult Services,OA  External Provision Residential,"1,991.75"
38107,3019289,MEADOW BANK NURSING HOME,04/02/2014,54302,Nursing Provision,Adult Services,OA  External Provision Residential,"4,777.80"
4856,3019274,MEADOWBANK HOUSE,04/02/2014,54301,Residential Provision,Adult Services,OA  External Provision Residential,"15,890.80"
4856,3019274,MEADOWBANK HOUSE,04/02/2014,54302,Nursing Provision,Adult Services,OA  External Provision Residential,"8,146.01"
2461290,3019375,MEADOWLARK,04/02/2014,54302,Nursing Provision,Adult Services,OA  External Provision Residential,"2,900.55"
179485,3019304,MEADWAY COURT#BOROUGH CARE LTD,04/02/2014,54301,Residential Provision,Adult Services,OA  External Provision Residential,"1,910.00"
6479,3037412,MEDWAY HEATING (BOLTON)  LTD,24/02/2014,Z6008,Expense AP Accrual,Bolton MBC Balance Sheet,Bolton MBC Balance Sheet,"11,874.91"
6479,3029733,MEDWAY HEATING (BOLTON)  LTD,20/02/2014,Z1051,Work in Progress Additions,Adult Services,Adult Services Balance Sheet,"9,805.09"
6479,3022496,MEDWAY HEATING (BOLTON)  LTD,10/02/2014,Z1051,Work in Progress Additions,Adult Services,Adult Services Balance Sheet,"144,035.52"
267311,3022501,MERITEC LIMITED,10/02/2014,53102,Agency Staff  Other,Finance Department,Housing Benefits,"4,014.72"
39429,3040840,MILLER GOODALL ENVIRONMENTAL SERVICES LTD,27/02/2014,48510,Consultancy Fees,Environmental Services,Regulatory Services,"1,850.40"
10133,3019285,MILLVIEW NURSING HOME,04/02/2014,54301,Residential Provision,Adult Services,LD Purchaser Residential Care,"1,959.95"
10133,3019285,MILLVIEW NURSING HOME,04/02/2014,54302,Nursing Provision,Adult Services,LD Purchaser Residential Care,"1,959.95"
10133,3019285,MILLVIEW NURSING HOME,04/02/2014,54301,Residential Provision,Adult Services,MH Residential External Provision,"1,959.95"
10133,3019285,MILLVIEW NURSING HOME,04/02/2014,54301,Residential Provision,Adult Services,OA  External Provision Residential,"103,730.90"
10133,3019285,MILLVIEW NURSING HOME,04/02/2014,54302,Nursing Provision,Adult Services,OA  External Provision Residential,"43,991.65"
10133,3019285,MILLVIEW NURSING HOME,04/02/2014,54301,Residential Provision,Adult Services,PD Purchaser Residential Care,"1,063.97"
10133,3019285,MILLVIEW NURSING HOME,04/02/2014,54302,Nursing Provision,Adult Services,PD Purchaser Residential Care,"1,959.95"
10133,3019284,MILLVIEW NURSING HOME,04/02/2014,54301,Residential Provision,Adult Services,OA  External Provision Residential,"1,175.97"
224788,3020737,MISS SOPHIE CARTWRIGHT,06/02/2014,48502,Legal Fees,Finance Department,H.B. Investigation Team,700.00
221647,3040782,MISS THERESA PEPPER,27/02/2014,48502,Legal Fees,Children's Services,Management Team,"2,200.00"
247715,3041236,MITCHELL DIESEL LIMITED,27/02/2014,31305,Vehicle Servicing,Environmental Services,Transport Support Service,603.55
38925,3032498,MODUS COMMUNICANDI LIMITED#MODUS#THE MODUS FOSTERING PARTNERSHIP,24/02/2014,52000,Vol Assoc Grants  General,Children's Services,Disability Serv External Provision,"14,696.08"
2147302,3019343,MOSTON GRANGE NURSING HOME,04/02/2014,54302,Nursing Provision,Adult Services,MH Residential External Provision,"4,625.00"
250384,3032390,MR MICHAEL BOWSHER QC,20/02/2014,48502,Legal Fees,Development & Regen,Project Revenue Account,"1,240.00"
2212391,3025374,MULTIHOG UK LTD,13/02/2014,Z6008,Expense AP Accrual,Bolton MBC Balance Sheet,Bolton MBC Balance Sheet,"1,500.00"
2212391,3041292,MULTIHOG UK LTD,27/02/2014,Z6008,Expense AP Accrual,Bolton MBC Balance Sheet,Bolton MBC Balance Sheet,"1,500.00"
2212391,3040511,MULTIHOG UK LTD,27/02/2014,Z6008,Expense AP Accrual,Bolton MBC Balance Sheet,Bolton MBC Balance Sheet,"1,500.00"
1312926,3030022,NALESTAR LTD,20/02/2014,42001,Uniforms,Environmental Services,Catering,"1,375.00"
2252290,3042632,NATALIE PACKER EDUCATIONAL CONSULTANCY,27/02/2014,48509,Other Fees,Children's Services,Primary Commissioning,"1,814.90"
9982,3032682,NATIONAL CAR PARKS LTD#NCP,24/02/2014,37100,Car Parking,Chief Executives Department,Car Parking,"35,384.38"
9982,3032002,NATIONAL CAR PARKS LTD#NCP,20/02/2014,37100,Car Parking,Environmental Services,Parking Services  Off Street,"24,333.48"
9982,3033490,NATIONAL CAR PARKS LTD#NCP,24/02/2014,37100,Car Parking,Chief Executives Department,Car Parking,"35,384.38"
9982,3020261,NATIONAL CAR PARKS LTD#NCP,06/02/2014,37100,Car Parking,Development & Regen,D&R Departmental Account,"16,917.00"
9982,3021015,NATIONAL CAR PARKS LTD#NCP,10/02/2014,Z1051,Work in Progress Additions,Environmental Services,Environmental Services Balance sheet,"21,540.00"
2285319,3019351,NAZARETH HOUSE MANCHESTER#EPH,04/02/2014,54301,Residential Provision,Adult Services,OA  External Provision Residential,"2,019.05"
2246441,3029486,NB COLOUR PRINT LIMITED,20/02/2014,48203,Marketing,Central Services,Marketing  General,861.01
6043,3041440,NEOPOST LIMITED,27/02/2014,43030,Photocopying Lease/Maintenance,Development & Regen,Development Management,895.42
187,3037407,NEW HORIZONS (STOCKPORT) LTD,24/02/2014,52000,Vol Assoc Grants  General,Children's Services,Res Serv Agency Placements,"13,000.00"
1237875,3032507,NEW START CHILDCARE,24/02/2014,52000,Vol Assoc Grants  General,Children's Services,Res Serv Agency Placements,"11,342.86"
1237875,3032375,NEW START CHILDCARE,20/02/2014,52000,Vol Assoc Grants  General,Children's Services,Disability Serv External Provision,"15,200.00"
1237875,3032506,NEW START CHILDCARE,24/02/2014,52000,Vol Assoc Grants  General,Children's Services,Res Serv Agency Placements,"16,350.00"
117865,3030309,NEWSQUEST (NORTH WEST) LTD,20/02/2014,48202,General Publicity,Development & Regen,Development Management,794.60
117865,3041347,NEWSQUEST (NORTH WEST) LTD,27/02/2014,48200,Advertising General,Environmental Services,Highway Management,569.00
117865,3041363,NEWSQUEST (NORTH WEST) LTD,27/02/2014,48200,Advertising General,Environmental Services,Highway Management,935.60
2265300,3031759,NEXT STAGE A WAY FORWARD LIMITED,20/02/2014,52200,Contracted Services,Adult Services,LD Purchaser Supported Housing,"18,900.00"
192870,3041408,NH ON-SITE LTD,27/02/2014,31305,Vehicle Servicing,Environmental Services,Transport Support Service,700.00
192870,3041407,NH ON-SITE LTD,27/02/2014,31305,Vehicle Servicing,Environmental Services,Transport Support Service,700.00
1552674,3030087,NIFES CONSULTING GROUP,20/02/2014,Z1051,Work in Progress Additions,Property Services,Corporate Property Capital Project Transfers to Other Projects,500.00
73061,3029465,NORMAN ASHWORTH LTD,20/02/2014,52200,Contracted Services,Environmental Services,Activities and Operations,"3,388.00"
73061,3027155,NORMAN ASHWORTH LTD,17/02/2014,52200,Contracted Services,Environmental Services,Activities and Operations,"3,820.00"
203434,3040947,NORTHERN EDUCATION,27/02/2014,53102,Agency Staff  Other,Children's Services,Sec Sch Imp  Running Costs,"2,745.00"
203434,3040947,NORTHERN EDUCATION,27/02/2014,48509,Other Fees,Children's Services,Secondary Commissioning,"1,220.00"
203434,3040949,NORTHERN EDUCATION,27/02/2014,19101,Training  Exam Fees,Children's Services,Additional Funding – Savings,"2,800.00"
203434,3040952,NORTHERN EDUCATION,27/02/2014,53102,Agency Staff  Other,Children's Services,Sec Sch Imp  Running Costs,"3,307.50"
6518,3041321,NORTHERN MUNICIPAL SPARES LTD,27/02/2014,40101,Operational Equipment Maint,Environmental Services,Activities and Operations,"7,453.80"
9200,3032521,NORTHERN STAGE SERVICES LTD,27/02/2014,40100,Operational Equipment Purchase,Environmental Services,Albert Halls  Operations,"2,830.00"
17346,3027974,NORTHGATE INFORMATION SOLUTIONS UK LIMITED,17/02/2014,45431,Computer Software Licences,Finance Department,T&B Systems Project Team,"2,000.00"
17346,3042973,NORTHGATE INFORMATION SOLUTIONS UK LIMITED,27/02/2014,45405,Computer Consumables,Finance Department,T&B Systems Project Team,"1,300.00"
17346,3037675,NORTHGATE INFORMATION SOLUTIONS UK LIMITED,24/02/2014,45405,Computer Consumables,Finance Department,T&B Systems Project Team,"16,619.00"
17346,3027941,NORTHGATE INFORMATION SOLUTIONS UK LIMITED,17/02/2014,45405,Computer Consumables,Finance Department,T&B Systems Project Team,"1,800.00"
10182,3020923,NPOWER LIMITED,10/02/2014,21100,Electricity  General,Chief Executives Department,Policy Performance & Communications Mngmnt,870.69
10182,3020923,NPOWER LIMITED,10/02/2014,21100,Electricity  General,Environmental Services,Assets,"13,454.24"
10182,3020923,NPOWER LIMITED,10/02/2014,21100,Electricity  General,Environmental Services,Depots,"2,435.00"
10182,3020923,NPOWER LIMITED,10/02/2014,21100,Electricity  General,Environmental Services,Markets  Rent Account,851.60
10182,3020923,NPOWER LIMITED,10/02/2014,21100,Electricity  General,Development & Regen,The Leverhulme Centre,"2,162.67"
10182,3020923,NPOWER LIMITED,10/02/2014,21100,Electricity  General,Children's Services,Barlow Park YC,"1,651.59"
10182,3020923,NPOWER LIMITED,10/02/2014,21100,Electricity  General,Children's Services,Farnworth Youth Centre,"1,553.05"
10182,3020923,NPOWER LIMITED,10/02/2014,21100,Electricity  General,Children's Services,Lord Street and Grosvenor CC,"1,950.91"
10182,3020923,NPOWER LIMITED,10/02/2014,21100,Electricity  General,Children's Services,Tonge CC,"1,492.75"
10182,3020923,NPOWER LIMITED,10/02/2014,21100,Electricity  General,Children's Services,Waggon Road YP Centre,"1,110.93"
10182,3020923,NPOWER LIMITED,10/02/2014,21100,Electricity  General,Finance Department,Libraries  Blackrod,"1,782.31"
10182,3020923,NPOWER LIMITED,10/02/2014,21100,Electricity  General,Finance Department,Libraries  Farnworth,"1,076.56"
10182,3020923,NPOWER LIMITED,10/02/2014,21100,Electricity  General,Finance Department,Libraries  Harwood,"1,022.96"
10182,3020923,NPOWER LIMITED,10/02/2014,21100,Electricity  General,Finance Department,Museum Premises,687.82
10182,3020923,NPOWER LIMITED,10/02/2014,21100,Electricity  General,Finance Department,Schools Library Services,571.22
10182,3020923,NPOWER LIMITED,10/02/2014,21100,Electricity  General,Finance Department,Smithills Hall Museum,"1,078.38"
10182,3020923,NPOWER LIMITED,10/02/2014,21100,Electricity  General,Housing GRF,Access and Advice Housing Options Centre,545.69
10182,3020923,NPOWER LIMITED,10/02/2014,21100,Electricity  General,Housing GRF,Dispersed Properties,"34,193.26"
10182,3020923,NPOWER LIMITED,10/02/2014,21100,Electricity  General,Housing GRF,Traveller Sites,"4,699.21"
10182,3020923,NPOWER LIMITED,10/02/2014,21100,Electricity  General,Property Services,Alderbank EPH,"2,459.14"
10182,3020923,NPOWER LIMITED,10/02/2014,21100,Electricity  General,Property Services,Crescent House,"1,374.71"
10182,3020923,NPOWER LIMITED,10/02/2014,21100,Electricity  General,Property Services,Darley Court EPH,"1,744.42"
10182,3020923,NPOWER LIMITED,10/02/2014,21100,Electricity  General,Property Services,Falcon View SEC,"3,087.22"
10182,3020923,NPOWER LIMITED,10/02/2014,21100,Electricity  General,Property Services,Jubilee Centre,"1,586.68"
10182,3020923,NPOWER LIMITED,10/02/2014,21100,Electricity  General,Property Services,Laburnum Lodge EPH,"1,048.35"
10182,3020923,NPOWER LIMITED,10/02/2014,21100,Electricity  General,Property Services,Marsden Road(BASE),849.93
10182,3020923,NPOWER LIMITED,10/02/2014,21100,Electricity  General,Property Services,Merehall,"2,398.31"
10182,3020923,NPOWER LIMITED,10/02/2014,21100,Electricity  General,Property Services,Merehall View,545.74
10182,3020923,NPOWER LIMITED,10/02/2014,21100,Electricity  General,Property Services,Thicketford Centre,"1,110.92"
10182,3020923,NPOWER LIMITED,10/02/2014,21100,Electricity  General,Property Services,Wellsprings  BMBC,"2,843.63"
10182,3020923,NPOWER LIMITED,10/02/2014,21100,Electricity  General,Property Services,Winifred Kettle,"1,017.99"
10182,3020923,NPOWER LIMITED,10/02/2014,21100,Electricity  General,Central Corporate,Land & Property Portfolios,"4,866.49"
10182,3040833,NPOWER LIMITED,27/02/2014,21100,Electricity  General,Environmental Services,Assets,748.87
10182,3040833,NPOWER LIMITED,27/02/2014,21100,Electricity  General,Environmental Services,Bereavement Services,"2,029.57"
10182,3040833,NPOWER LIMITED,27/02/2014,21100,Electricity  General,Environmental Services,Depots,"3,532.38"
10182,3040833,NPOWER LIMITED,27/02/2014,21100,Electricity  General,Environmental Services,Heaton Fold,"1,837.11"
10182,3040833,NPOWER LIMITED,27/02/2014,21100,Electricity  General,Environmental Services,Markets  Rent Account,851.60
10182,3040833,NPOWER LIMITED,27/02/2014,21100,Electricity  General,Development & Regen,The Leverhulme Centre,874.51
10182,3040833,NPOWER LIMITED,27/02/2014,21100,Electricity  General,Children's Services,Harwood Youth Centre,"2,012.89"
10182,3040833,NPOWER LIMITED,27/02/2014,21100,Electricity  General,Children's Services,Heaton & Lostock CC,632.44
10182,3040833,NPOWER LIMITED,27/02/2014,21100,Electricity  General,Children's Services,Horwich Youth Centre,701.31
10182,3040833,NPOWER LIMITED,27/02/2014,21100,Electricity  General,Finance Department,Libraries  Blackrod,"1,208.74"
10182,3040833,NPOWER LIMITED,27/02/2014,21100,Electricity  General,Finance Department,Museum Premises,728.47
10182,3040833,NPOWER LIMITED,27/02/2014,21100,Electricity  General,Finance Department,Smithills Hall Museum,"1,098.70"
10182,3040833,NPOWER LIMITED,27/02/2014,21100,Electricity  General,Housing GRF,Access and Advice Housing Options Centre,"1,717.83"
10182,3040833,NPOWER LIMITED,27/02/2014,21100,Electricity  General,Housing GRF,Traveller Sites,"4,678.85"
10182,3040833,NPOWER LIMITED,27/02/2014,21100,Electricity  General,Property Services,Alderbank EPH,"2,370.42"
10182,3040833,NPOWER LIMITED,27/02/2014,21100,Electricity  General,Property Services,Crescent House,"1,291.40"
10182,3040833,NPOWER LIMITED,27/02/2014,21100,Electricity  General,Property Services,Darley Court EPH,"1,768.93"
10182,3040833,NPOWER LIMITED,27/02/2014,21100,Electricity  General,Property Services,Horwich Area Office,"1,769.40"
10182,3040833,NPOWER LIMITED,27/02/2014,21100,Electricity  General,Property Services,Jubilee Centre,"1,576.45"
10182,3040833,NPOWER LIMITED,27/02/2014,21100,Electricity  General,Property Services,Laburnum Lodge EPH,"1,026.54"
10182,3040833,NPOWER LIMITED,27/02/2014,21100,Electricity  General,Property Services,Marsden Road(BASE),940.15
10182,3040833,NPOWER LIMITED,27/02/2014,21100,Electricity  General,Property Services,Thicketford Centre,"1,130.65"
10182,3040833,NPOWER LIMITED,27/02/2014,21100,Electricity  General,Property Services,Wellsprings  BMBC,"2,948.68"
10182,3040833,NPOWER LIMITED,27/02/2014,21100,Electricity  General,Property Services,Winifred Kettle,988.36
10182,3040833,NPOWER LIMITED,27/02/2014,21100,Electricity  General,Central Corporate,Land & Property Portfolios,"3,295.92"
10182,3040833,NPOWER LIMITED,27/02/2014,21100,Electricity  General,Central Corporate,Wolfenden Community Centre,502.25
10182,3028341,NPOWER LIMITED,17/02/2014,21100,Electricity  General,Environmental Services,Bereavement Services,"3,077.17"
10182,3028341,NPOWER LIMITED,17/02/2014,21100,Electricity  General,Environmental Services,Depots,"2,797.73"
10182,3028341,NPOWER LIMITED,17/02/2014,21100,Electricity  General,Environmental Services,Markets  Rent Account,"12,290.74"
10182,3028341,NPOWER LIMITED,17/02/2014,21100,Electricity  General,Children's Services,Technical Innovation Centre,"1,913.09"
10182,3028341,NPOWER LIMITED,17/02/2014,21100,Electricity  General,Housing GRF,Benjamin Court Temporary Accommodation,"1,332.91"
10182,3028341,NPOWER LIMITED,17/02/2014,21100,Electricity  General,Property Services,Castle Hill,"8,459.42"
10182,3028341,NPOWER LIMITED,17/02/2014,21100,Electricity  General,Property Services,Howell Croft House  Le Mans Crescent,"6,953.07"
10182,3028341,NPOWER LIMITED,17/02/2014,21100,Electricity  General,Property Services,Pocket Workshop(Community Meals),922.28
10182,3028341,NPOWER LIMITED,17/02/2014,21100,Electricity  General,Property Services,Town Hall,"31,793.94"
10182,3028341,NPOWER LIMITED,17/02/2014,21100,Electricity  General,Central Corporate,Land & Property Portfolios,"2,341.87"
10182,3022467,NPOWER LIMITED,10/02/2014,21100,Electricity  General,Central Corporate,Land & Property Portfolios,977.60
10182,3020915,NPOWER LIMITED,06/02/2014,21100,Electricity  General,Environmental Services,Engineering Projects,"255,210.99"
10182,3028340,NPOWER LIMITED,17/02/2014,21100,Electricity  General,Environmental Services,Engineering Projects,"247,757.82"
266933,3029960,NSL LIMITED#NSL SERVICES GROUP,20/02/2014,48509,Other Fees,Environmental Services,Parking Services  On Street,"3,858.17"
266933,3029963,NSL LIMITED#NSL SERVICES GROUP,20/02/2014,44202,Contract UnitNonLEA,Environmental Services,Parking Services  On Street,"32,568.28"
62914,3041277,NUGENT CARE#BOLTON PROJECT,27/02/2014,52200,Contracted Services,Adult Services,LD Purchaser Day Services,"33,929.50"
62914,3041023,NUGENT CARE#BOLTON PROJECT,27/02/2014,52200,Contracted Services,Adult Services,LD Purchaser Day Services,"33,929.50"
238617,3042411,NYMAS#NORTH YORKSHIRE MOBILITY & SAFETY,27/02/2014,44051,Clients Aids & Adaptations,Adult Services,ICES,"1,287.50"
42754,3028443,OFSTED,17/02/2014,48509,Other Fees,Children's Services,Res Serv 217 Deepdale Rd,596.00
132953,3019301,OLD GATES NURSING HOME,04/02/2014,54301,Residential Provision,Adult Services,OA  External Provision Residential,"2,039.00"
22676,3042917,ORACLE CORPORATION UK LIMITED,27/02/2014,45431,Computer Software Licences,Finance Department,FM Contract,"1,952.73"
2397427,3019372,ORCHARD COURT,04/02/2014,54301,Residential Provision,Adult Services,OA  External Provision Residential,"1,952.65"
2441353,3039618,OSMIS EDUCATION LIMITED,27/02/2014,53000,Private Contracted Services,Children's Services,Admin IT (Schools),"5,700.00"
2441353,3039619,OSMIS EDUCATION LIMITED,27/02/2014,53000,Private Contracted Services,Children's Services,Admin IT (Schools),"3,500.00"
125827,3036594,"P & D DOMESTICS, BOLTON",26/02/2014,40110,Op Equip Furniture Purchase,Housing GRF,Local Welfare Provision Pilot,559.52
125827,3036595,"P & D DOMESTICS, BOLTON",26/02/2014,40110,Op Equip Furniture Purchase,Housing GRF,Local Welfare Provision Pilot,559.52
125827,3036635,"P & D DOMESTICS, BOLTON",26/02/2014,40110,Op Equip Furniture Purchase,Housing GRF,Local Welfare Provision Pilot,559.52
125827,3036636,"P & D DOMESTICS, BOLTON",26/02/2014,40110,Op Equip Furniture Purchase,Housing GRF,Local Welfare Provision Pilot,559.52
125827,3036637,"P & D DOMESTICS, BOLTON",26/02/2014,40110,Op Equip Furniture Purchase,Housing GRF,Local Welfare Provision Pilot,559.52
125827,3036638,"P & D DOMESTICS, BOLTON",26/02/2014,40110,Op Equip Furniture Purchase,Housing GRF,Local Welfare Provision Pilot,559.52
125827,3036639,"P & D DOMESTICS, BOLTON",26/02/2014,40110,Op Equip Furniture Purchase,Housing GRF,Local Welfare Provision Pilot,559.52
125827,3036640,"P & D DOMESTICS, BOLTON",26/02/2014,40110,Op Equip Furniture Purchase,Housing GRF,Local Welfare Provision Pilot,559.52
125827,3036641,"P & D DOMESTICS, BOLTON",26/02/2014,40110,Op Equip Furniture Purchase,Housing GRF,Local Welfare Provision Pilot,559.52
125827,3036642,"P & D DOMESTICS, BOLTON",26/02/2014,40110,Op Equip Furniture Purchase,Housing GRF,Local Welfare Provision Pilot,559.52
125827,3036643,"P & D DOMESTICS, BOLTON",26/02/2014,40110,Op Equip Furniture Purchase,Housing GRF,Local Welfare Provision Pilot,559.52
125827,3036644,"P & D DOMESTICS, BOLTON",26/02/2014,40110,Op Equip Furniture Purchase,Housing GRF,Local Welfare Provision Pilot,559.52
125827,3036645,"P & D DOMESTICS, BOLTON",26/02/2014,40110,Op Equip Furniture Purchase,Housing GRF,Local Welfare Provision Pilot,559.52
125827,3036646,"P & D DOMESTICS, BOLTON",26/02/2014,40110,Op Equip Furniture Purchase,Housing GRF,Local Welfare Provision Pilot,559.52
125827,3036647,"P & D DOMESTICS, BOLTON",26/02/2014,40110,Op Equip Furniture Purchase,Housing GRF,Local Welfare Provision Pilot,559.52
6538,3027184,P J CARNEY & CO LTD,17/02/2014,52200,Contracted Services,Environmental Services,Activities and Operations,"2,400.00"
6538,3027182,P J CARNEY & CO LTD,17/02/2014,52200,Contracted Services,Environmental Services,Activities and Operations,"2,000.00"
6538,3043305,P J CARNEY & CO LTD,27/02/2014,20503,Strategic Landscape,Environmental Services,Assets,"4,575.00"
6538,3042970,P J CARNEY & CO LTD,27/02/2014,52200,Contracted Services,Environmental Services,Activities and Operations,"12,500.00"
6538,3043304,P J CARNEY & CO LTD,27/02/2014,52200,Contracted Services,Environmental Services,Activities and Operations,800.00
363,3022497,P J SERVICES (BOLTON) LTD,10/02/2014,20100,Day To Day Maintenance,Children's Services,Blackrod Youth Centre,"38,534.85"
1671326,3042410,PANACEA SOFTWARE LTD,27/02/2014,45430,Computer Software,Central Services,Communication & Marketing Agency,"1,037.14"
388,3027062,PARALLEL PARENTS,13/02/2014,52000,Vol Assoc Grants  General,Children's Services,Res Serv Agency Placements,"2,987.16"
388,3027064,PARALLEL PARENTS,13/02/2014,52000,Vol Assoc Grants  General,Children's Services,Res Serv Agency Placements,"2,902.84"
2310399,3040314,PARITOR LTD,24/02/2014,45400,Computer Purchase,Children's Services,Music ServMusic Service general,"2,908.00"
34703,3043025,PARK HOUSE HEALTHCARE LTD,27/02/2014,44051,Clients Aids & Adaptations,Adult Services,ICES,"3,890.00"
34703,3043197,PARK HOUSE HEALTHCARE LTD,27/02/2014,44051,Clients Aids & Adaptations,Adult Services,ICES,"1,100.00"
50,3019672,PARKLANDS HOUSE NURSING HOME,04/02/2014,54302,Nursing Provision,Adult Services,MH Residential External Provision,"12,295.70"
7907,3019226,PARKVIEW NURSING & RESIDENTIAL HOME,04/02/2014,54301,Residential Provision,Adult Services,OA  External Provision Residential,"35,479.74"
7907,3019226,PARKVIEW NURSING & RESIDENTIAL HOME,04/02/2014,54301,Residential Provision,Adult Services,PD Purchaser Residential Care,"3,888.90"
7907,3019225,PARKVIEW NURSING & RESIDENTIAL HOME,04/02/2014,54301,Residential Provision,Adult Services,OA  External Provision Residential,"1,103.57"
2405397,3043567,PAYPOINT NETWORK LTD,27/02/2014,21100,Electricity  General,Finance Department,Local Support Scheme,"1,916.00"
2405397,3020882,PAYPOINT NETWORK LTD,06/02/2014,22100,Rating Charges,Finance Department,Housing Benefits,"1,548.00"
2405397,3028435,PAYPOINT NETWORK LTD,17/02/2014,21100,Electricity  General,Finance Department,Local Support Scheme,"1,820.00"
2405397,3030316,PAYPOINT NETWORK LTD,20/02/2014,21100,Electricity  General,Finance Department,Local Support Scheme,"1,598.00"
6547,3019846,PEAK FABRICATIONS (BOLTON) LTD,13/02/2014,52200,Contracted Services,Environmental Services,Activities and Operations,"8,800.00"
6547,3040439,PEAK FABRICATIONS (BOLTON) LTD,27/02/2014,Z6008,Expense AP Accrual,Bolton MBC Balance Sheet,Bolton MBC Balance Sheet,"3,500.00"
6547,3019861,PEAK FABRICATIONS (BOLTON) LTD,13/02/2014,52200,Contracted Services,Environmental Services,Activities and Operations,"1,450.00"
6547,3019867,PEAK FABRICATIONS (BOLTON) LTD,13/02/2014,52200,Contracted Services,Environmental Services,Activities and Operations,"2,280.00"
6547,3019886,PEAK FABRICATIONS (BOLTON) LTD,13/02/2014,52200,Contracted Services,Environmental Services,Activities and Operations,900.00
6547,3019893,PEAK FABRICATIONS (BOLTON) LTD,13/02/2014,52200,Contracted Services,Environmental Services,Activities and Operations,"1,990.00"
6547,3019911,PEAK FABRICATIONS (BOLTON) LTD,06/02/2014,20103,Day To Day Maintenance Structural,Development & Regen,The Leisure Trust,600.00
451,3021540,PEARSON EDUCATION LIMITED,10/02/2014,40100,Operational Equipment Purchase,Children's Services,Education Psychology Service,859.42
451,3024587,PEARSON EDUCATION LIMITED,13/02/2014,40101,Operational Equipment Maint,Children's Services,Education Psychology Service,859.42
87722,3026341,PERSONAL CARE CONSULTANTS LTD,13/02/2014,48509,Other Fees,Adult Services,ACM  Management,"1,075.90"
22610,3040982,PETER DOUGLASS PLATFORMS,27/02/2014,33201,Transport Hire,Environmental Services,Transport Support Service,"1,188.00"
22610,3040979,PETER DOUGLASS PLATFORMS,27/02/2014,33201,Transport Hire,Environmental Services,Transport Support Service,"1,188.00"
6553,3031521,PETERS LTD,20/02/2014,40753,Book Fund Expenditure,Finance Department,Schools Library Services,"2,749.32"
350350,3040845,PIPS COURIER SERVICES#REDACTED - PERSONAL DATA,27/02/2014,48509,Other Fees,Children's Services,Management Team,702.00
116751,3027258,PLACES FOR PEOPLE HOMES,17/02/2014,52200,Contracted Services,Adult Services,Supporting People  Capital Financing,"5,533.60"
116750,3040389,PLACES FOR PEOPLE INDIVIDUAL SUPPORT,24/02/2014,52210,Contracted Services  Rental Voids,Adult Services,LD Provider  Supported Housing,"6,344.60"
116750,3041490,PLACES FOR PEOPLE INDIVIDUAL SUPPORT,27/02/2014,52200,Contracted Services,Adult Services,Supporting People  Capital Financing,"15,745.53"
116750,3042654,PLACES FOR PEOPLE INDIVIDUAL SUPPORT,27/02/2014,52200,Contracted Services,Adult Services,Supporting People  Capital Financing,"15,745.53"
116750,3021318,PLACES FOR PEOPLE INDIVIDUAL SUPPORT,10/02/2014,52200,Contracted Services,Adult Services,OA Extra Care Housing External Provision,"36,230.50"
2370531,3025112,PLANO LTD,13/02/2014,Z1051,Work in Progress Additions,Highways,Stores,516.78
206587,3041047,POLAR CAR AIR CONDITIONING LTD,27/02/2014,52200,Contracted Services,Environmental Services,Transport Support Service,559.00
181712,3032526,PORTFOLIO#ROTHWELL COMPANY LTD,24/02/2014,40703,Other Publications,Public Health,Ageing Well,"5,043.00"
181712,3019399,PORTFOLIO#ROTHWELL COMPANY LTD,06/02/2014,40601,General Materials,Public Health,Mental Health Promotion,545.00
525,3033753,POST OFFICE LTD,25/02/2014,31300,Vehicle Tax,Environmental Services,Transport Support Service,"7,064.00"
537,3020336,POWERCARE,06/02/2014,40101,Operational Equipment Maint,Environmental Services,Building Cleaning,"1,491.20"
35473,3027590,PREMIER CARE LTD#BOLTON CARE SERVICES,17/02/2014,52200,Contracted Services,Adult Services,OA  Home Care Services external provision,"5,176.62"
6572,3025689,PREMIER PAPER GROUP LIMITED,13/02/2014,43032,Office Stationery,Central Services,Printing Services,646.37
207635,3042627,PRIMARILY SCIENCE,27/02/2014,48509,Other Fees,Children's Services,Income – Teaching & Learning CPD,652.00
434426,3019319,PRINCESS ALEXANDRA HOME,04/02/2014,54301,Residential Provision,Adult Services,OA  External Provision Residential,"1,942.50"
739608,3043043,PRISM MEDICAL UK,27/02/2014,44051,Clients Aids & Adaptations,Adult Services,ICES,"1,527.20"
739608,3031662,PRISM MEDICAL UK,20/02/2014,44051,Clients Aids & Adaptations,Adult Services,ICES,573.83
739608,3031659,PRISM MEDICAL UK,20/02/2014,44051,Clients Aids & Adaptations,Adult Services,ICES,"1,449.02"
739608,3031669,PRISM MEDICAL UK,20/02/2014,44051,Clients Aids & Adaptations,Adult Services,ICES,"1,724.09"
739608,3024470,PRISM MEDICAL UK,10/02/2014,44051,Clients Aids & Adaptations,Adult Services,ICES,"1,349.27"
739608,3024472,PRISM MEDICAL UK,24/02/2014,44051,Clients Aids & Adaptations,Adult Services,ICES,978.14
739608,3031485,PRISM MEDICAL UK,24/02/2014,44051,Clients Aids & Adaptations,Adult Services,ICES,"1,152.54"
739608,3031489,PRISM MEDICAL UK,24/02/2014,44051,Clients Aids & Adaptations,Adult Services,ICES,702.00
739608,3031493,PRISM MEDICAL UK,24/02/2014,44051,Clients Aids & Adaptations,Adult Services,ICES,623.11
100274,3020870,PROLUDIC LIMITED,13/02/2014,20502,Maint Of Playgrounds,Environmental Services,Assets,"1,098.33"
2165294,3043193,PROTEK FENCING LTD,27/02/2014,Z1051,Work in Progress Additions,Highways,Stores,"15,898.15"
2165294,3027003,PROTEK FENCING LTD,13/02/2014,Z6008,Expense AP Accrual,Bolton MBC Balance Sheet,Bolton MBC Balance Sheet,"3,707.79"
2165294,3027001,PROTEK FENCING LTD,13/02/2014,Z1051,Work in Progress Additions,Highways,Stores,"7,071.57"
2165294,3027009,PROTEK FENCING LTD,13/02/2014,Z1051,Work in Progress Additions,Highways,Stores,"2,750.00"
22369,3029315,PROTEUS EQUIPMENT LTD,17/02/2014,48629,Miscellaneous Expenses,Environmental Services,Management & Support,642.87
596,3042661,PSI (RESOURCES) LTD,27/02/2014,Z6008,Expense AP Accrual,Bolton MBC Balance Sheet,Bolton MBC Balance Sheet,"1,345.00"
596,3027102,PSI (RESOURCES) LTD,17/02/2014,Z6008,Expense AP Accrual,Bolton MBC Balance Sheet,Bolton MBC Balance Sheet,664.00
596,3020298,PSI (RESOURCES) LTD,06/02/2014,Z6008,Expense AP Accrual,Bolton MBC Balance Sheet,Bolton MBC Balance Sheet,733.00
353249,3020991,PSU TECHNOLOGY GROUP LTD,27/02/2014,45401,Computer Maintenance,Finance Department,Corporate IT Investment,"1,921.00"
2314346,3043245,PURE CREATIVE LTD,27/02/2014,48203,Marketing,Central Services,Marketing  General,"1,350.00"
265233,3041272,QUADRANT SECURITY GROUP LTD,27/02/2014,25105,Other Security,Environmental Services,NCP CCTV,"6,115.00"
265233,3024320,QUADRANT SECURITY GROUP LTD,10/02/2014,25105,Other Security,Environmental Services,NCP CCTV,"3,734.00"
168404,3019303,QUEENS PARK VIEW#INTELLIGENT CARE,04/02/2014,54301,Residential Provision,Adult Services,MH Residential External Provision,"10,389.45"
618,3043169,QUEST 88 LIMITED,27/02/2014,44051,Clients Aids & Adaptations,Adult Services,ICES,602.50
2318333,3027810,QUICKSECURE LTD,17/02/2014,52200,Contracted Services,Public Health,Primary Care,652.00
6590,3021533,R & T SHEPHERD LTD#2,10/02/2014,20300,Heating & Electrical Work,Environmental Services,Activities and Operations,622.56
6590,3021534,R & T SHEPHERD LTD#2,17/02/2014,20300,Heating & Electrical Work,Environmental Services,Activities and Operations,697.00
644,3028424,R S TYRER LTD,17/02/2014,34405,Clients  Swimming Fares,Environmental Services,SNT Childrens Servs,"6,735.00"
670,3029331,RACKLINE LTD,20/02/2014,Z1051,Work in Progress Additions,Property Services,Property Services Balance Sheet,"6,061.00"
125827,3033119,RALPH LIVESEY LTD,26/02/2014,41101,Catering ProvisionsFood,Environmental Services,Catering,538.06
125827,3033470,RALPH LIVESEY LTD,26/02/2014,41101,Catering ProvisionsFood,Environmental Services,Catering,507.37
125827,3033131,RALPH LIVESEY LTD,26/02/2014,41101,Catering ProvisionsFood,Environmental Services,Catering,537.27
125827,3033099,RALPH LIVESEY LTD,26/02/2014,41101,Catering ProvisionsFood,Environmental Services,Catering,540.33
125827,3033495,RALPH LIVESEY LTD,26/02/2014,41101,Catering ProvisionsFood,Environmental Services,Catering,507.31
125827,3034990,RALPH LIVESEY LTD,26/02/2014,41101,Catering ProvisionsFood,Environmental Services,Catering,515.69
125827,3034966,RALPH LIVESEY LTD,26/02/2014,41101,Catering ProvisionsFood,Environmental Services,Catering,546.16
6595,3019227,RANDOMLIGHT LTD#HEIGHTSIDE HOUSE,04/02/2014,54301,Residential Provision,Adult Services,MH Residential External Provision,"2,837.65"
6595,3019227,RANDOMLIGHT LTD#HEIGHTSIDE HOUSE,04/02/2014,54302,Nursing Provision,Adult Services,MH Residential External Provision,"11,060.65"
1800291,3022545,RAPID PRIVATE HIRE LTD,10/02/2014,34402,Clients  Taxi Fares,Environmental Services,SNT Childrens Servs,633.00
1800291,3022553,RAPID PRIVATE HIRE LTD,10/02/2014,34402,Clients  Taxi Fares,Environmental Services,SNT Childrens Servs,673.00
1800291,3030304,RAPID PRIVATE HIRE LTD,20/02/2014,34402,Clients  Taxi Fares,Environmental Services,SNT Childrens Servs,681.00
1800291,3022542,RAPID PRIVATE HIRE LTD,10/02/2014,34402,Clients  Taxi Fares,Environmental Services,SNT Childrens Servs,789.80
125827,3032694,REALLY USEFUL PRODUCTION,26/02/2014,40601,General Materials,Finance Department,LMA External Funded Projects,679.03
42398,3019296,REDBANK CARE HOME#PAYEE VOYAGE NORTH,04/02/2014,54301,Residential Provision,Adult Services,LD Purchaser Residential Care,"5,865.25"
2509317,3019382,RIVERVIEW NURSING HOME,04/02/2014,54302,Nursing Provision,Adult Services,OA  External Provision Residential,"2,005.70"
6617,3019228,RIVINGTON VIEW NURSING HOME,04/02/2014,54301,Residential Provision,Adult Services,LD Purchaser Residential Care,"1,931.25"
6617,3019228,RIVINGTON VIEW NURSING HOME,04/02/2014,54301,Residential Provision,Adult Services,OA  External Provision Residential,"7,555.30"
6617,3019228,RIVINGTON VIEW NURSING HOME,04/02/2014,54302,Nursing Provision,Adult Services,OA  External Provision Residential,"4,002.50"
24818,3041192,RNIB#ROYAL NATIONAL INSTITUTE OF THE BLIND,27/02/2014,44051,Clients Aids & Adaptations,Adult Services,ICES,558.38
84680,3026501,ROAD SAFETY SERVICES LTD,13/02/2014,33202,Plant Hire,Environmental Services,Highway Management,"1,066.00"
6619,3027470,ROBINSON PLANT HIRE,17/02/2014,33202,Plant Hire,Environmental Services,Activities and Operations,661.78
6619,3043585,ROBINSON PLANT HIRE,27/02/2014,33202,Plant Hire,Environmental Services,Activities and Operations,561.78
6619,3037312,ROBINSON PLANT HIRE,24/02/2014,33202,Plant Hire,Environmental Services,Activities and Operations,661.78
6623,3019230,ROSE COURT NURSING HOME,04/02/2014,54301,Residential Provision,Adult Services,OA  External Provision Residential,"8,237.60"
6623,3019230,ROSE COURT NURSING HOME,04/02/2014,54302,Nursing Provision,Adult Services,OA  External Provision Residential,"8,237.60"
6623,3019229,ROSE COURT NURSING HOME,04/02/2014,54301,Residential Provision,Adult Services,MH Residential External Provision,"1,211.43"
35,3019256,ROSEBRIDGE COURT,04/02/2014,54302,Nursing Provision,Adult Services,OA  External Provision Residential,"4,050.00"
2013332,3019336,ROUNDHAM COURT#EPH,04/02/2014,54301,Residential Provision,Adult Services,OA  External Provision Residential,"2,099.55"
246562,3039718,ROWHURST LTD,25/02/2014,Z5259,AR Unapplied Receipts Refunds,Property Services,Property Services Balance Sheet,"3,468.75"
162251,3040465,ROWLANDS PHARMACY,27/02/2014,52200,Contracted Services,Adult Services,Drugs Pooled Treatment Budget,665.40
162251,3027833,ROWLANDS PHARMACY,17/02/2014,52200,Contracted Services,Public Health,Smoking,557.32
6629,3029543,ROYAL MAIL GROUP LTD,20/02/2014,45000,Postages Direct Costs,Finance Department,Council Tax,"1,185.17"
6629,3029543,ROYAL MAIL GROUP LTD,20/02/2014,45000,Postages Direct Costs,Finance Department,Housing Benefits,955.41
6629,3020366,ROYAL MAIL GROUP LTD,06/02/2014,45000,Postages Direct Costs,Finance Department,Council Tax,"1,548.19"
6629,3020366,ROYAL MAIL GROUP LTD,06/02/2014,45000,Postages Direct Costs,Finance Department,Housing Benefits,859.44
6629,3041098,ROYAL MAIL GROUP LTD,27/02/2014,45000,Postages Direct Costs,Finance Department,Accounts Receivable (R & B),622.53
6629,3041098,ROYAL MAIL GROUP LTD,27/02/2014,45000,Postages Direct Costs,Finance Department,Council Tax,"1,135.71"
6629,3041098,ROYAL MAIL GROUP LTD,27/02/2014,45000,Postages Direct Costs,Finance Department,Housing Benefits,"1,140.34"
6629,3043191,ROYAL MAIL GROUP LTD,27/02/2014,45000,Postages Direct Costs,Finance Department,Council Tax,"1,382.25"
6629,3043191,ROYAL MAIL GROUP LTD,27/02/2014,45000,Postages Direct Costs,Finance Department,Housing Benefits,916.39
65880,3041455,ROYAL MENCAP SOCIETY#MENCAP,27/02/2014,52200,Contracted Services,Adult Services,OA  Home Care Services external provision,838.50
2205290,3044564,SAFEHANDS CARE LTD#SAFEHANDS GROUP,28/02/2014,52200,Contracted Services,Adult Services,OA  Home Care Services external provision,"65,661.80"
2205290,3029747,SAFEHANDS CARE LTD#SAFEHANDS GROUP,18/02/2014,48509,Other Fees,Adult Services,OA  Day Care Provision  external,"49,774.12"
1637,3041041,SAFETY KLEEN UK  LTD,27/02/2014,40101,Operational Equipment Maint,Environmental Services,Heaton Fold,642.16
73074,3029717,SARABEC LIMITED,20/02/2014,44051,Clients Aids & Adaptations,Adult Services,ICES,"1,128.00"
73074,3029715,SARABEC LIMITED,27/02/2014,44051,Clients Aids & Adaptations,Adult Services,ICES,"1,624.60"
73074,3029718,SARABEC LIMITED,20/02/2014,44051,Clients Aids & Adaptations,Adult Services,ICES,968.34
1700,3031854,SCAN INTERNATIONAL,20/02/2014,48517,Fees/Expenses Schools,Children's Services,Music ServMusic Service general,672.12
1609312,3034712,SEVACARE UK LTD,24/02/2014,52200,Contracted Services,Adult Services,OA  Home Care Services external provision,544.99
1609312,3034967,SEVACARE UK LTD,24/02/2014,52200,Contracted Services,Adult Services,OA  Home Care Services external provision,"31,159.24"
1609312,3031762,SEVACARE UK LTD,20/02/2014,52200,Contracted Services,Adult Services,OA  Home Care Services external provision,"32,325.90"
680588,3022479,SGA SYSTEMS LTD,10/02/2014,45431,Computer Software Licences,Children's Services,Admin Strategy&Performance,"3,298.00"
1683291,3027054,SHAKE RATTLE AND ROLL,13/02/2014,48517,Fees/Expenses Schools,Children's Services,Music ServMusic Service general,"1,150.00"
6659,3019232,SHANNON COURT NURSING HOME,04/02/2014,54302,Nursing Provision,Adult Services,MH Residential External Provision,"1,986.35"
6659,3019232,SHANNON COURT NURSING HOME,04/02/2014,54301,Residential Provision,Adult Services,OA  External Provision Residential,"39,544.50"
6659,3019232,SHANNON COURT NURSING HOME,04/02/2014,54302,Nursing Provision,Adult Services,OA  External Provision Residential,"19,265.33"
91549,3031779,SHANTI MEDICAL CENTRE#P82609,20/02/2014,52200,Contracted Services,Public Health,Sexual Health Improvement,502.00
152595,3020378,SHARED CARE#MAPLE LEAF CARE LIMITED,06/02/2014,52000,Vol Assoc Grants  General,Children's Services,Res Serv Agency Placements,"9,455.00"
74625,3019298,SHASSAB,04/02/2014,54301,Residential Provision,Adult Services,MH Residential External Provision,"1,952.70"
142271,3019728,SHAWCROSS CARE HOME#TAMENG CARE LTD,04/02/2014,54301,Residential Provision,Adult Services,OA  External Provision Residential,"1,825.00"
1822,3041319,SIDHIL LIMITED,27/02/2014,44051,Clients Aids & Adaptations,Adult Services,ICES,"3,234.00"
1822,3020345,SIDHIL LIMITED,06/02/2014,44051,Clients Aids & Adaptations,Adult Services,ICES,"3,234.00"
203373,3043234,SIGNHEALTH,27/02/2014,52200,Contracted Services,Adult Services,ICES,971.65
203373,3043230,SIGNHEALTH,27/02/2014,52200,Contracted Services,Adult Services,ICES,"1,335.15"
203373,3043227,SIGNHEALTH,27/02/2014,52200,Contracted Services,Adult Services,ICES,"1,075.54"
203373,3043226,SIGNHEALTH,27/02/2014,52200,Contracted Services,Adult Services,ICES,972.18
203373,3043222,SIGNHEALTH,27/02/2014,52200,Contracted Services,Adult Services,ICES,641.76
203373,3043219,SIGNHEALTH,27/02/2014,52200,Contracted Services,Adult Services,ICES,"1,204.55"
203373,3024552,SIGNHEALTH,13/02/2014,52200,Contracted Services,Adult Services,MH Residential External Provision,"1,110.89"
203373,3037781,SIGNHEALTH,24/02/2014,52200,Contracted Services,Adult Services,MH Residential External Provision,"1,420.12"
47832,3042405,SILK GROUP LTD,27/02/2014,48203,Marketing,Central Services,Marketing  General,680.00
47832,3025373,SILK GROUP LTD,13/02/2014,48203,Marketing,Central Services,Marketing  General,710.00
47832,3029484,SILK GROUP LTD,20/02/2014,48203,Marketing,Central Services,Marketing  General,668.16
1097786,3041078,SIMPLYMED LTD,27/02/2014,44051,Clients Aids & Adaptations,Adult Services,ICES,"1,504.50"
1097786,3042764,SIMPLYMED LTD,27/02/2014,44051,Clients Aids & Adaptations,Adult Services,ICES,"1,033.50"
266126,3020964,SKIBAND,06/02/2014,48203,Marketing,Central Services,Marketing  General,"1,750.00"
1735290,3042856,SLC GROUP#PARAGON LIMITED,27/02/2014,52200,Contracted Services,Adult Services,MH Residential External Provision,"1,029.60"
1735290,3042854,SLC GROUP#PARAGON LIMITED,27/02/2014,52200,Contracted Services,Adult Services,MH Residential External Provision,"1,029.60"
1735290,3024555,SLC GROUP#PARAGON LIMITED,13/02/2014,52200,Contracted Services,Adult Services,MH Residential External Provision,"1,029.60"
2505299,3020878,SMARTBAGS LIMITED,06/02/2014,48203,Marketing,Central Services,Marketing  General,"2,675.00"
1556141,3032502,SOCIAL CARE SERVICES GROUP,24/02/2014,52000,Vol Assoc Grants  General,Children's Services,Res Serv Agency Placements,"7,799.96"
858669,3029938,SOFTCAT LTD,20/02/2014,45430,Computer Software,Children's Services,Admin IT (Schools),"1,988.53"
858669,3029937,SOFTCAT LTD,20/02/2014,45430,Computer Software,Children's Services,Admin IT (Schools),"2,088.66"
858669,3029936,SOFTCAT LTD,20/02/2014,45430,Computer Software,Children's Services,Admin IT (Schools),"5,570.75"
10140,3019288,SOUTHLEA RESIDENTIAL CARE HOME,04/02/2014,54301,Residential Provision,Adult Services,MH Residential External Provision,"2,059.40"
991723,3019320,SOUTHVIEW LODGE RESIDENTIAL CARE HOME,04/02/2014,54301,Residential Provision,Adult Services,OA  External Provision Residential,"1,805.00"
2338384,3019355,SPECIALITY CARE (REIT HOMES) LTD T/A HOUNDSWOOD HOUSE CARE HOME,04/02/2014,54301,Residential Provision,Adult Services,OA  External Provision Residential,"4,881.80"
6675,3029737,SPECTRA SECURITY LTD,27/02/2014,45401,Computer Maintenance,Environmental Services,Depots,737.00
6675,3041095,SPECTRA SECURITY LTD,27/02/2014,Z6008,Expense AP Accrual,Bolton MBC Balance Sheet,Bolton MBC Balance Sheet,"1,522.00"
6675,3029735,SPECTRA SECURITY LTD,20/02/2014,Z6008,Expense AP Accrual,Bolton MBC Balance Sheet,Bolton MBC Balance Sheet,612.00
6675,3024551,SPECTRA SECURITY LTD,13/02/2014,Z6008,Expense AP Accrual,Bolton MBC Balance Sheet,Bolton MBC Balance Sheet,"1,035.00"
6675,3041091,SPECTRA SECURITY LTD,27/02/2014,25107,Secure Doors,Property Services,Admin Buildings  General,"1,970.00"
113123,3019300,SPENNYMOOR CARE HOME LTD,04/02/2014,54301,Residential Provision,Adult Services,OA  External Provision Residential,"10,176.15"
113123,3019299,SPENNYMOOR CARE HOME LTD,04/02/2014,54301,Residential Provision,Adult Services,OA  External Provision Residential,559.99
2310407,3032616,SPRING VIEW MEDICAL CENTRE#P82613,24/02/2014,52200,Contracted Services,Public Health,Sexual Health Improvement,"1,470.00"
6679,3019233,ST CATHERINES CARE HOME,04/02/2014,54301,Residential Provision,Adult Services,OA  External Provision Residential,"17,381.25"
6679,3019233,ST CATHERINES CARE HOME,04/02/2014,54302,Nursing Provision,Adult Services,OA  External Provision Residential,"22,795.45"
2387307,3019366,ST GEORGES (WIGAN) LTD,04/02/2014,54302,Nursing Provision,Adult Services,OA  External Provision Residential,"2,025.00"
6682,3037708,ST VINCENTS HOUSING ASSOCIATION LTD,24/02/2014,52210,Contracted Services  Rental Voids,Adult Services,LD Purchaser Supported Housing,646.56
6682,3037704,ST VINCENTS HOUSING ASSOCIATION LTD,24/02/2014,52210,Contracted Services  Rental Voids,Adult Services,LD Purchaser Supported Housing,676.16
6682,3040373,ST VINCENTS HOUSING ASSOCIATION LTD,24/02/2014,52200,Contracted Services,Adult Services,Supporting People  Capital Financing,"9,909.16"
6682,3039719,ST VINCENTS HOUSING ASSOCIATION LTD,24/02/2014,Z5259,AR Unapplied Receipts Refunds,Housing GRF,Housing Balance Sheet,"3,435.00"
2397424,3019370,STANLEY GRANGE,04/02/2014,54301,Residential Provision,Adult Services,LD Purchaser Residential Care,"14,970.15"
6686,3019235,STARMOUNT VILLA RESIDENTIAL CARE HOME,04/02/2014,54301,Residential Provision,Adult Services,OA  External Provision Residential,"10,636.74"
2370349,3041199,STEP AHEAD RESOURCE SERVICES LTD,27/02/2014,52000,Vol Assoc Grants  General,Children's Services,Res Serv Agency Placements,891.80
2370349,3020968,STEP AHEAD RESOURCE SERVICES LTD,06/02/2014,52000,Vol Assoc Grants  General,Children's Services,Res Serv Agency Placements,850.00
66472,3030301,STONHAM,20/02/2014,52200,Contracted Services,Adult Services,Supporting People  Capital Financing,"37,183.57"
6691,3019266,STRATHMORE NURSING HOME#WHITEHILL HOMES LTD,04/02/2014,54301,Residential Provision,Adult Services,OA  External Provision Residential,671.98
6691,3019267,STRATHMORE NURSING HOME#WHITEHILL HOMES LTD,04/02/2014,54301,Residential Provision,Adult Services,OA  External Provision Residential,"11,691.82"
6691,3019267,STRATHMORE NURSING HOME#WHITEHILL HOMES LTD,04/02/2014,54302,Nursing Provision,Adult Services,OA  External Provision Residential,"5,879.85"
6691,3019267,STRATHMORE NURSING HOME#WHITEHILL HOMES LTD,04/02/2014,54301,Residential Provision,Adult Services,PD Purchaser Residential Care,"1,959.95"
7857,3019269,SUNNYSIDE RESIDENTIAL HOME,04/02/2014,54301,Residential Provision,Adult Services,OA  External Provision Residential,"44,526.73"
7857,3019268,SUNNYSIDE RESIDENTIAL HOME,04/02/2014,54301,Residential Provision,Adult Services,OA  External Provision Residential,"2,648.57"
2379298,3019365,SUNRISE OF BRAMHALL,04/02/2014,54301,Residential Provision,Adult Services,MH Residential External Provision,"1,700.00"
6692,3040753,SUPPLIES TEAM LIMITED,27/02/2014,43032,Office Stationery,Central Services,Elections,500.08
1966295,3028023,SUPPORTED HOUSING FOR REDACTED - PERSONAL DATA#LIFEWAYS,17/02/2014,52200,Contracted Services,Adult Services,LD Purchaser Supported Housing,"13,619.80"
1966295,3019939,SUPPORTED HOUSING FOR REDACTED - PERSONAL DATA#LIFEWAYS,06/02/2014,52200,Contracted Services,Adult Services,LD Purchaser Supported Housing,"13,619.80"
1966296,3028275,SUPPORTED HOUSING FOR REDACTED - PERSONAL DATA#LIFEWAYS,17/02/2014,52200,Contracted Services,Adult Services,LD Purchaser Supported Housing,"19,022.58"
1966296,3019940,SUPPORTED HOUSING FOR REDACTED - PERSONAL DATA#LIFEWAYS,06/02/2014,52200,Contracted Services,Adult Services,LD Purchaser Supported Housing,"19,116.70"
1967294,3027923,SUPPORTED HOUSING FOR REDACTED - PERSONAL DATA#LIFEWAYS,17/02/2014,52200,Contracted Services,Adult Services,LD Purchaser Supported Housing,"17,033.70"
1967294,3020086,SUPPORTED HOUSING FOR REDACTED - PERSONAL DATA#LIFEWAYS,06/02/2014,52200,Contracted Services,Adult Services,LD Purchaser Supported Housing,"17,008.40"
1967295,3027924,SUPPORTED HOUSING FOR REDACTED - PERSONAL DATA#LIFEWAYS,17/02/2014,52200,Contracted Services,Adult Services,LD Purchaser Supported Housing,"12,606.20"
1967295,3020087,SUPPORTED HOUSING FOR REDACTED - PERSONAL DATA#LIFEWAYS,06/02/2014,52200,Contracted Services,Adult Services,LD Purchaser Supported Housing,"12,606.20"
1966292,3028024,SUPPORTED HOUSING FOR REDACTED - PERSONAL DATA#LIFEWAYS,17/02/2014,52200,Contracted Services,Adult Services,LD Purchaser Supported Housing,"8,474.30"
1966292,3020168,SUPPORTED HOUSING FOR REDACTED - PERSONAL DATA#LIFEWAYS,06/02/2014,52200,Contracted Services,Adult Services,LD Purchaser Supported Housing,"7,921.33"
1967301,3028008,SUPPORTED HOUSING FOR REDACTED - PERSONAL DATA#LIFEWAYS,17/02/2014,52200,Contracted Services,Adult Services,LD Purchaser Supported Housing,"7,169.86"
1967301,3020149,SUPPORTED HOUSING FOR REDACTED - PERSONAL DATA#LIFEWAYS,06/02/2014,52200,Contracted Services,Adult Services,LD Purchaser Supported Housing,"6,983.28"
1847290,3020170,SUPPORTED HOUSING FOR REDACTED - PERSONAL DATA#LIFEWAYS,06/02/2014,52200,Contracted Services,Adult Services,LD Purchaser Supported Housing,"6,742.40"
1847290,3028274,SUPPORTED HOUSING FOR REDACTED - PERSONAL DATA#LIFEWAYS,17/02/2014,52200,Contracted Services,Adult Services,LD Purchaser Supported Housing,"6,742.40"
2335296,3020088,SUPPORTED HOUSING FOR REDACTED - PERSONAL DATA#LIFEWAYS,06/02/2014,52200,Contracted Services,Adult Services,LD Purchaser Supported Housing,"11,530.95"
2335296,3027925,SUPPORTED HOUSING FOR REDACTED - PERSONAL DATA#LIFEWAYS,17/02/2014,52200,Contracted Services,Adult Services,LD Purchaser Supported Housing,"11,366.50"
2335290,3019941,SUPPORTED HOUSING FOR REDACTED - PERSONAL DATA#LIFEWAYS,06/02/2014,52200,Contracted Services,Adult Services,LD Purchaser Supported Housing,"17,770.80"
2335290,3028025,SUPPORTED HOUSING FOR REDACTED - PERSONAL DATA#LIFEWAYS,17/02/2014,52200,Contracted Services,Adult Services,LD Purchaser Supported Housing,"17,770.80"
1967297,3027926,SUPPORTED HOUSING FOR REDACTED - PERSONAL DATA#LIFEWAYS,17/02/2014,52200,Contracted Services,Adult Services,LD Purchaser Supported Housing,"6,787.20"
1967297,3020089,SUPPORTED HOUSING FOR REDACTED - PERSONAL DATA#LIFEWAYS,06/02/2014,52200,Contracted Services,Adult Services,LD Purchaser Supported Housing,"6,787.20"
1967300,3027927,SUPPORTED HOUSING FOR REDACTED - PERSONAL DATA#LIFEWAYS,17/02/2014,52200,Contracted Services,Adult Services,LD Purchaser Supported Housing,"18,469.00"
1967300,3020090,SUPPORTED HOUSING FOR REDACTED - PERSONAL DATA#LIFEWAYS,06/02/2014,52200,Contracted Services,Adult Services,LD Purchaser Supported Housing,"17,818.00"
1967296,3027928,SUPPORTED HOUSING FOR REDACTED - PERSONAL DATA#LIFEWAYS,17/02/2014,52200,Contracted Services,Adult Services,LD Purchaser Supported Housing,"10,885.80"
1967296,3020091,SUPPORTED HOUSING FOR REDACTED - PERSONAL DATA#LIFEWAYS,06/02/2014,52200,Contracted Services,Adult Services,LD Purchaser Supported Housing,"12,895.89"
1967299,3027929,SUPPORTED HOUSING FOR REDACTED - PERSONAL DATA#LIFEWAYS,17/02/2014,52200,Contracted Services,Adult Services,LD Purchaser Supported Housing,"11,442.40"
1967299,3020092,SUPPORTED HOUSING FOR REDACTED - PERSONAL DATA#LIFEWAYS,06/02/2014,52200,Contracted Services,Adult Services,LD Purchaser Supported Housing,"11,442.40"
1967291,3020093,SUPPORTED HOUSING FOR REDACTED - PERSONAL DATA#LIFEWAYS,06/02/2014,52200,Contracted Services,Adult Services,LD Purchaser Supported Housing,"3,953.60"
1967291,3027930,SUPPORTED HOUSING FOR REDACTED - PERSONAL DATA#LIFEWAYS,17/02/2014,52200,Contracted Services,Adult Services,LD Purchaser Supported Housing,"3,953.60"
1967293,3020094,SUPPORTED HOUSING FOR REDACTED - PERSONAL DATA#LIFEWAYS,06/02/2014,52200,Contracted Services,Adult Services,LD Purchaser Supported Housing,"11,746.00"
1967293,3027931,SUPPORTED HOUSING FOR REDACTED - PERSONAL DATA#LIFEWAYS,17/02/2014,52200,Contracted Services,Adult Services,LD Purchaser Supported Housing,"11,746.00"
1967292,3027932,SUPPORTED HOUSING FOR REDACTED - PERSONAL DATA#LIFEWAYS,17/02/2014,52200,Contracted Services,Adult Services,LD Purchaser Supported Housing,"6,433.00"
1967292,3020095,SUPPORTED HOUSING FOR REDACTED - PERSONAL DATA#LIFEWAYS,06/02/2014,52200,Contracted Services,Adult Services,LD Purchaser Supported Housing,"6,433.00"
2335291,3028026,SUPPORTED HOUSING FOR REDACTED - PERSONAL DATA#LIFEWAYS,17/02/2014,52200,Contracted Services,Adult Services,LD Purchaser Supported Housing,"11,310.60"
2335291,3019942,SUPPORTED HOUSING FOR REDACTED - PERSONAL DATA#LIFEWAYS,06/02/2014,52200,Contracted Services,Adult Services,LD Purchaser Supported Housing,"11,310.60"
1966294,3028027,SUPPORTED HOUSING FOR REDACTED - PERSONAL DATA#LIFEWAYS,17/02/2014,52200,Contracted Services,Adult Services,PD Purchaser Supported Housing,"26,182.35"
1966294,3019943,SUPPORTED HOUSING FOR REDACTED - PERSONAL DATA#LIFEWAYS,06/02/2014,52200,Contracted Services,Adult Services,PD Purchaser Supported Housing,"14,774.40"
2335292,3028028,SUPPORTED HOUSING FOR REDACTED - PERSONAL DATA#LIFEWAYS,17/02/2014,52200,Contracted Services,Adult Services,LD Purchaser Supported Housing,"10,934.10"
2335292,3019944,SUPPORTED HOUSING FOR REDACTED - PERSONAL DATA#LIFEWAYS,06/02/2014,52200,Contracted Services,Adult Services,LD Purchaser Supported Housing,"11,101.18"
1967290,3019945,SUPPORTED HOUSING FOR REDACTED - PERSONAL DATA#LIFEWAYS,06/02/2014,52200,Contracted Services,Adult Services,LD Purchaser Supported Housing,"5,844.30"
1967290,3028276,SUPPORTED HOUSING FOR REDACTED - PERSONAL DATA#LIFEWAYS,17/02/2014,52200,Contracted Services,Adult Services,LD Purchaser Supported Housing,"5,644.28"
1967298,3020150,SUPPORTED HOUSING FOR REDACTED - PERSONAL DATA#LIFEWAYS,06/02/2014,52200,Contracted Services,Adult Services,LD Purchaser Supported Housing,"7,894.08"
1967298,3028350,SUPPORTED HOUSING FOR REDACTED - PERSONAL DATA#LIFEWAYS,17/02/2014,52200,Contracted Services,Adult Services,LD Purchaser Supported Housing,"7,419.70"
1966290,3028277,SUPPORTED HOUSING FOR REDACTED - PERSONAL DATA#LIFEWAYS,17/02/2014,52200,Contracted Services,Adult Services,LD Purchaser Supported Housing,"9,007.68"
1966290,3020169,SUPPORTED HOUSING FOR REDACTED - PERSONAL DATA#LIFEWAYS,06/02/2014,52200,Contracted Services,Adult Services,LD Purchaser Supported Housing,"8,568.43"
2335299,3027934,SUPPORTED HOUSING FOR REDACTED - PERSONAL DATA#LIFEWAYS,17/02/2014,52200,Contracted Services,Adult Services,LD Purchaser Supported Housing,"12,454.40"
2335299,3020098,SUPPORTED HOUSING FOR REDACTED - PERSONAL DATA#LIFEWAYS,06/02/2014,52200,Contracted Services,Adult Services,LD Purchaser Supported Housing,"12,454.40"
2335300,3027935,SUPPORTED HOUSING FOR REDACTED - PERSONAL DATA#LIFEWAYS,17/02/2014,52200,Contracted Services,Adult Services,LD Purchaser Supported Housing,"10,556.90"
2335300,3020099,SUPPORTED HOUSING FOR REDACTED - PERSONAL DATA#LIFEWAYS,06/02/2014,52200,Contracted Services,Adult Services,LD Purchaser Supported Housing,"10,556.90"
2335294,3028029,SUPPORTED HOUSING FOR REDACTED - PERSONAL DATA#LIFEWAYS,17/02/2014,52200,Contracted Services,Adult Services,LD Purchaser Supported Housing,"12,688.05"
2335294,3019946,SUPPORTED HOUSING FOR REDACTED - PERSONAL DATA#LIFEWAYS,06/02/2014,52200,Contracted Services,Adult Services,LD Purchaser Supported Housing,"7,344.80"
1966293,3028030,SUPPORTED HOUSING FOR REDACTED - PERSONAL DATA#LIFEWAYS,17/02/2014,52200,Contracted Services,Adult Services,LD Purchaser Supported Housing,"8,386.45"
1966293,3019948,SUPPORTED HOUSING FOR REDACTED - PERSONAL DATA#LIFEWAYS,06/02/2014,52200,Contracted Services,Adult Services,LD Purchaser Supported Housing,"8,148.00"
1966291,3028031,SUPPORTED HOUSING FOR REDACTED - PERSONAL DATA#LIFEWAYS,17/02/2014,52200,Contracted Services,Adult Services,LD Purchaser Supported Housing,"13,353.20"
1966291,3019949,SUPPORTED HOUSING FOR REDACTED - PERSONAL DATA#LIFEWAYS,06/02/2014,52200,Contracted Services,Adult Services,LD Purchaser Supported Housing,"13,262.21"
2335295,3019950,SUPPORTED HOUSING FOR REDACTED - PERSONAL DATA#LIFEWAYS,06/02/2014,52200,Contracted Services,Adult Services,LD Purchaser Supported Housing,"9,352.80"
2335295,3028032,SUPPORTED HOUSING FOR REDACTED - PERSONAL DATA#LIFEWAYS,17/02/2014,52200,Contracted Services,Adult Services,LD Purchaser Supported Housing,"9,214.75"
2335301,3027936,SUPPORTED HOUSING FOR REDACTED - PERSONAL DATA#LIFEWAYS,17/02/2014,52200,Contracted Services,Adult Services,LD Purchaser Supported Housing,"11,885.15"
2335301,3020100,SUPPORTED HOUSING FOR REDACTED - PERSONAL DATA#LIFEWAYS,06/02/2014,52200,Contracted Services,Adult Services,LD Purchaser Supported Housing,"11,796.60"
198119,3025369,SUPRA UK LIMITED,20/02/2014,44051,Clients Aids & Adaptations,Adult Services,ICES,"5,077.64"
2496440,3019380,SYCAMORES CARE CENTRE,04/02/2014,54301,Residential Provision,Adult Services,OA  External Provision Residential,"2,310.00"
2496440,3019379,SYCAMORES CARE CENTRE,04/02/2014,54301,Residential Provision,Adult Services,OA  External Provision Residential,"2,112.00"
41646,3040510,SYKES CHEMIST LTD,27/02/2014,52200,Contracted Services,Adult Services,Drugs Pooled Treatment Budget,"1,163.90"
41646,3040536,SYKES CHEMIST LTD,27/02/2014,52200,Contracted Services,Adult Services,Drugs Pooled Treatment Budget,"2,210.20"
41646,3042844,SYKES CHEMIST LTD,27/02/2014,52200,Contracted Services,Adult Services,Drugs Pooled Treatment Budget,"1,157.40"
1576391,3027049,SYMPHONY HOUSING GROUP,13/02/2014,52210,Contracted Services  Rental Voids,Adult Services,LD Provider  Supported Housing,968.88
1576391,3027048,SYMPHONY HOUSING GROUP,13/02/2014,52210,Contracted Services  Rental Voids,Adult Services,LD Provider  Supported Housing,"1,475.52"
51188,3043435,SYSTEMSLINK 2000 LIMITED,27/02/2014,45430,Computer Software,Property Services,Corporate Asset Planning,820.00
21985,3040858,TAYLOR BROS (TREES),27/02/2014,52200,Contracted Services,Environmental Services,Activities and Operations,"11,900.00"
202841,3026962,TEAM NETSOL LIMITED,13/02/2014,45405,Computer Consumables,Finance Department,Housing Benefits,"11,843.00"
932,3043294,TECHNOLOGY SOLUTIONS LIMITED,27/02/2014,25106,C.C.T.V.,Environmental Services,Security Services,652.00
932,3043290,TECHNOLOGY SOLUTIONS LIMITED,27/02/2014,25106,C.C.T.V.,Environmental Services,Security Services,"1,682.00"
932,3043292,TECHNOLOGY SOLUTIONS LIMITED,27/02/2014,25106,C.C.T.V.,Environmental Services,Security Services,995.00
6706,3022548,TELECARS BOLTON,10/02/2014,34402,Clients  Taxi Fares,Environmental Services,SNT Childrens Servs,"1,602.50"
6706,3022551,TELECARS BOLTON,10/02/2014,34402,Clients  Taxi Fares,Environmental Services,SNT Childrens Servs,"1,587.50"
6706,3030302,TELECARS BOLTON,20/02/2014,34402,Clients  Taxi Fares,Environmental Services,SNT Childrens Servs,"1,597.50"
6706,3028417,TELECARS BOLTON,17/02/2014,34402,Clients  Taxi Fares,Environmental Services,SNT Childrens Servs,"1,567.50"
16265,3032354,THE AWARD SCHEME LTD,20/02/2014,40753,Book Fund Expenditure,Children's Services,Outdoor Education,762.50
2146302,3019342,THE BEECHES CARE HOME,04/02/2014,54301,Residential Provision,Adult Services,OA  External Provision Residential,"2,240.00"
2146302,3019342,THE BEECHES CARE HOME,04/02/2014,54302,Nursing Provision,Adult Services,OA  External Provision Residential,"4,446.50"
2288290,3019352,THE BIRCHES,04/02/2014,54301,Residential Provision,Adult Services,MH Residential External Provision,"5,365.90"
972,3019252,THE BRANDLES,04/02/2014,54301,Residential Provision,Adult Services,MH Residential External Provision,"4,020.25"
6438,3019218,THE BUNGALOW RESIDENTIAL HOME,04/02/2014,54301,Residential Provision,Adult Services,MH Residential External Provision,"2,250.00"
6438,3019218,THE BUNGALOW RESIDENTIAL HOME,04/02/2014,54301,Residential Provision,Adult Services,OA  External Provision Residential,"25,535.35"
6438,3019218,THE BUNGALOW RESIDENTIAL HOME,04/02/2014,54301,Residential Provision,Adult Services,PD Purchaser Residential Care,"1,959.95"
16038,3043367,THE CAROLE GROUP LTD,27/02/2014,40613,Goods for Resale,Finance Department,Customer Services,980.40
10139,3040430,THE CLOUGH RESIDENTIAL HOME,27/02/2014,54301,Residential Provision,Adult Services,OA  External Provision Residential,"4,949.62"
10139,3019287,THE CLOUGH RESIDENTIAL HOME,04/02/2014,54301,Residential Provision,Adult Services,OA  External Provision Residential,"38,158.23"
10139,3040434,THE CLOUGH RESIDENTIAL HOME,27/02/2014,54301,Residential Provision,Adult Services,OA  External Provision Residential,"4,853.94"
88184,3028422,THE COLUMBARIA COMPANY,17/02/2014,40610,Direct Materials,Environmental Services,Bereavement Services,520.00
88184,3037853,THE COLUMBARIA COMPANY,24/02/2014,40610,Direct Materials,Environmental Services,Bereavement Services,780.00
6713,3019277,THE DAVID LEWIS CENTRE,04/02/2014,54301,Residential Provision,Adult Services,LD Purchaser Residential Care,"18,978.45"
14874,3019427,THE FEDERATION OF BURIAL AND CREMATION AUTHORITIES,06/02/2014,47200,General Subscriptions,Environmental Services,Bereavement Services,843.60
125827,3033558,THE GOOD FOOD CHAIN LTD,26/02/2014,41101,Catering ProvisionsFood,Environmental Services,Catering,969.10
125827,3033588,THE GOOD FOOD CHAIN LTD,26/02/2014,41101,Catering ProvisionsFood,Environmental Services,Catering,962.87
125827,3033573,THE GOOD FOOD CHAIN LTD,26/02/2014,41101,Catering ProvisionsFood,Environmental Services,Catering,983.82
13637,3037098,THE GUIDE DOGS FOR THE BLIND ASSOCIATION,27/02/2014,55700,Grant Funded Expenditure,Environmental Services,Community Safety,500.00
9562,3019282,THE HAMILTONS,04/02/2014,54301,Residential Provision,Adult Services,OA  External Provision Residential,"1,825.00"
88171,3020866,THE LEAVING CARE TEAM,06/02/2014,52300,Client Support Costs,Children's Services,Child Prot Leaving Care Team,"2,714.06"
88171,3028354,THE LEAVING CARE TEAM,17/02/2014,52300,Client Support Costs,Children's Services,Child Prot Leaving Care Team,"1,323.77"
88171,3033072,THE LEAVING CARE TEAM,24/02/2014,52300,Client Support Costs,Children's Services,Child Prot Leaving Care Team,"3,045.26"
45009,3031742,THE LESBIAN & GAY FOUNDATION,20/02/2014,52200,Contracted Services,Public Health,HIV,"1,798.00"
1604381,3019327,THE LIMES#MAKING SPACES,04/02/2014,54301,Residential Provision,Adult Services,MH Residential External Provision,"2,625.00"
207974,3027473,THE LOCAL CARE COMPANY (BOLTON) LTD,17/02/2014,52200,Contracted Services,Adult Services,OA  Home Care Services external provision,"28,150.36"
995,3026440,THE NATIONAL FOSTERING AGENCY,13/02/2014,52000,Vol Assoc Grants  General,Children's Services,Res Serv Agency Placements,"2,988.40"
151359,3043216,THE NATIONAL LEAFLET COMPANY,27/02/2014,48203,Marketing,Central Services,Marketing  General,"1,935.24"
38184,3019290,THE OAKS,04/02/2014,54301,Residential Provision,Adult Services,OA  External Provision Residential,"4,050.00"
9243,3019281,THE OLD VICARAGE,04/02/2014,54301,Residential Provision,Adult Services,OA  External Provision Residential,"7,608.10"
2036306,3019337,THE OLD VICARAGE#1,04/02/2014,54301,Residential Provision,Adult Services,OA  External Provision Residential,"2,415.00"
23650,3025084,THE ROYAL TOWN PLANNING INSTITUTE#RTPI,13/02/2014,19104,Training Exp  Ext Seminars,Development & Regen,Planning Strategy,"1,225.00"
1912,3019249,THE SPINAL UNIT ACTION GROUP,04/02/2014,54301,Residential Provision,Adult Services,PD Purchaser Residential Care,"2,740.50"
39704,3019294,THE TOGETHER TRUST,04/02/2014,54301,Residential Provision,Adult Services,LD Purchaser Residential Care,"46,111.37"
2346424,3019361,THE TUDORS,04/02/2014,54301,Residential Provision,Adult Services,OA  External Provision Residential,"1,935.15"
2397437,3020372,THE WELLBEING FARM LTD,06/02/2014,48509,Other Fees,Finance Department,LMA External Funded Projects,860.00
78749,3026404,THE YOUTH JUSTICE BOARD,13/02/2014,52000,Vol Assoc Grants  General,Children's Services,Res Serv Agency Placements,"1,256.00"
78749,3026403,THE YOUTH JUSTICE BOARD,13/02/2014,52000,Vol Assoc Grants  General,Children's Services,Res Serv Agency Placements,"4,867.00"
158742,3025665,THEBIGWORD,13/02/2014,44054,Other Clients Services,Finance Department,C.R.M. Operations,"1,473.45"
125827,3032823,THOMAS HARDIE COMMERCIALS,26/02/2014,31305,Vehicle Servicing,Environmental Services,Transport Support Service,678.00
39372,3019293,THORLEY HOUSE,04/02/2014,54301,Residential Provision,Adult Services,OA  External Provision Residential,"2,025.00"
2481358,3019376,THORNTON HILL CARE HOME,04/02/2014,54301,Residential Provision,Adult Services,OA  External Provision Residential,"2,141.20"
1684291,3031723,TICKETSOLVE LTD,20/02/2014,48509,Other Fees,Environmental Services,Albert Halls Entertainment,798.40
1958335,3019753,TL ELECTRICAL SERVICES,06/02/2014,Z6008,Expense AP Accrual,Bolton MBC Balance Sheet,Bolton MBC Balance Sheet,600.00
220425,3029430,TOTAL FIRE SERVICES LTD,20/02/2014,Z6008,Expense AP Accrual,Bolton MBC Balance Sheet,Bolton MBC Balance Sheet,850.00
1548572,3043328,TRANSPORT FOR GREATER MANCHESTER,27/02/2014,48509,Other Fees,Environmental Services,Regulatory Services,"3,085.00"
1548572,3032378,TRANSPORT FOR GREATER MANCHESTER,20/02/2014,34403,Clients  Bus Passes,Children's Services,School Transport to Bus Passes,"61,311.90"
1548572,3043316,TRANSPORT FOR GREATER MANCHESTER,27/02/2014,48209,Consultation Costs,Development & Regen,Development Management,"1,790.00"
1548572,3030471,TRANSPORT FOR GREATER MANCHESTER,20/02/2014,Z1051,Work in Progress Additions,Highways,Stores,640.00
1548572,3029322,TRANSPORT FOR GREATER MANCHESTER,17/02/2014,Z1051,Work in Progress Additions,Highways,Stores,"1,225.00"
2496441,3026424,TRINITY CONNECTIONS,13/02/2014,48517,Fees/Expenses Schools,Children's Services,Gtr Manchester Music Education Hub,698.80
1581918,3040922,TUDOR NORTHWEST LTD,27/02/2014,Z6008,Expense AP Accrual,Bolton MBC Balance Sheet,Bolton MBC Balance Sheet,"4,251.50"
1581918,3027152,TUDOR NORTHWEST LTD,17/02/2014,Z6008,Expense AP Accrual,Bolton MBC Balance Sheet,Bolton MBC Balance Sheet,"6,240.15"
265081,3020184,TUNSTALL HEALTHCARE (UK)LTD,06/02/2014,44051,Clients Aids & Adaptations,Adult Services,ASC External Funded Schemes,"3,000.00"
1185,3025559,TURNING POINT (SERVICES) LIMITED,13/02/2014,52200,Contracted Services,Adult Services,Drugs Pooled Treatment Budget,"2,385.00"
1185,3025570,TURNING POINT (SERVICES) LIMITED,13/02/2014,52200,Contracted Services,Adult Services,Drugs Pooled Treatment Budget,"3,710.00"
6742,3019879,ULVERSCROFT LARGE PRINT BOOKS LIMITED,06/02/2014,40753,Book Fund Expenditure,Finance Department,Libraries Info. Services,622.40
6742,3019887,ULVERSCROFT LARGE PRINT BOOKS LIMITED,06/02/2014,40753,Book Fund Expenditure,Finance Department,Libraries Info. Services,593.20
6742,3019890,ULVERSCROFT LARGE PRINT BOOKS LIMITED,06/02/2014,40753,Book Fund Expenditure,Finance Department,Libraries Info. Services,602.40
6742,3019894,ULVERSCROFT LARGE PRINT BOOKS LIMITED,06/02/2014,40753,Book Fund Expenditure,Finance Department,Libraries Info. Services,531.20
39350,3032644,UNIQUE INTEGRATED SYSTEMS,24/02/2014,25106,C.C.T.V.,Environmental Services,Security Services,"1,710.00"
2418,3022457,UNITED UTILITIES WATER PLC#1,10/02/2014,22200,Water Charges  Metered,Environmental Services,Assets,917.05
2418,3022457,UNITED UTILITIES WATER PLC#1,10/02/2014,22200,Water Charges  Metered,Environmental Services,Heaton Fold,"1,449.96"
2418,3022457,UNITED UTILITIES WATER PLC#1,10/02/2014,22200,Water Charges  Metered,Environmental Services,Markets  Rent Account,589.97
2418,3022457,UNITED UTILITIES WATER PLC#1,10/02/2014,22200,Water Charges  Metered,Children's Services,Farnworth Youth Centre,564.07
2418,3022457,UNITED UTILITIES WATER PLC#1,10/02/2014,22200,Water Charges  Metered,Children's Services,Lord Street and Grosvenor CC,"2,189.32"
2418,3022457,UNITED UTILITIES WATER PLC#1,10/02/2014,22200,Water Charges  Metered,Housing GRF,Access and Advice Housing Options Centre,735.65
2418,3022457,UNITED UTILITIES WATER PLC#1,10/02/2014,22200,Water Charges  Metered,Housing GRF,Benjamin Court Temporary Accommodation,"5,445.20"
2418,3022457,UNITED UTILITIES WATER PLC#1,10/02/2014,22200,Water Charges  Metered,Housing GRF,Traveller Sites,976.82
2418,3022457,UNITED UTILITIES WATER PLC#1,10/02/2014,22200,Water Charges  Metered,Property Services,Alderbank EPH,"2,839.21"
